Workbook

Sheet Info
A2: Azienda
A3: Anno | B3: 2025
A5: Modulo | B5: CONS
A7: Versione | B7: V1
K11: 311 | L11: ASL MILANO N° 3
K12: 312 | L12: ASL PAVIA
K13: 313 | L13: ASL SONDRIO
K14: 314 | L14: ASL VARESE
K15: 315 | L15: ASL VALCAMONICA
K16: 951 | L16: FONDAZIONE MACCHI - VARESE
K17: 952 | L17: SANT'ANTONIO ABATE - GALLARATE
K18: 953 | L18: OSPEDALE DI CIRCOLO - BUSTO ARSIZIO
K19: 954 | L19: SPEDALI CIVILI - BRESCIA
K20: 955 | L20: M. MELLINI - CHIARI
K21: 956 | L21: OSPEDALE CIVILE - DESENZANO DEL GARDA
K22: 957 | L22: ISTITUTI OSPITALIERI - CREMONA
K23: 958 | L23: OSPEDALE MAGGIORE - CREMA
K24: 959 | L24: SANT'ANNA - COMO
K25: 960 | L25: CIRCOLO DI LECCO
K26: 962 | L26: OSPEDALI RIUNITI - BERGAMO
K27: 963 | L27: OSPEDALE TREVIGLIO CARAVAGGIO - TREVIGLIO
K28: 964 | L28: BOLOGNINI - SERIATE
K29: 965 | L29: CARLO POMA - MANTOVA
K30: 966 | L30: L. SACCO - MILANO
K31: 967 | L31: NIGUARDA CA' GRANDA - MILANO
K32: 968 | L32: IST. CLINICI DI PERFEZIONAMENTO - MILANO
K33: 969 | L33: FATEBENEFRATELLI - MILANO
K34: 970 | L34: SAN PAOLO - MILANO
K35: 971 | L35: IST. ORTOPEDICO G. PINI - MILANO
K36: 972 | L36: SAN CARLO BORROMEO - MILANO
K37: 973 | L37: OSPEDALE CIVILE - LEGNANO
K38: 974 | L38: G. SALVINI - GARBAGNATE MILANESE
K39: 975 | L39: OSPEDALE DI CIRCOLO - MELEGNANO
K40: 976 | L40: OSPEDALE DI DESIO E VIMERCATE
K41: 977 | L41: SAN GERARDO DEI TINTORI - MONZA
K42: 978 | L42: A.O. DELLA PROVINCIA DI LODI
K43: 979 | L43: A.O. DELLA PROVINCIA DI PAVIA
K44: 980 | L44: A.O. DELLA VALTELLINA E VALCHIAVENNA
K45: 920 | L45: I.N.R.C.A. DI CASATENOVO
K46: 922 | L46: FONDAZIONE IRCCS ISTITUTO TUMORI DI MILANO
K47: 923 | L47: FONDAZIONE IRCCS ISTITUTO BESTA DI MILANO
K48: 924 | L48: FONDAZIONE IRCCS POLICLINICO SAN MATTEO DI PAVIA
K49: 925 | L49: FONDAZIONE IRCCS OSPEDALE MAGGIORE P.R.M. DI MILANO
K50: 991 | L50: AZIENDA REGIONALE EMERGENZA URGENZA (AREU)
K51: XXX | L51: --

Sheet Legenda (hidden)
A1: Form Piano Investimenti
A2: Legenda per la compilazione
A4: Fogli Cespiti Capitalizzati | C4: AREA SANITARIA
A5: NOME CAMPO | C5: SPIEGAZIONE DI COSA VA INSERITO NEL CAMPO
A6: ASL vecchia denominazione | B6: = | C6: campo obbligatorio | D6: confermato
A7: Struttura/Presidio ospedaliero | B7: = | C7: campo obbligatorio ad eccezione degli interventi generici e/o interventi plurimi in più presidi | D7: confermato
A8: ID PIANO INVESTIMENTI | B8: = | C8: codice di identificativo univoco dell'investimento correlato alla form 33 di Stato patrimoniale. Tipologia codifica: ASL-foglio-anno-codice commessa/aziendale (500CEaa00000000000) | D8: NUOVO. N.B. Il codice in questione si autocompila a seguito dell'inserimento della descrizione dell'investimento (manterrà il progressivo finchè non viene inserito il codice univoco aziendale o la commessa)
A9: GRADO di PRIORITA' degli INVESTIMENTI | B9: = | C9: Attribuire ad ogni investimento il grado di priorità su una scala da 1 a n, evitando di usare più di una volta lo stesso numero | D9: ELIMINATO
A10: CONTO DELLO STATO PATRIMONIALE | B10: = | C10: Indicare il conto dello stato patrimoniale. | D10: confermato
A11: DESCRIZIONE INVESTIMENTO | B11: = | C11: Sintetica descrizione dell'investimento. Inserire voci singole se il valore è >= 50.000 €. In caso di importi inferiori raggruppare per cluster (es. PC e … postazioni lavoro; mobili e arredi studi medici…) | D11: confermato
A12: CODICE COMMESSA O CODICE AZIENDALE PROGETTO | B12: = | C12: codice di identificativo dell'investimento | D12: NUOVO
A13: SOGGETTO AD AUTORIZZAZIONE CRITE | B13: = | C13: SI. Nel caso l'investimento complessivo superi la soglia CRITE (200.000 € + IVA) | D13: La compilazione di questo campo diventa obbligatoria al pari del provvedimento autorizzativo e della data dello stesso
C14: NO. Nel caso l'investimento complessivo non superi la soglia CRITE (200.000 € + IVA)
A15: DATA AUTORIZZAZIONE CRITE | B15: = | C15: Indicare la data di autorizzazione gg/mm/aa | D15: confermato
A16: PROVVEDIMENTO di AUTORIZZAZIONE | B16: = | C16: campo obbligatorio. Deve essere inserita la DGRV o il DDR autorizzativo | D16: confermato. Nelle more del provvedimento autorizzativo, stante l'obbligatorietà dello stesso deve essere inserito il protocollo del verbale della seduta CRITE che autorizza la linea di investimento
A17: TIPOLOGIA LAVORI | B17: = | C17: Campo obbligatorio solo per la parte di Edilizia. Da compilare come da art. 128 co.3 D.Lgs. 163/2006 secondo i seguenti parametri: 1) nuova realizzazione 2) demolizione 3) lavori di recupero del patrimonio esistente 4) ristrutturazione 5) interventi di adeguamento normativo 6) manutenzione ordinaria 7) manutenzione straordinaria 8) ampliamento | D17: NUOVO. Nei casi di natura differente rispetto all'Edilizia/Impiantistica deve essere segnalato solamente la procedura tramite gara regionale
A18: STATO DI AVANZAMENTO CESPITE/INTERVENTO | B18: = | C18: Si chiede di esplicitare lo stato di avanzamento dell'iter amministrativo di acquisizione del cespite / realizzazione dell'opera. Nello specifico, il campo può assumere uno dei seguenti valori: 1) iter non ancora avviato: procedura di acquisizione/realizzazione non è ancora stata avviata, presente solamente un progetto di fattibilità tecnico-economica (nel piano delle opere pubbliche corrisponde al "documento di fattibilità delle alternative progettuali"); 2) presenza del documento finale relativo al progetto di fattibilità tecnico-economica 3) iter avviato con la presenza del documento di progetto definitivo; 4) presente il progetto esecutivo: significa che per i lavori è già stata adottata la "delibera a contrarre" (Dl. 163/2006) e le risorse necessarie per l'opera sono da considerarsi vincolate. cespite entrato nel processo produttivo. Per gli acquisti, tale momento è da individuarsi nell'adozione della delibera di indizione della procedura d'acquisto | D18: modificato nel contenuto. Va compilato secondo i contenuti presenti nel Piano Opere Pubbliche. Per i cespiti non afferenti all'edilizia ed impiantistica i valori saranno quelli corrispondenti, ma adattati all'iter procedurale. => 1) iter non ancora avviato, il cespite è solo in programmazione; 2) esiste apposita richiesta protocollata ed inviate alla CRITE (nel caso di cespite sopra soglia comunitaria) 3) l'iter è stato avviato perchè esiste parere protocollato della CRITE o perchè è stata adottata la deliberazione a contrarre da parte dell'azienda. Le risorse necessarie correlate devono considerarsi vincolate 4) cespite entrato nel processo produttivo | F18: x
A19: STIMA TEMPI di ESECUZIONE LAVORI | B19: = | C19: Campo obbligatorio solamente per l'Edilizia e l'impiantistica. Indicare il trimestre di inizio e fine lavori | D19: NUOVO. Da compilare secondo le logiche dei GANNT di avanzamento lavori di natura edile | E19: collaudo
A20: VALORE PROGRAMMATO del cespite/intervento | B20: = | C20: Indicare il valore deliberato/programmato per il cespite o intervento manutentivo/migliorativo, indipendentemente dal tempo necessario per realizzarlo | D20: confermato
A21: CESPITI CAPITALIZZATI nel 20XX provenienti da IMMOBILIZZAZIONI in CORSO (quote realizzate negli anni precedenti) | B21: = | C21: Campo obbligatorio dove inserire le quote che si prevede di capitalizzare nell'anno che provengono da immobilizzazioni in corso acconti. | D21: Modificato nel significato e nei contenuti. Significato: rappresenta il valore parziale dell'intera opera che sarà capitalizzato nell'anno in corso e che provengono da immobilizzazioni in corso. Contenuto: sono state raggruppate tutte le quote dell'anno anche realizzate fino al 2011, senza obbligo di copertura (a seguito di analisi dei Piani Investimento non risultano presenti quote che saranno capitalizzate entro il 2020 e rilevanti, senza correlata copertura)
A22: 1) CESPITI CAPITALIZZATI NEL 20XX: a) quota realizzata fino al 31/12/2011 | B22: = | C22: Inserire la quota parte realizzata fino al 31/12/2011 dei cespiti provenienti da immobilizzazioni in corso e acconti e che si prevede di capitalizzare nel 2017 | D22: ELIMINATO
A23: 1) CESPITI CAPITALIZZATI NEL 20XX: a1) di cui finanziato al 31/12/2011 | B23: = | C23: Inserire l'ammontare del finanziamento in conto capitale per quanto realizzato fino al 31/12/2011 | D23: ELIMINATO
A24: 1) CESPITI CAPITALIZZATI NEL 20XX: b) quota realizzata nel 2012 | B24: = | C24: Inserire la quota parte realizzata dal 01/01/2012 al 31/12/2012 | D24: ELIMINATO
A25: 1) CESPITI CAPITALIZZATI NEL 20XX: c) quota realizzata nel 2013 | B25: = | C25: Inserire la quota parte realizzata dal 01/01/2013 al 31/12/2013 | D25: ELIMINATO
A26: 1) CESPITI CAPITALIZZATI NEL 20XX: d) quota realizzata nel 2014 | B26: = | C26: Inserire la quota parte realizzata dal 01/01/2014 al 31/12/2014 | D26: ELIMINATO
A27: 1) CESPITI CAPITALIZZATI NEL 20XX: e) quota realizzata nel 2015 | B27: = | C27: Inserire la quota parte realizzata dal 01/01/2015 al 31/12/2015 | D27: ELIMINATO
A28: 1) CESPITI CAPITALIZZATI NEL 20XX: f) quota realizzata nel 2016 | B28: = | C28: Inserire la quota parte realizzata dal 01/01/2016 al 31/12/2016 | D28: ELIMINATO
A29: 1) CESPITI CAPITALIZZATI NEL 20XX: g) quota realizzata nel 2017 | B29: = | C29: Inserire la quota parte realizzata dal 01/01/2017 al 31/12/2017 | D29: ELIMINATO
A30: 1) CESPITI CAPITALIZZATI NEL 20XX: h) quota realizzata nel 2018 | B30: = | C30: Inserire la quota parte realizzata dal 01/01/2018 al 31/12/2018 | D30: ELIMINATO
A31: 1) CESPITI CAPITALIZZATI NEL 20XX: i) quota completata/che si prevede di completare nel 2019 | B31: = | C31: Inserire la quota parte realizzata nel 2019 dei cespiti provenienti da immobilizzazioni in corso e acconti e che si prevede di capitalizzare nel 2019 | D31: ELIMINATO
A32: 1) CESPITI CAPITALIZZATI: h) sub-totale = a + b + c + d + e + f + g + h + i | B32: = | C32: Campo somma. | D32: ELIMINATO
A33: 1) CESPITI CAPITALIZZATI: i) fabbisogno al 31/12/2016 = b + c + d + e + f + g + h + i | B33: = | C33: Somma del fabbisogno al 31/12/2019, risultante dalla somma tra la quota che si prevede di realizzare nel 2019 e il fabbisogno finanziario derivante da quanto realizzato negli anni precedenti | D33: ELIMINATO
A34: 2) NUOVI ACQUISTI e INCREMENTI MIGLIORATIVI (su cespiti già esistenti) CAPITALIZZATI nel 2019 | B34: = | C34: Inserire i beni che si prevede di acquistare nel 20XX + gli incrementi migliorativi che si prevede di realizzare e che si capitalizzeranno nel 20XX. Tale voce corrisponde alla sommatoria del "Totale Acquisizioni" di Immobilizzazioni Materiali (foglio "Immobilizzazioni Materiali", colonna "Totale Acquisizioni" della form “01-08 SAN SP A A Immobilizzazioni”) ed Immateriali (foglio "Immobilizzazioni Immateriali", colonna "Totale Acquisizioni" della form “01-08 SAN SP A A Immobilizzazioni”) al netto del "Totale Acquisizioni" di Immobilizzazioni in Corso e Acconti (Materiali e Immateriali presenti nella form “01-08 SAN SP A A Immobilizzazioni”) e al netto della quota di Immobilizzazioni in corso e Acconti capitalizzata nell'esercizio (Materiali e Immateriali presenti nella form “01-08 SAN SP A A Immobilizzazioni”, Colonna "Immobilizzazioni in corso capitalizzate" (O11) dei fogli "Immobilizzazioni Materiali" ed "Immobilizzazioni Immateriali"). | D34: confermato
A35: 3) TOTALE CAPITALIZZATO 2019 | B35: = | C35: Campo somma. Somma dei nuovi acquisti + le immobilizzazioni in corso eseguite negli anni pregressi che hanno consentito di concludere un cespite/intervento. Indica l'ammontare che si prevede di capitalizzare a fine 20XX Corrisponde alla sommatoria del "Totale Acquisizioni" di Immobilizzazioni Materiali ed Immobilizzazioni Immateriali al netto del "Totale Acquisizioni" relative alle Immobilizzazioni in corso e Acconti presenti nella form “01-08 SAN SP A A Immobilizzazioni”. | D35: confermato
A36: 4) TOTALE FABBISOGNO PER CESPITI CAPITALIZZATI 2017 | B36: = | C36: Campo somma. Indica il fabbisogno di investimenti per cespiti capitalizzati nel 20XX. Tale importo è dato dai nuovi acquisti del 20XX (tra cui gli interventi incrementativi iniziati e conclusi nel 20XX) + le immobilizziazioni in corso realizzate nel 2012, 2013, 2014... Da tale importo è esclusa la quota non finanziata realizzata fino al 31/12/2011 | D36: ELIMINATO. Tutte le quote che saranno capitalizzate entro il 31/12/2020 e realizzate ante 31/12/2011, senza obbligo di copertura, ancora presenti nei piani degli investimenti saranno finanziate con bilancio aziendale, stante gli importi non rilevanti (analisi dei piani)
A37: FONTI DI FINANZIAMENTO | B37: = | C37: 1. Contributi regionali in conto capitale | D37: confermato
C38: 2. Contributi statali in conto capitale (ex articolo 20 Legge 11 marzo 1988, n. 67, Aids, ecc.) | D38: confermato
C39: 3. Contributi comunali in conto capitale | D39: MODIFICATO. Accorpati in un'unica voce tutti i restanti contributi in c/capitale "da altre PA"
C40: 4. Contributi da altre amministrazioni pubbliche in conto capitale
C41: 5. Contributi in conto capitale acquisiti da soggetti privati (fondazioni bancarie e non, donazioni, lasciti, ecc.) | D41: confermato
C42: 6. Contributi vincolati destinati in parte al finanziamento di beni immobilizzati | D42: confermato
C43: 7. Utili d’esercizio conseguiti negli esercizi precedenti e reinvestiti. | D43: confermato. L'utilizzo degli stessi deve avvenire previa autorizzazione da richiedere alla CRITE e per le sole linee di investimento relative all'edilizia e impiantistica, salvo specifiche indicazioni della CRITE che valuterà il singolo caso di specie.
C44: 8. Introiti derivanti dalle alienazioni realizzate (comprese le plusvalenze sulle alienazioni non imputate a Conto Economico). Si rinvia all''art. 29 del D.Lgs 118 e alla casistica applicativa "la sterilizzazione degli ammortamenti". | D44: confermato. L'utilizzo degli stessi deve avvenire per il finanziamento di cespiti o lavori che prevedono un impiego di risorse considerevoli.
C45: 9. Finanziamento temporaneo autorizzato tramite fondo di rotazione (art. 9 L.R. 55/94), a fronte di alienazioni da realizzare | D45: confermato. Da eliminare?
C46: 10. Entrate derivanti dalla contrazione di mutui autorizzati (nei limiti e con i vincoli art. 5 e 6 legge n. 55/94 e DGR 125/2011). | D46: confermato
C47: 11. Fondo per il finanziamento degli investimenti DGR 929/2021 | D47: contributi in c/esercizio. Qualora l'investimento non venga capitalizzato nell'anno e slitti all'anno successivo, l'importo, già rettificato a CE, andrà inserito nella fonte riserve (colonna 14).
C48: 12. Fondo regionale Obiettivi di Piano | D48: contributi in c/capitale. Sono le assegnazione alle Aziende Sanitarie del Veneto delle risorse per l'erogazione dei livelli essenziali di assistenza per l'anno 20XX
C49: 13. Utili GSA, elenchi cespiti Covid Azero, DGR spazzola c/capitale | D49: contributi in c/capitale. Vengono assegnati dalla CRITE per specifici investimenti richiesti dalle Aziende
C50: 14. Rettifiche da assegnazioni fondo regionale per gli investimenti anni precedenti (eccedenza dell'assegnato rispetto al liquidato anni anni precedenti) | D50: modificato nel contenuto. Va compilato secondo i contenuti riportati della tavola 33 di Stato Patrimoniale. L'importo correlato dovrà essere stornato anche nella medesima form
C51: 15. Contributi aziendali in conto esercizio (compresi i finanziamenti a funzione), DGR spazzola c/esercizio (da rettificare a CE) | D51: confermato
C52: 16. Cespiti senza copertura finanziaria | D52: NUOVO
C53: Totale fonti di finanziamento: somma delle voci precedenti colonne 1-15 | D53: CAMPO SOMMA. Modificato nel contenuto: deve quadrare con il capitalizzato al netto della colonna 16 che rappresenterà l'unica fonte di squadratura
A54: QUADRATURA | B54: = | C54: Verifica che il "TOTALE INVESTIMENTI 2015/2016/2017/20xx" coincida con il totale delle fonti di finanziamento. Non è prevista la squadratura. | D54: ELIMINATO
A55: NOTE | B55: = | C55: Campo di testo libero per le segnalazioni e le specifiche delle Aziende | D55: confermato. Non vanno inseriti i provvedimenti per i quali esistono apposite colonne
A57: Foglio Immobilizzazioni in corso e acconti | B57: si propone un primo foglio "Immobilizzazioni in corso acconti anno X-1" come base di partenza --> segue capitalizzato anno X, capitalizzato anno X+1, immobilizzazioni in corso
A58: NOME CAMPO | C58: SPIEGAZIONE DI COSA VA INSERITO NEL CAMPO
A59: ASL vecchia denominazione | B59: = | C59: campo obbligatorio | D59: COME CAPITALIZZATO
A60: Struttura/Presidio ospedaliero | B60: = | C60: campo obbligatorio ad eccezione degli interventi generici e/o interventi plurimi in più presidi | D60: COME CAPITALIZZATO
A61: GRADO di PRIORITA' degli INVESTIMENTI | B61: = | C61: Attribuire ad ogni investimento il grado di priorità su una scala da 1 a n, evitando di usare più di una volta lo stesso numero. | D61: =
A62: CONTO DELLO STATO PATRIMONIALE | B62: = | C62: Indicare il conto dello stato patrimoniale. | D62: =
A63: DESCRIZIONE INVESTIMENTO | B63: = | C63: Sintetica descrizione dell'investimento. Inserire voci singole se il valore è >= 20.000 €, raggruppare se inferiori | D63: =
A64: SOGGETTO AD AUTORIZZAZIONE CRITE | B64: = | C64: SI. Nel caso l'investimento complessivo superi la soglia CRITE (200.000 € + IVA) | D64: =
C65: NO. Nel caso l'investimento complessivo non superi la soglia CRITE (200.000 € + IVA)
A66: DATA AUTORIZZAZIONE CRITE | B66: = | C66: Indicare la data di autorizzazione gg/mm/aa | D66: =
A67: STATO DI AVANZAMENTO CESPITE/INTERVENTO | B67: = | C67: Si chiede di esplicitare lo stato di avanzamento dell'iter amministrativo di acquisizione del cespite / realizzazione dell'opera. Nello specifico, il campo può assumere uno dei seguenti valori: 1) iter non ancora avviato: cespite inserito nella programmazione, ma la procedura di acquisizione/realizzazione non è ancora stata avviata; 2) iter avviato: significa che per i lavori è già stata adottata la "delibera a contrarre" (Dl. 163/2006) e le risorse necessarie per l'opera sono da considerarsi vincolate. Per gli acquisti, tale momento è da individuarsi nell'adozione della delibera di indizione della procedura d'acquisto; 3) cespite entrato nel processo produttivo. | D67: =
A68: Valore PROGRAMMATO del cespite/intervento | B68: = | C68: Indicare il valore deliberato/programmato per il cespite o intervento manutentivo/migliorativo, indipendentemente dal tempo necessario per realizzarlo | D68: =
A69: 1) IMMOBILIZZAZIONI IN CORSO E ACCONTI AL 31/12/ 2017: a) quota realizzata fino al 31/12/2011 | B69: = | C69: Inserire la quota parte realizzata fino al 31/12/2011 delle immobilizzazioni in corso e acconti che si prevede di avere ancora in corso al 31/12/2017 | D69: =
A70: 1) IMMOBILIZZAZIONI IN CORSO E ACCONTI AL 31/12/ 2017: a1) quota realizzata fino al 31/12/2011 - di cui finanziato | B70: = | C70: Inserire l'ammontare del finanziamento in conto capitale per quanto realizzato fino al 31/12/2011 | D70: =
A71: 1) IMMOBILIZZAZIONI IN CORSO E ACCONTI AL 31/12/ 2017: b) di cui quota realizzata nel 2012 | B71: = | C71: Inserire la quota parte realizzata dal 01/01/2012 al 31/12/2012 | D71: =
A72: 1) IMMOBILIZZAZIONI IN CORSO E ACCONTI AL 31/12/ 2017: c) di cui quota realizzata nel 2013 | B72: = | C72: Inserire la quota parte realizzata dal 01/01/2013 al 31/12/2013 | D72: =
A73: 1) IMMOBILIZZAZIONI IN CORSO E ACCONTI AL 31/12/ 2017: d) di cui quota realizzata nel 2014 | C73: Inserire la quota parte realizzata dal 01/01/2014 al 31/12/2014
A74: 1) IMMOBILIZZAZIONI IN CORSO E ACCONTI AL 31/12/ 2017: e) quota che si prevede di completare nel 2015 | B74: = | C74: Inserire la quota parte realizzata dal 01/01/2015 al 31/12/2015 | D74: =
A75: 1) IMMOBILIZZAZIONI IN CORSO E ACCONTI AL 31/12/ 2017: f) quota che si prevede di completare nel 2016 | B75: = | C75: Inserire la quota parte realizzata dal 01/01/2016 al 31/12/2016 | D75: =
A76: 1) CESPITI CAPITALIZZATI NEL 2017: g) quota completata/che si prevede di completare nel 2017 | B76: = | C76: Inserire la quota parte che si prevede di realizzare nel 2017 delle immobilizzazioni in corso e acconti che si prevede di avere al 31/12/2017 | D76: =
A77: 1) IMMOBILIZZAZIONI IN CORSO E ACCONTI AL 31/12/ 2017: h) sub-totale = a + b + c + d + e + f + g | B77: = | C77: Campo somma. | D77: =
A78: 1) IMMOBILIZZAZIONI IN CORSO E ACCONTI AL 31/12/ 2017: i) fabbisogno al 31/12/2018 = b + c + d + e + f + g | B78: = | C78: fabbisogno al 31/12/2018, risultante dalla quota parte di immobilizzazioni in corso realizzate negli anni 2012, 2013, 2014, 2015, 2016 e 2017 | D78: =
A80: 2) | B80: = | C80: NON COMPILABILE | D80: =
A81: 3) TOTALE IMMOBILIZZAZIONI IN CORSO AL 31/12/2017 | B81: = | C81: Ripropone il valore delle Immobilizzazioni in corso e acconti che si prevede di avere al 31/12/2017 | D81: =
A82: 4) TOTALE FABBISOGNO IMMOBILIZZAZIONI IN CORSO al 31/12/2017 | B82: = | C82: Ripropone il fabbisogno di investimenti per le immobiliazzioni in corso e acconti realizzate negli anni 2012, 2013, 2014, 2015, 2016 e 2017. | D82: =
A83: FONTI DI FINANZIAMENTO | B83: = | C83: 1. Contributi regionali in conto capitale | D83: =
C84: 2. Contributi statali in conto capitale (ex articolo 20 Legge 11 marzo 1988, n. 67, Aids, ecc.)
C85: 3. Contributi comunali in conto capitale
C86: 4. Contributi da altre amministrazioni pubbliche in conto capitale
C87: 5. Contributi in conto capitale acquisiti da soggetti privati (fondazioni bancarie e non, donazioni, lasciti, ecc.)
C88: 6. Contributi vincolati destinati in parte al finanziamento di beni immobilizzati
C89: 7. Utili d’esercizio conseguiti negli esercizi precedenti e reinvestiti. Vedi nota avente ad oggetto "terza rendicontazione trimestrale 2012".
C90: 8. Introiti derivanti dalle alienazioni realizzate (comprese le plusvalenze sulle alienazioni non imputate a Conto Economico da 01/01/2012). Si rinvia all''art. 29 del D.Lgs 118 e alla casistica applicativa "la sterilizzazione degli ammortamenti".
C91: 9. Finanziamento temporaneo autorizzato tramite fondo di rotazione (art. 9 L.R. 55/94), a fronte di alienazioni da realizzare
C92: 10. Entrate derivanti dalla contrazione di mutui autorizzati (nei limiti e con i vincoli art. 5 e 6 legge n. 55/94 e DGR 125/2011).
C93: 11. Fondo regionale per gli investimenti (non valorizzabile)
C94: 12. Fondo regionale per gli investimenti anni precedenti (non valorizzabile)
C95: 13. Stima contributi aziendali in conto esercizio.
C96: Totale fonti di finanziamento: somma delle voci precedenti
A97: QUADRATURA | B97: = | C97: Verifica che il "TOTALE INVESTIMENTI 2017" coincida con il totale delle fonti di finanziamento. Può essere prevista una squadratura. | D97: =

Sheet Anno 2025 Capitalizzato
A1: =Info!A2 -> Azienda | B1: =Info!B2 -> 0 | C1: =Info!C2 -> 0 | G1: =Info!B3&" "&Info!B5 -> 2025 CONS
C3: ANAGRAFICA INVESTIMENTO | I3: CRITE | O3: INVESTIMENTO | T3: F O N T I D I F I N A N Z I A M E N T O
A4: AS nuova denominazione | B4: AS vecchia denominazione | C4: struttura / presidio ospedaliero inseirre nel menu a tendina la voce residuale "sedi varie" togliere tutte le sedi e altre sedi | F4: Conto dello Stato Patrimoniale | G4: Descrizione investimento | H4: Codice commessa o Codice Aziendale Progetto | I4: Soggetto ad autorizzazione CRITE | J4: Data e/o Provvedimento di autorizzazione CRITE | K4: Tipologia di lavori/modalità di acquisizione | L4: Investimento legato al PNRR | N4: investimento rientrante nell'ambito dell'emergenza "Covid - 19"- PANFLU | O4: Valore PROGRAMMATO del cespite/intervento | P4: ❶ CESPITI CAPITALIZZATI provenienti da Immobilizzazioni in corso fino al 31/12/2024 | Q4: ❷ NUOVI ACQUISTI e INCREMENTI MIGLIORATIVI (su cespiti già esistenti) CAPITALIZZATI entro il 31/12/2025 | R4: ❸ = 1+2 TOTALE CAPITALIZZATO AL 31/12/2025 | S4: 4 IN CORSO AL 31/12/2025 | T4: PAA070a PAA070b PAA070d | U4: PAA040 (a e b) PAA050 (a e b) PAA060 (a e b) | V4: PAA080 | W4: PAA100 | X4: PAA090b PAA090c PAA090d PAA090e | Y4: PAA000 | Z4: PAA130 Riserve da plusvalenze PAA140 Contributi da reinvestire | AA4: PDA000 Debiti per mutui (non viene iscritta alcuna riserva) | AB4: PAA070c | AC4: PAA070c | AD4: PAA070c | AE4: PAA090a | AF4: PAA090a | AG4: PAA060a | AH4: TOTALE FINANZIAMENTI | AI4: // | AJ4: NOTE | AK4: QUADRATURA
D5: Area di Investimento | E5: ANNO di realizzazione | M5: Codice CUP (se "Sì" PNRR) | T5: ❶ Contributi regionali in conto capitale | U5: ❷ Contributi statali in conto capitale | V5: ❹ Contributi in conto capitale da altre P.A. | W5: ❺ Contributi in conto capitale acquisti da soggetti privati | X5: ❻ Contributi vincolati destinati in parte al finanziamento di beni immobili, esclusi i finaziamenti a funzione | Y5: ❼ Utili di esercizio | Z5: ❽ Introiti derivanti da alienazioni | AA5: ❿ Entrate derivanti da contrazione di mutui autorizzati | AB5: ⓫ Fondo per il Finanziamento degli Investimenti - POTENZIAMENTO | AC5: ⓬ Impiego Obiettivi di piano - Utili GSA - Cespiti COVID/PANFLU da elenchi Azienda Zero | AD5: 13 Fondo per il Finanziamento degli Investimenti -MANTENIMENTO (Budget Aziendale) | AE5: ⓮ Rettifiche già apportate in anni precedenti (correlata tavola 33 SP) | AF5: ⓯ Contributi aziendali in conto esercizio (compresi i finanziamenti a funzione) | AG5: ⓰ Cespiti Finanziati con il DL 34/2020 "Rilancio" - Covid DGRV 782/2020 | AI5: ⓱ Cespiti in attesa di copertura finanziaria
A6: TOTALI | B6: TOTALI | O6: =SUBTOTAL(9,O7:O498) -> 126529176 | P6: 0 | Q6: 108696476 | R6: 108696476 | S6: 17832700 | T6: 0 | U6: 54889456 | V6: 0 | W6: 0 | X6: 2300000 | Y6: 319300 | Z6: 0 | AA6: 0 | AB6: 0 | AC6: 0 | AD6: 0 | AE6: 0 | AF6: 69020420 | AG6: 0 | AH6: 126529176 | AI6: 0 | AK6: =SUBTOTAL(9,AK7:AK498) -> 0
A7: 500.Azienda Zero | B7: 500.Azienda Zero | C7: tutte le sedi | D7: INFORMATICA | E7: 2025 | F7: AAA100-7-A.I.3.c) Diritti di brevetto e diritti di utilizzazione delle opere d'ingegno - altri | G7: servizio sostitutivo 118 - tel. 116/117 AQ sistema di Risposta Sanitaria 116117 | H7: 116_01 | O7: 2800000 | Q7: 2800000 | R7: =+P7+Q7 -> 2800000 | AF7: =R7 -> 2800000 | AH7: =SUM(T7:AG7) -> 2800000 | AI7: =R7-AH7 -> 0 | AK7: =+R7+S7-AH7 -> 0 | AL7: =IF(AND(OR(C7="",#REF!="",F7="",G7="",H7=""),AND(R7<>0)),1,0) ->  | AM7: =IF(AND(L7="SI",M7=""),1,0) -> 0
A8: 500.Azienda Zero | B8: 500.Azienda Zero | C8: tutte le sedi | D8: INFORMATICA | E8: 2025 | F8: AAA200-7-A.I.5.g) Altre immobilizzazioni immateriali | G8: 118Accordo Quadro "Servizi applicativi per l'affidamento di servizi di supporto in ambito sanità digitale - sistemi informativi clinico-assistenziali" Lotto 1 - Sistema di Gestione del 118 | H8: 118_01 | O8: 50000 | Q8: 50000 | R8: =+P8+Q8 -> 50000 | AF8: =R8 -> 50000 | AH8: 50000 | AI8: =R8-AH8 -> 0 | AK8: 0 | AL8: =IF(AND(OR(C8="",#REF!="",F8="",G8="",H8=""),AND(R8<>0)),1,0) ->  | AM8: 0
A9: 500.Azienda Zero | B9: 500.Azienda Zero | C9: tutte le sedi | D9: INFORMATICA | E9: 2025 | F9: AAA200-7-A.I.5.g) Altre immobilizzazioni immateriali | G9: ANAGAccordo Quadro "Servizi Applicativi in ottica Cloud (SAC) e servizi di PMO per le PA" Lotto 4 - Servizi per la gestione delle anagrafi regionali | H9: ANA_01 | O9: 310000 | Q9: 310000 | R9: 310000 | AF9: 310000 | AH9: 310000 | AI9: 0 | AK9: 0 | AL9: =IF(AND(OR(C9="",#REF!="",F9="",G9="",H9=""),AND(R9<>0)),1,0) ->  | AM9: 0
A10: 500.Azienda Zero | B10: 500.Azienda Zero | C10: tutte le sedi | D10: INFORMATICA | E10: 2025 | F10: AAA200-7-A.I.5.g) Altre immobilizzazioni immateriali | G10: APAccordo Quadro "Servizi applicativi e l'affidamento di servizi di supporto in ambito sanità digitale - sistemi informativi clinico-assistenziali" Lotto 1 - Realizzazione della soluzione digitale di Anatomia Patologica per gli Enti Sanitari della Regione Veneto | H10: ANP_01 | O10: 140000 | Q10: 140000 | R10: 140000 | AF10: 140000 | AH10: 140000 | AI10: 0 | AK10: 0 | AL10: =IF(AND(OR(C10="",#REF!="",F10="",G10="",H10=""),AND(R10<>0)),1,0) ->  | AM10: 0
A11: 500.Azienda Zero | B11: 500.Azienda Zero | C11: tutte le sedi | D11: INFORMATICA | E11: 2025 | F11: AAA100-7-A.I.3.c) Diritti di brevetto e diritti di utilizzazione delle opere d'ingegno - altri | G11: Continuità dei servizi FSER SAR, Anagrafi, Security e Portali, Biosorveglianza e Piattaforma farmaceutica | H11: APP_01 | O11: 700000 | Q11: 700000 | R11: 700000 | AF11: 700000 | AH11: 700000 | AI11: 0 | AK11: 0 | AL11: =IF(AND(OR(C11="",#REF!="",F11="",G11="",H11=""),AND(R11<>0)),1,0) ->  | AM11: 0
A12: 500.Azienda Zero | B12: 500.Azienda Zero | C12: tutte le sedi | D12: INFORMATICA | E12: 2025 | F12: AAA100-7-A.I.3.c) Diritti di brevetto e diritti di utilizzazione delle opere d'ingegno - altri | G12: Affidamento diretto Arsenal | H12: ARS_01 | O12: 800000 | Q12: 800000 | R12: 800000 | AF12: 800000 | AH12: 800000 | AI12: 0 | AK12: 0 | AL12: =IF(AND(OR(C12="",#REF!="",F12="",G12="",H12=""),AND(R12<>0)),1,0) ->  | AM12: 0
A13: 500.Azienda Zero | B13: 500.Azienda Zero | C13: tutte le sedi | D13: INFORMATICA | E13: 2025 | F13: AAA200-7-A.I.5.g) Altre immobilizzazioni immateriali | G13: Piattaforma ARXIVAR | H13: ARX_01 | O13: 4000 | Q13: 4000 | R13: 4000 | AF13: 4000 | AH13: 4000 | AI13: 0 | AK13: 0 | AL13: =IF(AND(OR(C13="",#REF!="",F13="",G13="",H13=""),AND(R13<>0)),1,0) ->  | AM13: 0
A14: 500.Azienda Zero | B14: 500.Azienda Zero | C14: tutte le sedi | D14: INFORMATICA | E14: 2025 | F14: AAA100-7-A.I.3.c) Diritti di brevetto e diritti di utilizzazione delle opere d'ingegno - altri | G14: Servizi Sw Atlante - Charta | H14: ATC_01 | O14: 66700 | Q14: 66700 | R14: 66700 | AF14: 66700 | AH14: 66700 | AI14: 0 | AK14: 0 | AL14: =IF(AND(OR(C14="",#REF!="",F14="",G14="",H14=""),AND(R14<>0)),1,0) ->  | AM14: 0
A15: 500.Azienda Zero | B15: 500.Azienda Zero | C15: tutte le sedi | D15: INFORMATICA | E15: 2025 | F15: AAA200-7-A.I.5.g) Altre immobilizzazioni immateriali | G15: Servizi software CACEDEM (Cartella Clinica Elettronica Demenze) | H15: CAC_01 | O15: 30000 | Q15: 30000 | R15: 30000 | AF15: 30000 | AH15: 30000 | AI15: 0 | AK15: 0 | AL15: =IF(AND(OR(C15="",#REF!="",F15="",G15="",H15=""),AND(R15<>0)),1,0) ->  | AM15: 0
A16: 500.Azienda Zero | B16: 500.Azienda Zero | C16: tutte le sedi | D16: INFORMATICA | E16: 2025 | F16: AAA200-7-A.I.5.g) Altre immobilizzazioni immateriali | G16: Servizi CREV (Centro Regionale Emidemiologia Veterinaria) - LOTTO 1 | H16: CRE_01 | O16: 860000 | Q16: 860000 | R16: 860000 | AF16: 860000 | AH16: 860000 | AI16: 0 | AK16: 0 | AL16: =IF(AND(OR(C16="",#REF!="",F16="",G16="",H16=""),AND(R16<>0)),1,0) ->  | AM16: 0
A17: 500.Azienda Zero | B17: 500.Azienda Zero | C17: tutte le sedi | D17: INFORMATICA | E17: 2025 | F17: AAA200-7-A.I.5.g) Altre immobilizzazioni immateriali | G17: Servizi CREV (Centro Regionale Emidemiologia Veterinaria) - LOTTO 2 | H17: CRE_02 | O17: 195000 | Q17: 195000 | R17: 195000 | AF17: 195000 | AH17: 195000 | AI17: 0 | AK17: 0 | AL17: =IF(AND(OR(C17="",#REF!="",F17="",G17="",H17=""),AND(R17<>0)),1,0) ->  | AM17: 0
A18: 500.Azienda Zero | B18: 500.Azienda Zero | C18: tutte le sedi | D18: INFORMATICA | E18: 2025 | F18: AAA100-7-A.I.3.c) Diritti di brevetto e diritti di utilizzazione delle opere d'ingegno - altri | G18: Accordo Quadro Demand, sicurezza e privacy | H18: DEM_01 | O18: 500000 | Q18: 500000 | R18: 500000 | AF18: 500000 | AH18: 500000 | AI18: 0 | AK18: 0 | AL18: =IF(AND(OR(C18="",#REF!="",F18="",G18="",H18=""),AND(R18<>0)),1,0) ->  | AM18: 0
A19: 500.Azienda Zero | B19: 500.Azienda Zero | C19: tutte le sedi | D19: INFORMATICA | E19: 2025 | F19: AAA200-7-A.I.5.g) Altre immobilizzazioni immateriali | G19: Applicativo "Registro Veneto di Dialisi e Trapianto" | H19: DET_01 | O19: 20000 | Q19: 20000 | R19: 20000 | AF19: 20000 | AH19: 20000 | AI19: 0 | AK19: 0 | AL19: =IF(AND(OR(C19="",#REF!="",F19="",G19="",H19=""),AND(R19<>0)),1,0) ->  | AM19: 0
A20: 500.Azienda Zero | B20: 500.Azienda Zero | C20: tutte le sedi | D20: INFORMATICA | E20: 2025 | F20: AAA100-7-A.I.3.c) Diritti di brevetto e diritti di utilizzazione delle opere d'ingegno - altri | G20: Accordo Quadro "Servizi applicativi di Data Management e servizi di Project Management Office Lotto n. 2 - DataWareHouse | H20: DWH_01 | O20: 5150000 | Q20: 5150000 | R20: 5150000 | AF20: 5150000 | AH20: 5150000 | AI20: 0 | AK20: 0 | AL20: =IF(AND(OR(C20="",#REF!="",F20="",G20="",H20=""),AND(R20<>0)),1,0) ->  | AM20: 0
A21: 500.Azienda Zero | B21: 500.Azienda Zero | C21: tutte le sedi | D21: INFORMATICA | E21: 2025 | F21: AAA200-7-A.I.5.g) Altre immobilizzazioni immateriali | G21: Piattaforma ECM | H21: ECM_01 | O21: 150000 | Q21: 150000 | R21: 150000 | AF21: 150000 | AH21: 150000 | AI21: 0 | AK21: 0 | AL21: =IF(AND(OR(C21="",#REF!="",F21="",G21="",H21=""),AND(R21<>0)),1,0) ->  | AM21: 0
A22: 500.Azienda Zero | B22: 500.Azienda Zero | C22: tutte le sedi | D22: INFORMATICA | E22: 2025 | F22: AAA200-7-A.I.5.g) Altre immobilizzazioni immateriali | G22: Software gestione dati attività trasfusionale (EMOSITRA EMONET) | H22: EMO_01 | O22: 10000 | Q22: 10000 | R22: 10000 | AF22: 10000 | AH22: 10000 | AI22: 0 | AK22: 0 | AL22: =IF(AND(OR(C22="",#REF!="",F22="",G22="",H22=""),AND(R22<>0)),1,0) ->  | AM22: 0
A23: 500.Azienda Zero | B23: 500.Azienda Zero | C23: tutte le sedi | D23: INFORMATICA | E23: 2025 | F23: AAA100-7-A.I.3.c) Diritti di brevetto e diritti di utilizzazione delle opere d'ingegno - altri | G23: FARMAAccordo Quadro "Servizi Applicativi in ottica Cloud (SAC) e servizi di PMO per le PA" Lotto 4 - Servizi per la gestione della piattaforma regionale farmaceutica | H23: FAR_01 | O23: 550000 | Q23: 550000 | R23: 550000 | AF23: 550000 | AH23: 550000 | AI23: 0 | AK23: 0 | AL23: =IF(AND(OR(C23="",#REF!="",F23="",G23="",H23=""),AND(R23<>0)),1,0) ->  | AM23: 0
A24: 500.Azienda Zero | B24: 500.Azienda Zero | C24: tutte le sedi | D24: INFORMATICA | E24: 2025 | F24: AAA200-7-A.I.5.g) Altre immobilizzazioni immateriali | G24: Piattaforma sperimentazioni farmaci: servizio SaaS | H24: FAR_02 | O24: 150000 | Q24: 150000 | R24: 150000 | AF24: 150000 | AH24: 150000 | AI24: 0 | AK24: 0 | AL24: =IF(AND(OR(C24="",#REF!="",F24="",G24="",H24=""),AND(R24<>0)),1,0) ->  | AM24: 0
A25: 500.Azienda Zero | B25: 500.Azienda Zero | C25: tutte le sedi | D25: INFORMATICA | E25: 2025 | F25: AAA200-7-A.I.5.g) Altre immobilizzazioni immateriali | G25: Graduatoria farmacisti | H25: GRF_01 | O25: 50000 | Q25: 50000 | R25: 50000 | AF25: 50000 | AH25: 50000 | AI25: 0 | AK25: 0 | AL25: =IF(AND(OR(C25="",#REF!="",F25="",G25="",H25=""),AND(R25<>0)),1,0) ->  | AM25: 0
A26: 500.Azienda Zero | B26: 500.Azienda Zero | C26: tutte le sedi | D26: INFORMATICA | E26: 2025 | F26: AAA200-7-A.I.5.g) Altre immobilizzazioni immateriali | G26: Servizi software ICD (Impegnativa di Cura Domiciliare) | H26: ICD_01 | O26: 151100 | Q26: 151100 | R26: 151100 | AF26: 151100 | AH26: 151100 | AI26: 0 | AK26: 0 | AL26: =IF(AND(OR(C26="",#REF!="",F26="",G26="",H26=""),AND(R26<>0)),1,0) ->  | AM26: 0
A27: 500.Azienda Zero | B27: 500.Azienda Zero | C27: tutte le sedi | D27: INFORMATICA | E27: 2025 | F27: AAA100-7-A.I.3.c) Diritti di brevetto e diritti di utilizzazione delle opere d'ingegno - altri | G27: Acquisto licenze (compresa "Denodo Enterprise Subscription License") | H27: LIC_01 | O27: 75000 | Q27: 75000 | R27: 75000 | AF27: 75000 | AH27: 75000 | AI27: 0 | AK27: 0 | AL27: =IF(AND(OR(C27="",#REF!="",F27="",G27="",H27=""),AND(R27<>0)),1,0) ->  | AM27: 0
A28: 500.Azienda Zero | B28: 500.Azienda Zero | C28: tutte le sedi | D28: INFORMATICA | E28: 2025 | F28: AAA120c-7-A.I.4.c) Diritti di brevetto e diritti di utilizzazione delle opere d'ingegno | G28: Acquisto licenze (compresa "Denodo Enterprise Subscription License") | H28: LIC_01 | O28: 42700 | R28: 0 | S28: 42700 | AF28: 42700 | AH28: 42700 | AI28: =S28-AH28 -> 0 | AK28: 0 | AL28: =IF(AND(OR(C28="",#REF!="",F28="",G28="",H28=""),AND(R28<>0)),1,0) ->  | AM28: 0
A29: 500.Azienda Zero | B29: 500.Azienda Zero | C29: tutte le sedi | D29: INFORMATICA | E29: 2025 | F29: AAA140-7-A.I.5.a) Concessioni, licenze, marchi e diritti simili | G29: Acquisto licenze (compresa "Denodo Enterprise Subscription License") | H29: LIC_01 | O29: 150000 | Q29: 150000 | R29: 150000 | AF29: 150000 | AH29: 150000 | AI29: 0 | AK29: 0 | AL29: =IF(AND(OR(C29="",#REF!="",F29="",G29="",H29=""),AND(R29<>0)),1,0) ->  | AM29: 0
A30: 500.Azienda Zero | B30: 500.Azienda Zero | C30: tutte le sedi | D30: INFORMATICA | E30: 2025 | F30: AAA200-7-A.I.5.g) Altre immobilizzazioni immateriali | G30: LISAccordo Quadro "Servizi applicativi e l'affidamento di servizi di supporto in ambito sanità digitale - sistemi informativi clinico-assistenziali" Lotto 1 - Realizzazione di una soluzione standardizzata e centralizzata dei sistemi informativi di laboratorio di analisi cliniche (LIS), incluse la genetica, microbiologia e biologia molecolare. | H30: LIS_01 | O30: 44000 | Q30: 44000 | R30: 44000 | AF30: 44000 | AH30: 44000 | AI30: 0 | AK30: 0 | AL30: =IF(AND(OR(C30="",#REF!="",F30="",G30="",H30=""),AND(R30<>0)),1,0) ->  | AM30: 0
A31: 500.Azienda Zero | B31: 500.Azienda Zero | C31: tutte le sedi | D31: INFORMATICA | E31: 2025 | F31: AAA200-7-A.I.5.g) Altre immobilizzazioni immateriali | G31: LOGAccordo Quadro "Servizi applicativi e l'affidamento di servizi di supporto in ambito sanità digitale - sistemi informativi clinico-assistenziali" Lotto 1 - Sistema di Logistica del Farmaco | H31: LOG_01 | O31: 51000 | Q31: 51000 | R31: 51000 | AF31: 51000 | AH31: 51000 | AI31: 0 | AK31: 0 | AL31: =IF(AND(OR(C31="",#REF!="",F31="",G31="",H31=""),AND(R31<>0)),1,0) ->  | AM31: 0
A32: 500.Azienda Zero | B32: 500.Azienda Zero | C32: tutte le sedi | D32: INFORMATICA | E32: 2025 | F32: AAA100-7-A.I.3.c) Diritti di brevetto e diritti di utilizzazione delle opere d'ingegno - altri | G32: Licenze e Cloud Oracle | H32: ORA_01 | O32: 3700000 | Q32: 3700000 | R32: 3700000 | AF32: 3700000 | AH32: 3700000 | AI32: 0 | AK32: 0 | AL32: =IF(AND(OR(C32="",#REF!="",F32="",G32="",H32=""),AND(R32<>0)),1,0) ->  | AM32: 0
A33: 500.Azienda Zero | B33: 500.Azienda Zero | C33: tutte le sedi | D33: INFORMATICA | E33: 2025 | F33: AAA200-7-A.I.5.g) Altre immobilizzazioni immateriali | G33: PMAAccordo Quadro "Servizi applicativi e l'affidamento di servizi di supporto in ambito sanità digitale - sistemi informativi clinico-assistenziali" Lotto 1 - Realizzazione della soluzione digitale per la gestione dei centri di Procreazione Medicalmente Assistita (PMA) della Regione Veneto. | H33: PMA_01 | O33: 125000 | Q33: 125000 | R33: 125000 | AF33: 125000 | AH33: 125000 | AI33: 0 | AK33: 0 | AL33: =IF(AND(OR(C33="",#REF!="",F33="",G33="",H33=""),AND(R33<>0)),1,0) ->  | AM33: 0
A34: 500.Azienda Zero | B34: 500.Azienda Zero | C34: tutte le sedi | D34: INFORMATICA | E34: 2025 | F34: AAA200-7-A.I.5.g) Altre immobilizzazioni immateriali | G34: PNCAR | H34: PNC_01 | O34: 1100000 | Q34: 1100000 | R34: 1100000 | X34: 1100000 | AH34: 1100000 | AI34: 0 | AK34: 0 | AL34: =IF(AND(OR(C34="",#REF!="",F34="",G34="",H34=""),AND(R34<>0)),1,0) ->  | AM34: 0
A35: 500.Azienda Zero | B35: 500.Azienda Zero | C35: tutte le sedi | D35: INFORMATICA | E35: 2025 | F35: AAA100-7-A.I.3.c) Diritti di brevetto e diritti di utilizzazione delle opere d'ingegno - altri | G35: PSN (AMC AREAS compreso) | H35: PSN_01 | O35: 2850000 | Q35: 2850000 | R35: 2850000 | AF35: 2850000 | AH35: 2850000 | AI35: 0 | AK35: 0 | AL35: =IF(AND(OR(C35="",#REF!="",F35="",G35="",H35=""),AND(R35<>0)),1,0) ->  | AM35: 0
A36: 500.Azienda Zero | B36: 500.Azienda Zero | C36: tutte le sedi | D36: INFORMATICA | E36: 2025 | F36: AAA100-7-A.I.3.c) Diritti di brevetto e diritti di utilizzazione delle opere d'ingegno - altri | G36: Licenze Qlik | H36: QLK_01 | O36: 260000 | Q36: 260000 | R36: 260000 | AF36: 260000 | AH36: 260000 | AI36: 0 | AK36: 0 | AL36: =IF(AND(OR(C36="",#REF!="",F36="",G36="",H36=""),AND(R36<>0)),1,0) ->  | AM36: 0
A37: 500.Azienda Zero | B37: 500.Azienda Zero | C37: tutte le sedi | D37: INFORMATICA | E37: 2025 | F37: AAA200-7-A.I.5.g) Altre immobilizzazioni immateriali | G37: Malattie rare | H37: RAR_01 | O37: 50000 | Q37: 50000 | R37: 50000 | AF37: 50000 | AH37: 50000 | AI37: 0 | AK37: 0 | AL37: =IF(AND(OR(C37="",#REF!="",F37="",G37="",H37=""),AND(R37<>0)),1,0) ->  | AM37: 0
A38: 500.Azienda Zero | B38: 500.Azienda Zero | C38: tutte le sedi | D38: INFORMATICA | E38: 2025 | F38: AAA200-7-A.I.5.g) Altre immobilizzazioni immateriali | G38: RISAccordo Quadro "Servizi applicativi e l'affidamento di servizi di supporto in ambito sanità digitale - sistemi informativi clinico-assistenziali" Lotto 1 - Realizzazione del Sistema di RIS-PACS per gli Enti Sanitari della Regione Veneto. | H38: RIS_01 | O38: 1350000 | Q38: 1350000 | R38: 1350000 | AF38: 1350000 | AH38: 1350000 | AI38: 0 | AK38: 0 | AL38: =IF(AND(OR(C38="",#REF!="",F38="",G38="",H38=""),AND(R38<>0)),1,0) ->  | AM38: 0
A39: 500.Azienda Zero | B39: 500.Azienda Zero | C39: tutte le sedi | D39: INFORMATICA | E39: 2025 | F39: AAA100-7-A.I.3.c) Diritti di brevetto e diritti di utilizzazione delle opere d'ingegno - altri | G39: Informatizzazione Rete Oncologica Veneta | H39: ROV_01 | O39: 460000 | Q39: 460000 | R39: 460000 | AF39: 460000 | AH39: 460000 | AI39: 0 | AK39: 0 | AL39: =IF(AND(OR(C39="",#REF!="",F39="",G39="",H39=""),AND(R39<>0)),1,0) ->  | AM39: 0
A40: 500.Azienda Zero | B40: 500.Azienda Zero | C40: tutte le sedi | D40: INFORMATICA | E40: 2025 | F40: AAA200-7-A.I.5.g) Altre immobilizzazioni immateriali | G40: Servizi Screening | H40: SCR_01 | O40: 585600 | Q40: 585600 | R40: 585600 | AF40: 585600 | AH40: 585600 | AI40: 0 | AK40: 0 | AL40: =IF(AND(OR(C40="",#REF!="",F40="",G40="",H40=""),AND(R40<>0)),1,0) ->  | AM40: 0
A41: 500.Azienda Zero | B41: 500.Azienda Zero | C41: tutte le sedi | D41: INFORMATICA | E41: 2025 | F41: AAA200-7-A.I.5.g) Altre immobilizzazioni immateriali | G41: SECAccordo Quadro "Servizi Applicativi in ottica Cloud (SAC) e servizi di PMO per le PA" Lotto 4 - Servizi per Security frame work e portali | H41: SEC_01 | O41: 10000 | Q41: 10000 | R41: 10000 | AF41: 10000 | AH41: 10000 | AI41: 0 | AK41: 0 | AL41: =IF(AND(OR(C41="",#REF!="",F41="",G41="",H41=""),AND(R41<>0)),1,0) ->  | AM41: 0
A42: 500.Azienda Zero | B42: 500.Azienda Zero | C42: tutte le sedi | D42: INFORMATICA | E42: 2025 | F42: AAA200-7-A.I.5.g) Altre immobilizzazioni immateriali | G42: Servizi SIO (Sistema Informativo Ospedaliero) | H42: SIO_01 | O42: 550000 | Q42: 550000 | R42: 550000 | AF42: 550000 | AH42: 550000 | AI42: 0 | AK42: 0 | AL42: =IF(AND(OR(C42="",#REF!="",F42="",G42="",H42=""),AND(R42<>0)),1,0) ->  | AM42: 0
A43: 500.Azienda Zero | B43: 500.Azienda Zero | C43: tutte le sedi | D43: INFORMATICA | E43: 2025 | F43: AAA200-7-A.I.5.g) Altre immobilizzazioni immateriali | G43: SITAccordo Quadro "Servizi applicativi e l'affidamento di servizi di supporto in ambito sanità digitale - sistemi informativi clinico-assistenziali" Lotto 1 - Sistema di Gestione del processo Trasfusionale | H43: SIT_01 | O43: 38500 | Q43: 38500 | R43: 38500 | AF43: 38500 | AH43: 38500 | AI43: 0 | AK43: 0 | AL43: =IF(AND(OR(C43="",#REF!="",F43="",G43="",H43=""),AND(R43<>0)),1,0) ->  | AM43: 0
A44: 500.Azienda Zero | B44: 500.Azienda Zero | C44: tutte le sedi | D44: INFORMATICA | E44: 2025 | F44: AAA200-7-A.I.5.g) Altre immobilizzazioni immateriali | G44: SPC CLOUD 2: AMC FSER e CSCR | H44: SPC_01 | O44: 280000 | Q44: 280000 | R44: 280000 | AF44: 280000 | AH44: 280000 | AI44: 0 | AK44: 0 | AL44: =IF(AND(OR(C44="",#REF!="",F44="",G44="",H44=""),AND(R44<>0)),1,0) ->  | AM44: 0
A45: 500.Azienda Zero | B45: 500.Azienda Zero | C45: tutte le sedi | D45: INFORMATICA | E45: 2025 | F45: AAA100-7-A.I.3.c) Diritti di brevetto e diritti di utilizzazione delle opere d'ingegno - altri | G45: Servizi SPISAL | H45: SPI_01 | O45: 195000 | Q45: 195000 | R45: 195000 | AF45: 195000 | AH45: 195000 | AI45: 0 | AK45: 0 | AL45: =IF(AND(OR(C45="",#REF!="",F45="",G45="",H45=""),AND(R45<>0)),1,0) ->  | AM45: 0
A46: 500.Azienda Zero | B46: 500.Azienda Zero | C46: tutte le sedi | D46: INFORMATICA | E46: 2025 | F46: AAA100-7-A.I.3.c) Diritti di brevetto e diritti di utilizzazione delle opere d'ingegno - altri | G46: Accordo Quadro Supply | H46: SUP_01 | O46: 1750000 | Q46: 1750000 | R46: 1750000 | AF46: 1750000 | AH46: 1750000 | AI46: 0 | AK46: 0 | AL46: =IF(AND(OR(C46="",#REF!="",F46="",G46="",H46=""),AND(R46<>0)),1,0) ->  | AM46: 0
A47: 500.Azienda Zero | B47: 500.Azienda Zero | C47: tutte le sedi | D47: INFORMATICA | E47: 2025 | F47: AAA200-7-A.I.5.g) Altre immobilizzazioni immateriali | G47: Servizio di Infrastruttura Regionale di Telemedicina | H47: TEL_01 | L47: SI | M47: H11J23001070001 | O47: 7200000 | Q47: 7200000 | R47: 7200000 | U47: 7200000 | AH47: 7200000 | AI47: 0 | AK47: 0 | AL47: =IF(AND(OR(C47="",#REF!="",F47="",G47="",H47=""),AND(R47<>0)),1,0) ->  | AM47: 0
A48: 500.Azienda Zero | B48: 500.Azienda Zero | C48: tutte le sedi | D48: INFORMATICA | E48: 2025 | F48: AAA100-7-A.I.3.c) Diritti di brevetto e diritti di utilizzazione delle opere d'ingegno - altri | G48: Servizi SIAVR (Sistema Informativo Anagrafe Vaccinale Regionale) | H48: VAC_01 | O48: 215000 | Q48: 215000 | R48: 215000 | AF48: 215000 | AH48: 215000 | AI48: 0 | AK48: 0 | AL48: =IF(AND(OR(C48="",#REF!="",F48="",G48="",H48=""),AND(R48<>0)),1,0) ->  | AM48: 0
A49: 500.Azienda Zero | B49: 500.Azienda Zero | C49: tutte le sedi | D49: INFORMATICA | E49: 2025 | F49: AAA140-7-A.I.5.a) Concessioni, licenze, marchi e diritti simili | G49: VMWARE | H49: VMW_01 | O49: 2450000 | Q49: 2450000 | R49: 2450000 | AF49: 2450000 | AH49: 2450000 | AI49: 0 | AK49: 0 | AL49: =IF(AND(OR(C49="",#REF!="",F49="",G49="",H49=""),AND(R49<>0)),1,0) ->  | AM49: 0
A50: 500.Azienda Zero | B50: 500.Azienda Zero | C50: tutte le sedi | D50: INFORMATICA | E50: 2025 | F50: AAA100-7-A.I.3.c) Diritti di brevetto e diritti di utilizzazione delle opere d'ingegno - altri | G50: Accordo Quadro "Servizi applicativi di Data Management e servizi di Project Management Office Lotto n. 1 - Biosorveglianza | H50: BIO_01 | N50: SI | O50: 20000 | Q50: 20000 | R50: 20000 | AF50: 20000 | AH50: 20000 | AI50: 0 | AK50: 0 | AL50: =IF(AND(OR(C50="",#REF!="",F50="",G50="",H50=""),AND(R50<>0)),1,0) ->  | AM50: 0
A51: 500.Azienda Zero | B51: 500.Azienda Zero | C51: tutte le sedi | D51: INFORMATICA | E51: 2025 | F51: AAA200-7-A.I.5.g) Altre immobilizzazioni immateriali | G51: Servizi di manutenzione, di help desk, di assistenza sistemistica, di supporto, di formazione e sviluppo del sistema "MyPrenota" | H51: MYP_01 | N51: SI | O51: 5000 | Q51: 5000 | R51: 5000 | AF51: 5000 | AH51: 5000 | AI51: 0 | AK51: 0 | AL51: =IF(AND(OR(C51="",#REF!="",F51="",G51="",H51=""),AND(R51<>0)),1,0) ->  | AM51: 0
A52: 500.Azienda Zero | B52: 500.Azienda Zero | C52: tutte le sedi | D52: EDILIZIA | E52: 2025 | F52: AAA160b-7-A.I.5.c.2) Altre migliorie su beni di terzi | G52: Acquisto Segnaletica e cartellonistica | H52: UOC LOGISTICA_01 | O52: 10000 | Q52: 10000 | R52: 10000 | Y52: 10000 | AH52: 10000 | AI52: 0 | AK52: 0 | AL52: =IF(AND(OR(C52="",#REF!="",F52="",G52="",H52=""),AND(R52<>0)),1,0) ->  | AM52: 0
A53: 500.Azienda Zero | B53: 500.Azienda Zero | C53: tutte le sedi | D53: EDILIZIA | E53: 2025 | F53: AAA160b-7-A.I.5.c.2) Altre migliorie su beni di terzi | G53: Installazione di batterie di accumulo per impianto fotovoltaico esistente | H53: UOC LOGISTICA_02 | O53: 30500 | Q53: 30500 | R53: 30500 | Y53: 30500 | AH53: 30500 | AI53: 0 | AK53: 0 | AL53: =IF(AND(OR(C53="",#REF!="",F53="",G53="",H53=""),AND(R53<>0)),1,0) ->  | AM53: 0
A54: 500.Azienda Zero | B54: 500.Azienda Zero | C54: tutte le sedi | D54: EDILIZIA | E54: 2025 | F54: AAA160b-7-A.I.5.c.2) Altre migliorie su beni di terzi | G54: Installazione impianto fotovoltaico con batterie di accumulo | H54: UOC LOGISTICA_03 | O54: 134200 | Q54: 134200 | R54: 134200 | Y54: 134200 | AH54: 134200 | AI54: 0 | AK54: 0 | AL54: =IF(AND(OR(C54="",#REF!="",F54="",G54="",H54=""),AND(R54<>0)),1,0) ->  | AM54: 0
A55: 500.Azienda Zero | B55: 500.Azienda Zero | C55: tutte le sedi | D55: EDILIZIA | E55: 2025 | F55: AAA160b-7-A.I.5.c.2) Altre migliorie su beni di terzi | G55: Installazione UPS per rack | H55: UOC LOGISTICA_04 | O55: 11500 | Q55: 11500 | R55: 11500 | Y55: 11500 | AH55: 11500 | AI55: 0 | AK55: 0 | AL55: =IF(AND(OR(C55="",#REF!="",F55="",G55="",H55=""),AND(R55<>0)),1,0) ->  | AM55: 0
A56: 500.Azienda Zero | B56: 500.Azienda Zero | C56: tutte le sedi | D56: EDILIZIA | E56: 2025 | F56: AAA160b-7-A.I.5.c.2) Altre migliorie su beni di terzi | G56: Interventi di manutenzione incrementativa dei fabbricati a carattere edile/impiantistico | H56: UOC LOGISTICA_05 | O56: 100000 | Q56: 100000 | R56: 100000 | Y56: 100000 | AH56: 100000 | AI56: 0 | AK56: 0 | AL56: =IF(AND(OR(C56="",#REF!="",F56="",G56="",H56=""),AND(R56<>0)),1,0) ->  | AM56: 0
A57: 500.Azienda Zero | B57: 500.Azienda Zero | C57: tutte le sedi | D57: EDILIZIA | E57: 2025 | F57: AAA160b-7-A.I.5.c.2) Altre migliorie su beni di terzi | G57: Manutenzione incrementativa ascensori | H57: UOC LOGISTICA_06 | O57: 5000 | Q57: 5000 | R57: 5000 | Y57: 5000 | AH57: 5000 | AI57: 0 | AK57: 0 | AL57: =IF(AND(OR(C57="",#REF!="",F57="",G57="",H57=""),AND(R57<>0)),1,0) ->  | AM57: 0
A58: 500.Azienda Zero | B58: 500.Azienda Zero | C58: tutte le sedi | D58: EDILIZIA | E58: 2025 | F58: AAA160b-7-A.I.5.c.2) Altre migliorie su beni di terzi | G58: Miglioramento sistema di sicurezza degli ascensori, con installazione di batterie tampone per discesa automatica al piano | H58: UOC LOGISTICA_07 | O58: 12000 | Q58: 12000 | R58: 12000 | Y58: 12000 | AH58: 12000 | AI58: 0 | AK58: 0 | AL58: =IF(AND(OR(C58="",#REF!="",F58="",G58="",H58=""),AND(R58<>0)),1,0) ->  | AM58: 0
A59: 500.Azienda Zero | B59: 500.Azienda Zero | C59: tutte le sedi | D59: EDILIZIA | E59: 2025 | F59: AAA160b-7-A.I.5.c.2) Altre migliorie su beni di terzi | G59: Sistemazione porte ascensori corpo A | H59: UOC LOGISTICA_08 | O59: 6100 | Q59: 6100 | R59: 6100 | Y59: 6100 | AH59: 6100 | AI59: 0 | AK59: 0 | AL59: =IF(AND(OR(C59="",#REF!="",F59="",G59="",H59=""),AND(R59<>0)),1,0) ->  | AM59: 0
A60: 500.Azienda Zero | B60: 500.Azienda Zero | C60: tutte le sedi | D60: EDILIZIA | E60: 2025 | F60: AAA160b-7-A.I.5.c.2) Altre migliorie su beni di terzi | G60: Sostituzione porte REI di collegamento con scale accesso da portineria nel corpo A | H60: UOC LOGISTICA_09 | O60: 10000 | Q60: 10000 | R60: 10000 | Y60: 10000 | AH60: 10000 | AI60: 0 | AK60: 0 | AL60: =IF(AND(OR(C60="",#REF!="",F60="",G60="",H60=""),AND(R60<>0)),1,0) ->  | AM60: 0
A61: 500.Azienda Zero | B61: 500.Azienda Zero | C61: tutte le sedi | D61: ATTREZZATURE | E61: 2025 | F61: AAA420-7-A.II.4.a) Attrezzature sanitarie e scientifiche | G61: Acquisto defibrillatori per sedi di Casa Rossa e Via Ugo Foscolo | H61: UOC LOGISTICA_10 | O61: 2000 | Q61: 2000 | R61: 2000 | AF61: 2000 | AH61: 2000 | AI61: 0 | AK61: 0 | AL61: =IF(AND(OR(C61="",#REF!="",F61="",G61="",H61=""),AND(R61<>0)),1,0) ->  | AM61: 0
A62: 500.Azienda Zero | B62: 500.Azienda Zero | C62: tutte le sedi | D62: ALTRO | E62: 2025 | F62: AAA450-7-A.II.5.a) Mobili e arredi | G62: Acquisto cancelleria | H62: UOC LOGISTICA_11 | O62: 1000 | Q62: 1000 | R62: 1000 | AF62: 1000 | AH62: 1000 | AI62: 0 | AK62: 0 | AL62: =IF(AND(OR(C62="",#REF!="",F62="",G62="",H62=""),AND(R62<>0)),1,0) ->  | AM62: 0
A63: 500.Azienda Zero | B63: 500.Azienda Zero | C63: tutte le sedi | D63: ALTRO | E63: 2025 | F63: AAA450-7-A.II.5.a) Mobili e arredi | G63: Acquisto Mobili e Arredi | H63: UOC LOGISTICA_12 | O63: 45000 | Q63: 45000 | R63: 45000 | AF63: 45000 | AH63: 45000 | AI63: 0 | AK63: 0 | AL63: =IF(AND(OR(C63="",#REF!="",F63="",G63="",H63=""),AND(R63<>0)),1,0) ->  | AM63: 0
A64: 500.Azienda Zero | B64: 500.Azienda Zero | C64: tutte le sedi | D64: ALTRO | E64: 2025 | F64: AAA520a-7-A.II.8.a.1) Macchine d'ufficio | G64: Acquisto cancelleria | H64: UOC LOGISTICA_13 | O64: 500 | Q64: 500 | R64: 500 | AF64: 500 | AH64: 500 | AI64: 0 | AK64: 0 | AL64: =IF(AND(OR(C64="",#REF!="",F64="",G64="",H64=""),AND(R64<>0)),1,0) ->  | AM64: 0
A65: 500.Azienda Zero | B65: 500.Azienda Zero | C65: tutte le sedi | D65: ALTRO | E65: 2025 | F65: AAA520b-7-A.II.8.a.2) Altre immobilizzazioni materiali (altri beni) | G65: Acquisto Mobili e Arredi | H65: UOC LOGISTICA_14 | O65: 5000 | Q65: 5000 | R65: 5000 | AF65: 5000 | AH65: 5000 | AI65: 0 | AK65: 0 | AL65: =IF(AND(OR(C65="",#REF!="",F65="",G65="",H65=""),AND(R65<>0)),1,0) ->  | AM65: 0
A66: 500.Azienda Zero | B66: 500.Azienda Zero | C66: tutte le sedi | D66: INFORMATICA | E66: 2025 | F66: AAA100-7-A.I.3.c) Diritti di brevetto e diritti di utilizzazione delle opere d'ingegno - altri | G66: servizi hosting e di attività di sviluppo software per l’aggiornamento ed estensione dell’applicativo “ACRA” per il Registro Tumori del Veneto | H66: ACR_01 | O66: 100000 | Q66: 100000 | R66: 100000 | AF66: 100000 | AH66: 100000 | AI66: 0 | AK66: 0 | AL66: =IF(AND(OR(C66="",#REF!="",F66="",G66="",H66=""),AND(R66<>0)),1,0) ->  | AM66: 0
A67: 500.Azienda Zero | B67: 500.Azienda Zero | C67: tutte le sedi | D67: INFORMATICA | E67: 2025 | F67: AAA100-7-A.I.3.c) Diritti di brevetto e diritti di utilizzazione delle opere d'ingegno - altri | G67: Applicativo Protocollo e delibere | H67: BAB_01 | O67: 175000 | Q67: 175000 | R67: 175000 | AF67: 175000 | AH67: 175000 | AI67: 0 | AK67: 0 | AL67: =IF(AND(OR(C67="",#REF!="",F67="",G67="",H67=""),AND(R67<>0)),1,0) ->  | AM67: 0
A68: 500.Azienda Zero | B68: 500.Azienda Zero | C68: tutte le sedi | D68: INFORMATICA | E68: 2025 | F68: AAA200-7-A.I.5.g) Altre immobilizzazioni immateriali | G68: Portale CRAT | H68: CRA_01 | O68: 30000 | Q68: 30000 | R68: 30000 | AF68: 30000 | AH68: 30000 | AI68: 0 | AK68: 0 | AL68: =IF(AND(OR(C68="",#REF!="",F68="",G68="",H68=""),AND(R68<>0)),1,0) ->  | AM68: 0
A69: 500.Azienda Zero | B69: 500.Azienda Zero | C69: tutte le sedi | D69: ALTRO | E69: 2025 | F69: AAA520a-7-A.II.8.a.1) Macchine d'ufficio | G69: Acquisto PC, Server e attrezzature per videoconferenza | H69: HWV_01 | O69: 450000 | Q69: 450000 | R69: 450000 | AF69: 450000 | AH69: 450000 | AI69: 0 | AK69: 0 | AL69: =IF(AND(OR(C69="",#REF!="",F69="",G69="",H69=""),AND(R69<>0)),1,0) ->  | AM69: 0
A70: 500.Azienda Zero | B70: 500.Azienda Zero | C70: tutte le sedi | D70: INFORMATICA | E70: 2025 | F70: AAA140-7-A.I.5.a) Concessioni, licenze, marchi e diritti simili | G70: Manutenzione sito SER (Servizio Epidemiologico Regionale) e sito RTV (Registro Tumori del Veneto) | H70: SER_01 | O70: 15000 | Q70: 15000 | R70: 15000 | AF70: 15000 | AH70: 15000 | AI70: 0 | AK70: 0 | AL70: =IF(AND(OR(C70="",#REF!="",F70="",G70="",H70=""),AND(R70<>0)),1,0) ->  | AM70: 0
A71: 500.Azienda Zero | B71: 500.Azienda Zero | C71: tutte le sedi | D71: INFORMATICA | E71: 2025 | F71: AAA100-7-A.I.3.c) Diritti di brevetto e diritti di utilizzazione delle opere d'ingegno - altri | G71: SIRIT (Sistema Informatizzato per la raccolta di informazioni sulla tratta) | H71: SIR_01 | O71: 85400 | Q71: 85400 | R71: =+P71+Q71 -> 85400 | AF71: 85400 | AH71: =SUM(T71:AG71) -> 85400 | AI71: 0 | AK71: 0 | AL71: =IF(AND(OR(C71="",#REF!="",F71="",G71="",H71=""),AND(R71<>0)),1,0) ->  | AM71: =IF(AND(L71="SI",M71=""),1,0) -> 0
A72: 500.Azienda Zero | B72: 500.Azienda Zero | C72: tutte le sedi | D72: INFORMATICA | E72: 2025 | F72: AAA121d-7-A.I.4.d.4) Altre immobilizzazioni immateriali | G72: Investimento 1.1.1: Ammodernamento del parco tecnologico e digitale ospedaliero (Digitalizzazione DEA) : 118Accordo Quadro "Servizi applicativi per l'affidamento di servizi di supporto in ambito sanità digitale - sistemi informativi clinico-assistenziali" Lotto 1 - Sistema di Gestione del 118 | H72: 118_01 | L72: SI | M72: B36G21073020006, B96G21060470006, I46G21001710006, I26G21001460006, I96G21006100006, J76G21005050006, J76G21005060006, J26G21005490006, J96G21006690006, I76G21003010006, B16G21062360006, I86G21002960006, I46G21001690006, I56G21002460006, I46G21001700006, H76G21002260006, H96G21002410006, I36G21002280006, I36G21002290006, F16G21002120006, F66G21001380006, F66G21001370006, I91B21006770001, E36G21004850006 | O72: 1610000 | R72: 0 | S72: 1610000 | U72: 1610000 | AH72: 1610000 | AI72: =S72-AH72 -> 0 | AK72: 0 | AL72: =IF(AND(OR(C72="",#REF!="",F72="",G72="",H72=""),AND(R72<>0)),1,0) ->  | AM72: 0
A73: 500.Azienda Zero | B73: 500.Azienda Zero | C73: tutte le sedi | D73: INFORMATICA | E73: 2025 | F73: AAA121d-7-A.I.4.d.4) Altre immobilizzazioni immateriali | G73: Investimento 1.1.1: Ammodernamento del parco tecnologico e digitale ospedaliero (Digitalizzazione DEA) : ANAGAccordo Quadro "Servizi Applicativi in ottica Cloud (SAC) e servizi di PMO per le PA" Lotto 4 - Servizi per la gestione delle anagrafi regionali | H73: ANA_01 | L73: SI | M73: B36G21073020006, B96G21060470006, I46G21001710006, I26G21001460006, I96G21006100006, J76G21005050006, J76G21005060006, J26G21005490006, J96G21006690006, I76G21003010006, B16G21062360006, I86G21002960006, I46G21001690006, I56G21002460006, I46G21001700006, H76G21002260006, H96G21002410006, I36G21002280006, I36G21002290006, F16G21002120006, F66G21001380006, F66G21001370006, I91B21006770001, E36G21004850006 | O73: 610000 | R73: 0 | S73: 610000 | U73: 610000 | AH73: 610000 | AI73: =S73-AH73 -> 0 | AK73: 0 | AL73: =IF(AND(OR(C73="",#REF!="",F73="",G73="",H73=""),AND(R73<>0)),1,0) ->  | AM73: 0
A74: 500.Azienda Zero | B74: 500.Azienda Zero | C74: tutte le sedi | D74: INFORMATICA | E74: 2025 | F74: AAA121d-7-A.I.4.d.4) Altre immobilizzazioni immateriali | G74: Investimento 1.1.1: Ammodernamento del parco tecnologico e digitale ospedaliero (Digitalizzazione DEA) : APAccordo Quadro "Servizi applicativi e l'affidamento di servizi di supporto in ambito sanità digitale - sistemi informativi clinico-assistenziali" Lotto 1 - Realizzazione della soluzione digitale di Anatomia Patologica per gli Enti Sanitari della Regione Veneto | H74: ANP_01 | L74: SI | M74: B36G21073020006, B96G21060470006, I46G21001710006, I26G21001460006, I96G21006100006, J76G21005050006, J76G21005060006, J26G21005490006, J96G21006690006, I76G21003010006, B16G21062360006, I86G21002960006, I46G21001690006, I56G21002460006, I46G21001700006, H76G21002260006, H96G21002410006, I36G21002280006, I36G21002290006, F16G21002120006, F66G21001380006, F66G21001370006, I91B21006770001, E36G21004850006 | O74: 1950000 | R74: 0 | S74: 1950000 | U74: 1950000 | AH74: 1950000 | AI74: =S74-AH74 -> 0 | AK74: 0 | AL74: =IF(AND(OR(C74="",#REF!="",F74="",G74="",H74=""),AND(R74<>0)),1,0) ->  | AM74: 0
A75: 500.Azienda Zero | B75: 500.Azienda Zero | C75: tutte le sedi | D75: INFORMATICA | E75: 2025 | F75: AAA100-7-A.I.3.c) Diritti di brevetto e diritti di utilizzazione delle opere d'ingegno - altri | G75: Investimento 1.1.1: Ammodernamento del parco tecnologico e digitale ospedaliero (Digitalizzazione DEA) : Continuità dei servizi FSER SAR, Anagrafi, Security e Portali, Biosorveglianza e Piattaforma farmaceutica | H75: APP_01 | L75: SI | M75: C97H22002670001 | O75: 3100000 | Q75: 3100000 | R75: 3100000 | U75: 3100000 | AH75: 3100000 | AI75: =R75-AH75 -> 0 | AK75: 0 | AL75: =IF(AND(OR(C75="",#REF!="",F75="",G75="",H75=""),AND(R75<>0)),1,0) ->  | AM75: 0
A76: 500.Azienda Zero | B76: 500.Azienda Zero | C76: tutte le sedi | D76: INFORMATICA | E76: 2025 | F76: AAA100-7-A.I.3.c) Diritti di brevetto e diritti di utilizzazione delle opere d'ingegno - altri | G76: soluzioni di Bi per analisi dati di relazione con cittadino | H76: BIC_01 | L76: SI | M76: C96G22002550001 | O76: 500000 | Q76: 500000 | R76: 500000 | U76: 500000 | AH76: 500000 | AI76: 0 | AK76: 0 | AL76: =IF(AND(OR(C76="",#REF!="",F76="",G76="",H76=""),AND(R76<>0)),1,0) ->  | AM76: 0
A77: 500.Azienda Zero | B77: 500.Azienda Zero | C77: tutte le sedi | D77: INFORMATICA | E77: 2025 | F77: AAA100-7-A.I.3.c) Diritti di brevetto e diritti di utilizzazione delle opere d'ingegno - altri | G77: Digital Human e Metaverso per il miglioramento dell’esperienza del cittadino | H77: DHM_01 | L77: SI | M77: C96G22002550001 | O77: 500000 | Q77: 500000 | R77: 500000 | U77: 500000 | AH77: 500000 | AI77: 0 | AK77: 0 | AL77: =IF(AND(OR(C77="",#REF!="",F77="",G77="",H77=""),AND(R77<>0)),1,0) ->  | AM77: 0
A78: 500.Azienda Zero | B78: 500.Azienda Zero | C78: tutte le sedi | D78: INFORMATICA | E78: 2025 | F78: AAA120c-7-A.I.4.c) Diritti di brevetto e diritti di utilizzazione delle opere d'ingegno | G78: Investimento 1.1.1: Ammodernamento del parco tecnologico e digitale ospedaliero (Digitalizzazione DEA) : FSERAccordo Quadro "Servizi Applicativi in ottica Cloud (SAC) e servizi di PMO per le PA" Lotto 4 - Servizi per la gestione del FSER e del SAR | H78: FSE_01 | L78: SI | M78: B36G21073020006, B96G21060470006, I46G21001710006, I26G21001460006, I96G21006100006, J76G21005050006, J76G21005060006, J26G21005490006, J96G21006690006, I76G21003010006, B16G21062360006, I86G21002960006, I46G21001690006, I56G21002460006, I46G21001700006, H76G21002260006, H96G21002410006, I36G21002280006, I36G21002290006, F16G21002120006, F66G21001380006, F66G21001370006, I91B21006770001, E36G21004850006 | O78: 100000 | R78: 0 | S78: 100000 | U78: 100000 | AH78: 100000 | AI78: =S78-AH78 -> 0 | AK78: 0 | AL78: =IF(AND(OR(C78="",#REF!="",F78="",G78="",H78=""),AND(R78<>0)),1,0) ->  | AM78: 0
A79: 500.Azienda Zero | B79: 500.Azienda Zero | C79: tutte le sedi | D79: INFORMATICA | E79: 2025 | F79: AAA140-7-A.I.5.a) Concessioni, licenze, marchi e diritti simili | G79: Investimento 1.3.1 (b) - Adozione e utilizzo FSE da parte delle Regioni/Province autonome - Potenziamento delle infrastrutture digitali : Sistema di gestione assitenza per il fascicolo - PNRR (competenze digitali fascicolo) | H79: GAF_01 | L79: SI | M79: C97H22002670001 | O79: 1000000 | Q79: 1000000 | R79: 1000000 | U79: 1000000 | AH79: 1000000 | AI79: 0 | AK79: 0 | AL79: =IF(AND(OR(C79="",#REF!="",F79="",G79="",H79=""),AND(R79<>0)),1,0) ->  | AM79: 0
A80: 500.Azienda Zero | B80: 500.Azienda Zero | C80: tutte le sedi | D80: INFORMATICA | E80: 2025 | F80: AAA100-7-A.I.3.c) Diritti di brevetto e diritti di utilizzazione delle opere d'ingegno - altri | G80: IA - Liste attesa - PNRR (competenze digitali fascicolo) | H80: IAL_01 | L80: SI | M80: C96G22002550001 | O80: 500000 | Q80: 500000 | R80: 500000 | U80: 500000 | AH80: 500000 | AI80: 0 | AK80: 0 | AL80: =IF(AND(OR(C80="",#REF!="",F80="",G80="",H80=""),AND(R80<>0)),1,0) ->  | AM80: 0
A81: 500.Azienda Zero | B81: 500.Azienda Zero | C81: tutte le sedi | D81: INFORMATICA | E81: 2025 | F81: AAA100-7-A.I.3.c) Diritti di brevetto e diritti di utilizzazione delle opere d'ingegno - altri | G81: Interventi per incremento competenze digitali FSE - Conto PNRR per informazione/competenze digitali | H81: INC_01 | L81: SI | M81: C96G22002550001 | O81: 1588000 | Q81: 1588000 | R81: 1588000 | U81: 1588000 | AH81: 1588000 | AI81: 0 | AK81: 0 | AL81: =IF(AND(OR(C81="",#REF!="",F81="",G81="",H81=""),AND(R81<>0)),1,0) ->  | AM81: 0
A82: 500.Azienda Zero | B82: 500.Azienda Zero | C82: tutte le sedi | D82: INFORMATICA | E82: 2025 | F82: AAA121d-7-A.I.4.d.4) Altre immobilizzazioni immateriali | G82: Investimento 1.1.1: Ammodernamento del parco tecnologico e digitale ospedaliero (Digitalizzazione DEA) : LISAccordo Quadro "Servizi applicativi e l'affidamento di servizi di supporto in ambito sanità digitale - sistemi informativi clinico-assistenziali" Lotto 1 - Realizzazione di una soluzione standardizzata e centralizzata dei sistemi informativi di laboratorio di analisi cliniche (LIS), incluse la genetica, microbiologia e biologia molecolare. | H82: LIS_01 | L82: SI | M82: B36G21073020006, B96G21060470006, I46G21001710006, I26G21001460006, I96G21006100006, J76G21005050006, J76G21005060006, J26G21005490006, J96G21006690006, I76G21003010006, B16G21062360006, I86G21002960006, I46G21001690006, I56G21002460006, I46G21001700006, H76G21002260006, H96G21002410006, I36G21002280006, I36G21002290006, F16G21002120006, F66G21001380006, F66G21001370006, I91B21006770001, E36G21004850006 | O82: 4200000 | R82: 0 | S82: 4200000 | U82: 4200000 | AH82: 4200000 | AI82: =S82-AH82 -> 0 | AK82: 0 | AL82: =IF(AND(OR(C82="",#REF!="",F82="",G82="",H82=""),AND(R82<>0)),1,0) ->  | AM82: 0
A83: 500.Azienda Zero | B83: 500.Azienda Zero | C83: tutte le sedi | D83: INFORMATICA | E83: 2025 | F83: AAA121d-7-A.I.4.d.4) Altre immobilizzazioni immateriali | G83: Investimento 1.1.1: Ammodernamento del parco tecnologico e digitale ospedaliero (Digitalizzazione DEA) : LOGAccordo Quadro "Servizi applicativi e l'affidamento di servizi di supporto in ambito sanità digitale - sistemi informativi clinico-assistenziali" Lotto 1 - Sistema di Logistica del Farmaco | H83: LOG_01 | L83: SI | M83: B36G21073020006, B96G21060470006, I46G21001710006, I26G21001460006, I96G21006100006, J76G21005050006, J76G21005060006, J26G21005490006, J96G21006690006, I76G21003010006, B16G21062360006, I86G21002960006, I46G21001690006, I56G21002460006, I46G21001700006, H76G21002260006, H96G21002410006, I36G21002280006, I36G21002290006, F16G21002120006, F66G21001380006, F66G21001370006, I91B21006770001, E36G21004850006 | O83: 3100000 | R83: 0 | S83: 3100000 | U83: 3100000 | AH83: 3100000 | AI83: =S83-AH83 -> 0 | AK83: 0 | AL83: =IF(AND(OR(C83="",#REF!="",F83="",G83="",H83=""),AND(R83<>0)),1,0) ->  | AM83: 0
A84: 500.Azienda Zero | B84: 500.Azienda Zero | C84: tutte le sedi | D84: INFORMATICA | E84: 2025 | F84: AAA100-7-A.I.3.c) Diritti di brevetto e diritti di utilizzazione delle opere d'ingegno - altri | G84: presa in carico PDTA - PNRR (competenze digitali fascicolo) | H84: PDT_01 | L84: SI | M84: C96G22002550001 | O84: 200000 | Q84: 200000 | R84: 200000 | U84: 200000 | AH84: 200000 | AI84: 0 | AK84: 0 | AL84: =IF(AND(OR(C84="",#REF!="",F84="",G84="",H84=""),AND(R84<>0)),1,0) ->  | AM84: 0
A85: 500.Azienda Zero | B85: 500.Azienda Zero | C85: tutte le sedi | D85: INFORMATICA | E85: 2025 | F85: AAA121d-7-A.I.4.d.4) Altre immobilizzazioni immateriali | G85: Investimento 1.1.1: Ammodernamento del parco tecnologico e digitale ospedaliero (Digitalizzazione DEA) : PMAAccordo Quadro "Servizi applicativi e l'affidamento di servizi di supporto in ambito sanità digitale - sistemi informativi clinico-assistenziali" Lotto 1 - Realizzazione della soluzione digitale per la gestione dei centri di Procreazione Medicalmente Assistita (PMA) della Regione Veneto. | H85: PMA_01 | L85: SI | M85: B36G21073020006, B96G21060470006, I46G21001710006, I26G21001460006, I96G21006100006, J76G21005050006, J76G21005060006, J26G21005490006, J96G21006690006, I76G21003010006, B16G21062360006, I86G21002960006, I46G21001690006, I56G21002460006, I46G21001700006, H76G21002260006, H96G21002410006, I36G21002280006, I36G21002290006, F16G21002120006, F66G21001380006, F66G21001370006, I91B21006770001, E36G21004850006 | O85: 250000 | R85: 0 | S85: 250000 | U85: 250000 | AH85: 250000 | AI85: =S85-AH85 -> 0 | AK85: 0 | AL85: =IF(AND(OR(C85="",#REF!="",F85="",G85="",H85=""),AND(R85<>0)),1,0) ->  | AM85: 0
A86: 500.Azienda Zero | B86: 500.Azienda Zero | C86: tutte le sedi | D86: INFORMATICA | E86: 2025 | F86: AAA121d-7-A.I.4.d.4) Altre immobilizzazioni immateriali | G86: Investimento 1.1.1: Ammodernamento del parco tecnologico e digitale ospedaliero (Digitalizzazione DEA) : Adesione all'Accordo Quadro Consip S.p.A. "Servizi applicativi e servizi di supporto in ambito Sanità digitale: Sistemi informativi Clinico-Assistenziali per le Pubbliche Amministrazioni del SSN - Lotto 5 NORD" | H86: PRR_01 | L86: SI | M86: B36G21073020006, B96G21060470006, I46G21001710006, I26G21001460006, I96G21006100006, J76G21005050006, J76G21005060006, J26G21005490006, J96G21006690006, I76G21003010006, B16G21062360006, I86G21002960006, I46G21001690006, I56G21002460006, I46G21001700006, H76G21002260006, H96G21002410006, I36G21002280006, I36G21002290006, F16G21002120006, F66G21001380006, F66G21001370006, I91B21006770001, E36G21004850006 | O86: 2500000 | R86: 0 | S86: 2500000 | U86: 2500000 | AH86: 2500000 | AI86: =S86-AH86 -> 0 | AK86: 0 | AL86: =IF(AND(OR(C86="",#REF!="",F86="",G86="",H86=""),AND(R86<>0)),1,0) ->  | AM86: 0
A87: 500.Azienda Zero | B87: 500.Azienda Zero | C87: tutte le sedi | D87: INFORMATICA | E87: 2025 | F87: AAA100-7-A.I.3.c) Diritti di brevetto e diritti di utilizzazione delle opere d'ingegno - altri | G87: SANITA' DIGITALE Adesione all'Accordo Quadro Consip S.p.A. "Servizi applicativi e servizi di supporto in ambito Sanità digitale: Sistemi informativi Clinico-Assistenziali per le Pubbliche Amministrazioni del SSN - Lotto 5 NORD"-Regione | H87: PRR_02 | L87: SI | M87: C96G22002550001 | O87: 500000 | Q87: 500000 | R87: 500000 | X87: 500000 | AH87: 500000 | AI87: 0 | AK87: 0 | AL87: =IF(AND(OR(C87="",#REF!="",F87="",G87="",H87=""),AND(R87<>0)),1,0) ->  | AM87: 0
A88: 500.Azienda Zero | B88: 500.Azienda Zero | C88: tutte le sedi | D88: INFORMATICA | E88: 2025 | F88: AAA121d-7-A.I.4.d.4) Altre immobilizzazioni immateriali | G88: Investimento 1.1.1: Ammodernamento del parco tecnologico e digitale ospedaliero (Digitalizzazione DEA) : RISAccordo Quadro "Servizi applicativi e l'affidamento di servizi di supporto in ambito sanità digitale - sistemi informativi clinico-assistenziali" Lotto 1 - Realizzazione del Sistema di RIS-PACS per gli Enti Sanitari della Regione Veneto. | H88: RIS_01 | L88: SI | M88: B36G21073020006, B96G21060470006, I46G21001710006, I26G21001460006, I96G21006100006, J76G21005050006, J76G21005060006, J26G21005490006, J96G21006690006, I76G21003010006, B16G21062360006, I86G21002960006, I46G21001690006, I56G21002460006, I46G21001700006, H76G21002260006, H96G21002410006, I36G21002280006, I36G21002290006, F16G21002120006, F66G21001380006, F66G21001370006, I91B21006770001, E36G21004850006 | O88: 1220000 | R88: 0 | S88: 1220000 | U88: 1220000 | AH88: 1220000 | AI88: =S88-AH88 -> 0 | AK88: 0 | AL88: =IF(AND(OR(C88="",#REF!="",F88="",G88="",H88=""),AND(R88<>0)),1,0) ->  | AM88: 0
A89: 500.Azienda Zero | B89: 500.Azienda Zero | C89: tutte le sedi | D89: INFORMATICA | E89: 2025 | F89: AAA120c-7-A.I.4.c) Diritti di brevetto e diritti di utilizzazione delle opere d'ingegno | G89: Investimento 1.1.1: Ammodernamento del parco tecnologico e digitale ospedaliero (Digitalizzazione DEA) : SECAccordo Quadro "Servizi Applicativi in ottica Cloud (SAC) e servizi di PMO per le PA" Lotto 4 - Servizi per Security frame work e portali | H89: SEC_01 | L89: SI | M89: B36G21073020006, B96G21060470006, I46G21001710006, I26G21001460006, I96G21006100006, J76G21005050006, J76G21005060006, J26G21005490006, J96G21006690006, I76G21003010006, B16G21062360006, I86G21002960006, I46G21001690006, I56G21002460006, I46G21001700006, H76G21002260006, H96G21002410006, I36G21002280006, I36G21002290006, F16G21002120006, F66G21001380006, F66G21001370006, I91B21006770001, E36G21004850006 | O89: 150000 | R89: 0 | S89: 150000 | U89: 150000 | AH89: 150000 | AI89: =S89-AH89 -> 0 | AK89: 0 | AL89: =IF(AND(OR(C89="",#REF!="",F89="",G89="",H89=""),AND(R89<>0)),1,0) ->  | AM89: 0
A90: 500.Azienda Zero | B90: 500.Azienda Zero | C90: tutte le sedi | D90: INFORMATICA | E90: 2025 | F90: AAA121d-7-A.I.4.d.4) Altre immobilizzazioni immateriali | G90: Investimento 1.1.1: Ammodernamento del parco tecnologico e digitale ospedaliero (Digitalizzazione DEA) : SITAccordo Quadro "Servizi applicativi e l'affidamento di servizi di supporto in ambito sanità digitale - sistemi informativi clinico-assistenziali" Lotto 1 - Sistema di Gestione del processo Trasfusionale | H90: SIT_01 | L90: SI | M90: B36G21073020006, B96G21060470006, I46G21001710006, I26G21001460006, I96G21006100006, J76G21005050006, J76G21005060006, J26G21005490006, J96G21006690006, I76G21003010006, B16G21062360006, I86G21002960006, I46G21001690006, I56G21002460006, I46G21001700006, H76G21002260006, H96G21002410006, I36G21002280006, I36G21002290006, F16G21002120006, F66G21001380006, F66G21001370006, I91B21006770001, E36G21004850006 | O90: 2100000 | R90: 0 | S90: 2100000 | U90: 2100000 | AH90: 2100000 | AI90: =S90-AH90 -> 0 | AK90: 0 | AL90: =IF(AND(OR(C90="",#REF!="",F90="",G90="",H90=""),AND(R90<>0)),1,0) ->  | AM90: 0
A91: 500.Azienda Zero | B91: 500.Azienda Zero | C91: tutte le sedi | D91: INFORMATICA | E91: 2025 | F91: AAA100-7-A.I.3.c) Diritti di brevetto e diritti di utilizzazione delle opere d'ingegno - altri | G91: Accordo Quadro Supply | H91: SUP_01 | L91: SI | M91: C97H22002670001; C97H22003120001; C97H22003130001; C97H22003140001; C97H22003150001 | O91: 850000 | Q91: 850000 | R91: 850000 | U91: 850000 | AH91: 850000 | AI91: 0 | AK91: =+R91-AH91 -> 0 | AL91: =IF(AND(OR(C91="",#REF!="",F91="",G91="",H91=""),AND(R91<>0)),1,0) ->  | AM91: 0
A92: 500.Azienda Zero | B92: 500.Azienda Zero | C92: tutte le sedi | D92: INFORMATICA | E92: 2026 | F92: AAA200-7-A.I.5.g) Altre immobilizzazioni immateriali | G92: 118Accordo Quadro "Servizi applicativi per l'affidamento di servizi di supporto in ambito sanità digitale - sistemi informativi clinico-assistenziali" Lotto 1 - Sistema di Gestione del 118 | H92: 118_01 | O92: 100000 | Q92: 100000 | R92: 100000 | AF92: 100000 | AH92: 100000 | AI92: 0 | AK92: 0 | AL92: =IF(AND(OR(C92="",#REF!="",F92="",G92="",H92=""),AND(R92<>0)),1,0) ->  | AM92: 0
A93: 500.Azienda Zero | B93: 500.Azienda Zero | C93: tutte le sedi | D93: INFORMATICA | E93: 2026 | F93: AAA200-7-A.I.5.g) Altre immobilizzazioni immateriali | G93: APAccordo Quadro "Servizi applicativi e l'affidamento di servizi di supporto in ambito sanità digitale - sistemi informativi clinico-assistenziali" Lotto 1 - Realizzazione della soluzione digitale di Anatomia Patologica per gli Enti Sanitari della Regione Veneto | H93: ANP_01 | O93: 145000 | Q93: 145000 | R93: 145000 | AF93: 145000 | AH93: 145000 | AI93: 0 | AK93: 0 | AL93: =IF(AND(OR(C93="",#REF!="",F93="",G93="",H93=""),AND(R93<>0)),1,0) ->  | AM93: 0
A94: 500.Azienda Zero | B94: 500.Azienda Zero | C94: tutte le sedi | D94: INFORMATICA | E94: 2026 | F94: AAA100-7-A.I.3.c) Diritti di brevetto e diritti di utilizzazione delle opere d'ingegno - altri | G94: Continuità dei servizi FSER SAR, Anagrafi, Security e Portali, Biosorveglianza e Piattaforma farmaceutica | H94: APP_01 | O94: 4200000 | Q94: 4200000 | R94: 4200000 | AF94: 4200000 | AH94: 4200000 | AI94: 0 | AK94: 0 | AL94: =IF(AND(OR(C94="",#REF!="",F94="",G94="",H94=""),AND(R94<>0)),1,0) ->  | AM94: 0
A95: 500.Azienda Zero | B95: 500.Azienda Zero | C95: tutte le sedi | D95: INFORMATICA | E95: 2026 | F95: AAA100-7-A.I.3.c) Diritti di brevetto e diritti di utilizzazione delle opere d'ingegno - altri | G95: Affidamento diretto Arsenal | H95: ARS_01 | O95: 700000 | Q95: 700000 | R95: 700000 | AF95: 700000 | AH95: 700000 | AI95: 0 | AK95: 0 | AL95: =IF(AND(OR(C95="",#REF!="",F95="",G95="",H95=""),AND(R95<>0)),1,0) ->  | AM95: 0
A96: 500.Azienda Zero | B96: 500.Azienda Zero | C96: tutte le sedi | D96: INFORMATICA | E96: 2026 | F96: AAA200-7-A.I.5.g) Altre immobilizzazioni immateriali | G96: Piattaforma ARXIVAR | H96: ARX_01 | O96: 4500 | Q96: 4500 | R96: 4500 | AF96: 4500 | AH96: 4500 | AI96: 0 | AK96: 0 | AL96: =IF(AND(OR(C96="",#REF!="",F96="",G96="",H96=""),AND(R96<>0)),1,0) ->  | AM96: 0
A97: 500.Azienda Zero | B97: 500.Azienda Zero | C97: tutte le sedi | D97: INFORMATICA | E97: 2026 | F97: AAA100-7-A.I.3.c) Diritti di brevetto e diritti di utilizzazione delle opere d'ingegno - altri | G97: Servizi Sw Atlante - Charta | H97: ATC_01 | O97: 33500 | Q97: 33500 | R97: 33500 | AF97: 33500 | AH97: 33500 | AI97: 0 | AK97: 0 | AL97: =IF(AND(OR(C97="",#REF!="",F97="",G97="",H97=""),AND(R97<>0)),1,0) ->  | AM97: 0
A98: 500.Azienda Zero | B98: 500.Azienda Zero | C98: tutte le sedi | D98: INFORMATICA | E98: 2026 | F98: AAA200-7-A.I.5.g) Altre immobilizzazioni immateriali | G98: Servizi software CACEDEM (Cartella Clinica Elettronica Demenze) | H98: CAC_01 | O98: 30000 | Q98: 30000 | R98: 30000 | AF98: 30000 | AH98: 30000 | AI98: 0 | AK98: 0 | AL98: =IF(AND(OR(C98="",#REF!="",F98="",G98="",H98=""),AND(R98<>0)),1,0) ->  | AM98: 0
A99: 500.Azienda Zero | B99: 500.Azienda Zero | C99: tutte le sedi | D99: INFORMATICA | E99: 2026 | F99: AAA200-7-A.I.5.g) Altre immobilizzazioni immateriali | G99: Servizi CREV (Centro Regionale Emidemiologia Veterinaria) - LOTTO 1 | H99: CRE_01 | O99: 420000 | Q99: 420000 | R99: 420000 | AF99: 420000 | AH99: 420000 | AI99: 0 | AK99: 0 | AL99: =IF(AND(OR(C99="",#REF!="",F99="",G99="",H99=""),AND(R99<>0)),1,0) ->  | AM99: 0
A100: 500.Azienda Zero | B100: 500.Azienda Zero | C100: tutte le sedi | D100: INFORMATICA | E100: 2026 | F100: AAA200-7-A.I.5.g) Altre immobilizzazioni immateriali | G100: Servizi CREV (Centro Regionale Emidemiologia Veterinaria) - LOTTO 2 | H100: CRE_02 | O100: 128000 | Q100: 128000 | R100: 128000 | AF100: 128000 | AH100: 128000 | AI100: 0 | AK100: 0 | AL100: =IF(AND(OR(C100="",#REF!="",F100="",G100="",H100=""),AND(R100<>0)),1,0) ->  | AM100: 0
A101: 500.Azienda Zero | B101: 500.Azienda Zero | C101: tutte le sedi | D101: INFORMATICA | E101: 2026 | F101: AAA100-7-A.I.3.c) Diritti di brevetto e diritti di utilizzazione delle opere d'ingegno - altri | G101: Accordo Quadro Demand, sicurezza e privacy | H101: DEM_01 | O101: 460000 | Q101: 460000 | R101: 460000 | AF101: 460000 | AH101: 460000 | AI101: 0 | AK101: 0 | AL101: =IF(AND(OR(C101="",#REF!="",F101="",G101="",H101=""),AND(R101<>0)),1,0) ->  | AM101: 0
A102: 500.Azienda Zero | B102: 500.Azienda Zero | C102: tutte le sedi | D102: INFORMATICA | E102: 2026 | F102: AAA200-7-A.I.5.g) Altre immobilizzazioni immateriali | G102: Applicativo "Registro Veneto di Dialisi e Trapianto" | H102: DET_01 | O102: 20000 | Q102: 20000 | R102: 20000 | AF102: 20000 | AH102: 20000 | AI102: 0 | AK102: 0 | AL102: =IF(AND(OR(C102="",#REF!="",F102="",G102="",H102=""),AND(R102<>0)),1,0) ->  | AM102: 0
A103: 500.Azienda Zero | B103: 500.Azienda Zero | C103: tutte le sedi | D103: INFORMATICA | E103: 2026 | F103: AAA100-7-A.I.3.c) Diritti di brevetto e diritti di utilizzazione delle opere d'ingegno - altri | G103: Accordo Quadro "Servizi applicativi di Data Management e servizi di Project Management Office Lotto n. 2 - DataWareHouse | H103: DWH_01 | O103: 3600000 | Q103: 3600000 | R103: 3600000 | AF103: 3600000 | AH103: 3600000 | AI103: 0 | AK103: 0 | AL103: =IF(AND(OR(C103="",#REF!="",F103="",G103="",H103=""),AND(R103<>0)),1,0) ->  | AM103: 0
A104: 500.Azienda Zero | B104: 500.Azienda Zero | C104: tutte le sedi | D104: INFORMATICA | E104: 2026 | F104: AAA200-7-A.I.5.g) Altre immobilizzazioni immateriali | G104: Piattaforma ECM | H104: ECM_01 | O104: 150000 | Q104: 150000 | R104: 150000 | AF104: 150000 | AH104: 150000 | AI104: 0 | AK104: 0 | AL104: =IF(AND(OR(C104="",#REF!="",F104="",G104="",H104=""),AND(R104<>0)),1,0) ->  | AM104: 0
A105: 500.Azienda Zero | B105: 500.Azienda Zero | C105: tutte le sedi | D105: INFORMATICA | E105: 2026 | F105: AAA200-7-A.I.5.g) Altre immobilizzazioni immateriali | G105: Piattaforma sperimentazioni farmaci: servizio SaaS | H105: FAR_02 | O105: 55000 | Q105: 55000 | R105: 55000 | AF105: 55000 | AH105: 55000 | AI105: 0 | AK105: 0 | AL105: =IF(AND(OR(C105="",#REF!="",F105="",G105="",H105=""),AND(R105<>0)),1,0) ->  | AM105: 0
A106: 500.Azienda Zero | B106: 500.Azienda Zero | C106: tutte le sedi | D106: INFORMATICA | E106: 2026 | F106: AAA200-7-A.I.5.g) Altre immobilizzazioni immateriali | G106: Graduatoria farmacisti | H106: GRF_01 | O106: 10000 | Q106: 10000 | R106: 10000 | AF106: 10000 | AH106: 10000 | AI106: 0 | AK106: 0 | AL106: =IF(AND(OR(C106="",#REF!="",F106="",G106="",H106=""),AND(R106<>0)),1,0) ->  | AM106: 0
A107: 500.Azienda Zero | B107: 500.Azienda Zero | C107: tutte le sedi | D107: INFORMATICA | E107: 2026 | F107: AAA200-7-A.I.5.g) Altre immobilizzazioni immateriali | G107: Servizi software ICD (Impegnativa di Cura Domiciliare) | H107: ICD_01 | O107: 31800 | Q107: 31800 | R107: 31800 | AF107: 31800 | AH107: 31800 | AI107: 0 | AK107: 0 | AL107: =IF(AND(OR(C107="",#REF!="",F107="",G107="",H107=""),AND(R107<>0)),1,0) ->  | AM107: 0
A108: 500.Azienda Zero | B108: 500.Azienda Zero | C108: tutte le sedi | D108: INFORMATICA | E108: 2026 | F108: AAA100-7-A.I.3.c) Diritti di brevetto e diritti di utilizzazione delle opere d'ingegno - altri | G108: Acquisto licenze (compresa "Denodo Enterprise Subscription License") | H108: LIC_01 | O108: 75000 | Q108: 75000 | R108: 75000 | AF108: 75000 | AH108: 75000 | AI108: 0 | AK108: 0 | AL108: =IF(AND(OR(C108="",#REF!="",F108="",G108="",H108=""),AND(R108<>0)),1,0) ->  | AM108: 0
A109: 500.Azienda Zero | B109: 500.Azienda Zero | C109: tutte le sedi | D109: INFORMATICA | E109: 2026 | F109: AAA120c-7-A.I.4.c) Diritti di brevetto e diritti di utilizzazione delle opere d'ingegno | G109: Acquisto licenze (compresa "Denodo Enterprise Subscription License") | H109: LIC_01 | O109: 42000 | Q109: 42000 | R109: 42000 | AF109: 42000 | AH109: 42000 | AI109: 0 | AK109: 0 | AL109: =IF(AND(OR(C109="",#REF!="",F109="",G109="",H109=""),AND(R109<>0)),1,0) ->  | AM109: 0
A110: 500.Azienda Zero | B110: 500.Azienda Zero | C110: tutte le sedi | D110: INFORMATICA | E110: 2026 | F110: AAA140-7-A.I.5.a) Concessioni, licenze, marchi e diritti simili | G110: Acquisto licenze (compresa "Denodo Enterprise Subscription License") | H110: LIC_01 | O110: 150000 | Q110: 150000 | R110: 150000 | AF110: 150000 | AH110: 150000 | AI110: 0 | AK110: 0 | AL110: =IF(AND(OR(C110="",#REF!="",F110="",G110="",H110=""),AND(R110<>0)),1,0) ->  | AM110: 0
A111: 500.Azienda Zero | B111: 500.Azienda Zero | C111: tutte le sedi | D111: INFORMATICA | E111: 2026 | F111: AAA200-7-A.I.5.g) Altre immobilizzazioni immateriali | G111: LISAccordo Quadro "Servizi applicativi e l'affidamento di servizi di supporto in ambito sanità digitale - sistemi informativi clinico-assistenziali" Lotto 1 - Realizzazione di una soluzione standardizzata e centralizzata dei sistemi informativi di laboratorio di analisi cliniche (LIS), incluse la genetica, microbiologia e biologia molecolare. | H111: LIS_01 | O111: 87000 | Q111: 87000 | R111: 87000 | AF111: 87000 | AH111: 87000 | AI111: 0 | AK111: 0 | AL111: =IF(AND(OR(C111="",#REF!="",F111="",G111="",H111=""),AND(R111<>0)),1,0) ->  | AM111: 0
A112: 500.Azienda Zero | B112: 500.Azienda Zero | C112: tutte le sedi | D112: INFORMATICA | E112: 2026 | F112: AAA200-7-A.I.5.g) Altre immobilizzazioni immateriali | G112: PMAAccordo Quadro "Servizi applicativi e l'affidamento di servizi di supporto in ambito sanità digitale - sistemi informativi clinico-assistenziali" Lotto 1 - Realizzazione della soluzione digitale per la gestione dei centri di Procreazione Medicalmente Assistita (PMA) della Regione Veneto. | H112: PMA_01 | O112: 22000 | Q112: 22000 | R112: 22000 | AF112: 22000 | AH112: 22000 | AI112: 0 | AK112: 0 | AL112: =IF(AND(OR(C112="",#REF!="",F112="",G112="",H112=""),AND(R112<>0)),1,0) ->  | AM112: 0
A113: 500.Azienda Zero | B113: 500.Azienda Zero | C113: tutte le sedi | D113: INFORMATICA | E113: 2026 | F113: AAA200-7-A.I.5.g) Altre immobilizzazioni immateriali | G113: PNCAR | H113: PNC_01 | O113: 350000 | Q113: 350000 | R113: 350000 | X113: 350000 | AH113: 350000 | AI113: 0 | AK113: 0 | AL113: =IF(AND(OR(C113="",#REF!="",F113="",G113="",H113=""),AND(R113<>0)),1,0) ->  | AM113: 0
A114: 500.Azienda Zero | B114: 500.Azienda Zero | C114: tutte le sedi | D114: INFORMATICA | E114: 2026 | F114: AAA100-7-A.I.3.c) Diritti di brevetto e diritti di utilizzazione delle opere d'ingegno - altri | G114: PSN (AMC AREAS compreso) | H114: PSN_01 | O114: 2800000 | Q114: 2800000 | R114: 2800000 | AF114: 2800000 | AH114: 2800000 | AI114: 0 | AK114: 0 | AL114: =IF(AND(OR(C114="",#REF!="",F114="",G114="",H114=""),AND(R114<>0)),1,0) ->  | AM114: 0
A115: 500.Azienda Zero | B115: 500.Azienda Zero | C115: tutte le sedi | D115: INFORMATICA | E115: 2026 | F115: AAA100-7-A.I.3.c) Diritti di brevetto e diritti di utilizzazione delle opere d'ingegno - altri | G115: Licenze Qlik | H115: QLK_01 | O115: 260000 | Q115: 260000 | R115: 260000 | AF115: 260000 | AH115: 260000 | AI115: 0 | AK115: 0 | AL115: =IF(AND(OR(C115="",#REF!="",F115="",G115="",H115=""),AND(R115<>0)),1,0) ->  | AM115: 0
A116: 500.Azienda Zero | B116: 500.Azienda Zero | C116: tutte le sedi | D116: INFORMATICA | E116: 2026 | F116: AAA200-7-A.I.5.g) Altre immobilizzazioni immateriali | G116: RISAccordo Quadro "Servizi applicativi e l'affidamento di servizi di supporto in ambito sanità digitale - sistemi informativi clinico-assistenziali" Lotto 1 - Realizzazione del Sistema di RIS-PACS per gli Enti Sanitari della Regione Veneto. | H116: RIS_01 | O116: 783770 | Q116: 783770 | R116: 783770 | AF116: 783770 | AH116: 783770 | AI116: 0 | AK116: 0 | AL116: =IF(AND(OR(C116="",#REF!="",F116="",G116="",H116=""),AND(R116<>0)),1,0) ->  | AM116: 0
A117: 500.Azienda Zero | B117: 500.Azienda Zero | C117: tutte le sedi | D117: INFORMATICA | E117: 2026 | F117: AAA200-7-A.I.5.g) Altre immobilizzazioni immateriali | G117: Servizi Screening | H117: SCR_01 | O117: 285000 | Q117: 285000 | R117: 285000 | AF117: 285000 | AH117: 285000 | AI117: 0 | AK117: 0 | AL117: =IF(AND(OR(C117="",#REF!="",F117="",G117="",H117=""),AND(R117<>0)),1,0) ->  | AM117: 0
A118: 500.Azienda Zero | B118: 500.Azienda Zero | C118: tutte le sedi | D118: INFORMATICA | E118: 2026 | F118: AAA200-7-A.I.5.g) Altre immobilizzazioni immateriali | G118: Servizi SIO (Sistema Informativo Ospedaliero) | H118: SIO_01 | O118: 550000 | Q118: 550000 | R118: 550000 | AF118: 550000 | AH118: 550000 | AI118: 0 | AK118: 0 | AL118: =IF(AND(OR(C118="",#REF!="",F118="",G118="",H118=""),AND(R118<>0)),1,0) ->  | AM118: 0
A119: 500.Azienda Zero | B119: 500.Azienda Zero | C119: tutte le sedi | D119: INFORMATICA | E119: 2026 | F119: AAA200-7-A.I.5.g) Altre immobilizzazioni immateriali | G119: SITAccordo Quadro "Servizi applicativi e l'affidamento di servizi di supporto in ambito sanità digitale - sistemi informativi clinico-assistenziali" Lotto 1 - Sistema di Gestione del processo Trasfusionale | H119: SIT_01 | O119: 77000 | Q119: 77000 | R119: 77000 | AF119: 77000 | AH119: 77000 | AI119: 0 | AK119: 0 | AL119: =IF(AND(OR(C119="",#REF!="",F119="",G119="",H119=""),AND(R119<>0)),1,0) ->  | AM119: 0
A120: 500.Azienda Zero | B120: 500.Azienda Zero | C120: tutte le sedi | D120: INFORMATICA | E120: 2026 | F120: AAA100-7-A.I.3.c) Diritti di brevetto e diritti di utilizzazione delle opere d'ingegno - altri | G120: Accordo Quadro Supply | H120: SUP_01 | O120: 1750000 | Q120: 1750000 | R120: 1750000 | AF120: 1750000 | AH120: 1750000 | AI120: 0 | AK120: 0 | AL120: =IF(AND(OR(C120="",#REF!="",F120="",G120="",H120=""),AND(R120<>0)),1,0) ->  | AM120: 0
A121: 500.Azienda Zero | B121: 500.Azienda Zero | C121: tutte le sedi | D121: INFORMATICA | E121: 2026 | F121: AAA200-7-A.I.5.g) Altre immobilizzazioni immateriali | G121: Servizio di Infrastruttura Regionale di Telemedicina | H121: TEL_01 | L121: SI | M121: H11J23001070001 | O121: 5550000 | Q121: 5550000 | R121: 5550000 | U121: 5550000 | AH121: 5550000 | AI121: 0 | AK121: 0 | AL121: =IF(AND(OR(C121="",#REF!="",F121="",G121="",H121=""),AND(R121<>0)),1,0) ->  | AM121: 0
A122: 500.Azienda Zero | B122: 500.Azienda Zero | C122: tutte le sedi | D122: INFORMATICA | E122: 2026 | F122: AAA100-7-A.I.3.c) Diritti di brevetto e diritti di utilizzazione delle opere d'ingegno - altri | G122: Servizi SIAVR (Sistema Informativo Anagrafe Vaccinale Regionale) | H122: VAC_01 | O122: 215000 | Q122: 215000 | R122: 215000 | AF122: 215000 | AH122: 215000 | AI122: 0 | AK122: 0 | AL122: =IF(AND(OR(C122="",#REF!="",F122="",G122="",H122=""),AND(R122<>0)),1,0) ->  | AM122: 0
A123: 500.Azienda Zero | B123: 500.Azienda Zero | C123: tutte le sedi | D123: INFORMATICA | E123: 2026 | F123: AAA140-7-A.I.5.a) Concessioni, licenze, marchi e diritti simili | G123: VMWARE | H123: VMW_01 | O123: 2450000 | Q123: 2450000 | R123: 2450000 | AF123: 2450000 | AH123: 2450000 | AI123: 0 | AK123: 0 | AL123: =IF(AND(OR(C123="",#REF!="",F123="",G123="",H123=""),AND(R123<>0)),1,0) ->  | AM123: 0
A124: 500.Azienda Zero | B124: 500.Azienda Zero | C124: tutte le sedi | D124: INFORMATICA | E124: 2026 | F124: AAA200-7-A.I.5.g) Altre immobilizzazioni immateriali | G124: Servizi di manutenzione, di help desk, di assistenza sistemistica, di supporto, di formazione e sviluppo del sistema "MyPrenota" | H124: MYP_01 | O124: 5000 | Q124: 5000 | R124: 5000 | AF124: 5000 | AH124: 5000 | AI124: 0 | AK124: 0 | AL124: =IF(AND(OR(C124="",#REF!="",F124="",G124="",H124=""),AND(R124<>0)),1,0) ->  | AM124: 0
A125: 500.Azienda Zero | B125: 500.Azienda Zero | C125: tutte le sedi | D125: INFORMATICA | E125: 2026 | F125: AAA100-7-A.I.3.c) Diritti di brevetto e diritti di utilizzazione delle opere d'ingegno - altri | G125: servizi hosting e di attività di sviluppo software per l’aggiornamento ed estensione dell’applicativo “ACRA” per il Registro Tumori del Veneto | H125: ACR_01 | O125: 26400 | Q125: 26400 | R125: 26400 | AF125: 26400 | AH125: 26400 | AI125: 0 | AK125: 0 | AL125: =IF(AND(OR(C125="",#REF!="",F125="",G125="",H125=""),AND(R125<>0)),1,0) ->  | AM125: 0
A126: 500.Azienda Zero | B126: 500.Azienda Zero | C126: tutte le sedi | D126: INFORMATICA | E126: 2026 | F126: AAA100-7-A.I.3.c) Diritti di brevetto e diritti di utilizzazione delle opere d'ingegno - altri | G126: Applicativo Protocollo e delibere | H126: BAB_01 | O126: 175000 | Q126: 175000 | R126: 175000 | AF126: 175000 | AH126: 175000 | AI126: 0 | AK126: 0 | AL126: =IF(AND(OR(C126="",#REF!="",F126="",G126="",H126=""),AND(R126<>0)),1,0) ->  | AM126: 0
A127: 500.Azienda Zero | B127: 500.Azienda Zero | C127: tutte le sedi | D127: INFORMATICA | E127: 2026 | F127: AAA140-7-A.I.5.a) Concessioni, licenze, marchi e diritti simili | G127: Manutenzione sito SER (Servizio Epidemiologico Regionale) e sito RTV (Registro Tumori del Veneto) | H127: SER_01 | O127: 15000 | Q127: 15000 | R127: 15000 | AF127: 15000 | AH127: 15000 | AI127: 0 | AK127: 0 | AL127: =IF(AND(OR(C127="",#REF!="",F127="",G127="",H127=""),AND(R127<>0)),1,0) ->  | AM127: 0
A128: 500.Azienda Zero | B128: 500.Azienda Zero | C128: tutte le sedi | D128: INFORMATICA | E128: 2026 | F128: AAA100-7-A.I.3.c) Diritti di brevetto e diritti di utilizzazione delle opere d'ingegno - altri | G128: SIRIT (Sistema Informatizzato per la raccolta di informazioni sulla tratta) | H128: SIR_01 | O128: 6100 | Q128: 6100 | R128: 6100 | AF128: 6100 | AH128: 6100 | AI128: 0 | AK128: 0 | AL128: =IF(AND(OR(C128="",#REF!="",F128="",G128="",H128=""),AND(R128<>0)),1,0) ->  | AM128: 0
A129: 500.Azienda Zero | B129: 500.Azienda Zero | C129: tutte le sedi | D129: INFORMATICA | E129: 2026 | F129: AAA100-7-A.I.3.c) Diritti di brevetto e diritti di utilizzazione delle opere d'ingegno - altri | G129: Continuità dei servizi FSER SAR, Anagrafi, Security e Portali, Biosorveglianza e Piattaforma farmaceutica | H129: APP_01 | L129: SI | M129: C97H22002670001 | O129: 2100000 | Q129: 2100000 | R129: 2100000 | U129: 2100000 | AH129: 2100000 | AI129: 0 | AK129: 0 | AL129: =IF(AND(OR(C129="",#REF!="",F129="",G129="",H129=""),AND(R129<>0)),1,0) ->  | AM129: 0
A130: 500.Azienda Zero | B130: 500.Azienda Zero | C130: tutte le sedi | D130: INFORMATICA | E130: 2026 | F130: AAA120c-7-A.I.4.c) Diritti di brevetto e diritti di utilizzazione delle opere d'ingegno | G130: FSERAccordo Quadro "Servizi Applicativi in ottica Cloud (SAC) e servizi di PMO per le PA" Lotto 4 - Servizi per la gestione del FSER e del SAR | H130: FSE_01 | L130: SI | M130: B36G21073020006, B96G21060470006, I46G21001710006, I26G21001460006, I96G21006100006, J76G21005050006, J76G21005060006, J26G21005490006, J96G21006690006, I76G21003010006, B16G21062360006, I86G21002960006, I46G21001690006, I56G21002460006, I46G21001700006, H76G21002260006, H96G21002410006, I36G21002280006, I36G21002290006, F16G21002120006, F66G21001380006, F66G21001370006, I91B21006770001, E36G21004850006 | O130: 1556000 | Q130: 1556000 | R130: 1556000 | U130: 1556000 | AH130: 1556000 | AI130: 0 | AK130: 0 | AL130: =IF(AND(OR(C130="",#REF!="",F130="",G130="",H130=""),AND(R130<>0)),1,0) ->  | AM130: 0
A131: 500.Azienda Zero | B131: 500.Azienda Zero | C131: tutte le sedi | D131: INFORMATICA | E131: 2026 | F131: AAA100-7-A.I.3.c) Diritti di brevetto e diritti di utilizzazione delle opere d'ingegno - altri | G131: IA - Liste attesa - PNRR (competenze digitali fascicolo) | H131: IAL_01 | L131: SI | M131: C96G22002550001 | O131: 100000 | Q131: 100000 | R131: 100000 | U131: 100000 | AH131: 100000 | AI131: 0 | AK131: 0 | AL131: =IF(AND(OR(C131="",#REF!="",F131="",G131="",H131=""),AND(R131<>0)),1,0) ->  | AM131: 0
A132: 500.Azienda Zero | B132: 500.Azienda Zero | C132: tutte le sedi | D132: INFORMATICA | E132: 2026 | F132: AAA100-7-A.I.3.c) Diritti di brevetto e diritti di utilizzazione delle opere d'ingegno - altri | G132: Interventi per incremento competenze digitali FSE - Conto PNRR per informazione/competenze digitali | H132: INC_01 | L132: SI | M132: C96G22002550001 | O132: 1270000 | Q132: 1270000 | R132: 1270000 | U132: 1270000 | AH132: 1270000 | AI132: 0 | AK132: 0 | AL132: =IF(AND(OR(C132="",#REF!="",F132="",G132="",H132=""),AND(R132<>0)),1,0) ->  | AM132: 0
A133: 500.Azienda Zero | B133: 500.Azienda Zero | C133: tutte le sedi | D133: INFORMATICA | E133: 2026 | F133: AAA100-7-A.I.3.c) Diritti di brevetto e diritti di utilizzazione delle opere d'ingegno - altri | G133: presa in carico PDTA - PNRR (competenze digitali fascicolo) | H133: PDT_01 | L133: SI | M133: C96G22002550001 | O133: 100000 | Q133: 100000 | R133: 100000 | U133: 100000 | AH133: 100000 | AI133: 0 | AK133: 0 | AL133: =IF(AND(OR(C133="",#REF!="",F133="",G133="",H133=""),AND(R133<>0)),1,0) ->  | AM133: 0
A134: 500.Azienda Zero | B134: 500.Azienda Zero | C134: tutte le sedi | D134: INFORMATICA | E134: 2026 | F134: AAA121d-7-A.I.4.d.4) Altre immobilizzazioni immateriali | G134: Investimento 1.1.1: Ammodernamento del parco tecnologico e digitale ospedaliero (Digitalizzazione DEA) : Adesione all'Accordo Quadro Consip S.p.A. "Servizi applicativi e servizi di supporto in ambito Sanità digitale: Sistemi informativi Clinico-Assistenziali per le Pubbliche Amministrazioni del SSN - Lotto 5 NORD" | H134: PRR_01 | L134: SI | M134: B36G21073020006, B96G21060470006, I46G21001710006, I26G21001460006, I96G21006100006, J76G21005050006, J76G21005060006, J26G21005490006, J96G21006690006, I76G21003010006, B16G21062360006, I86G21002960006, I46G21001690006, I56G21002460006, I46G21001700006, H76G21002260006, H96G21002410006, I36G21002280006, I36G21002290006, F16G21002120006, F66G21001380006, F66G21001370006, I91B21006770001, E36G21004850006 | O134: 1500000 | Q134: 1500000 | R134: =+P134+Q134 -> 1500000 | U134: 1500000 | AH134: =SUM(T134:AG134) -> 1500000 | AI134: 0 | AK134: 0 | AL134: =IF(AND(OR(C134="",#REF!="",F134="",G134="",H134=""),AND(R134<>0)),1,0) ->  | AM134: =IF(AND(L134="SI",M134=""),1,0) -> 0
A135: 500.Azienda Zero | B135: 500.Azienda Zero | C135: tutte le sedi | D135: INFORMATICA | E135: 2026 | F135: AAA100-7-A.I.3.c) Diritti di brevetto e diritti di utilizzazione delle opere d'ingegno - altri | G135: SANITA' DIGITALE Adesione all'Accordo Quadro Consip S.p.A. "Servizi applicativi e servizi di supporto in ambito Sanità digitale: Sistemi informativi Clinico-Assistenziali per le Pubbliche Amministrazioni del SSN - Lotto 5 NORD"-Regione | H135: PRR_02 | L135: SI | M135: C96G22002550001 | O135: 250000 | Q135: 250000 | R135: 250000 | U135: 250000 | AH135: 250000 | AI135: =R135-AH135 -> 0 | AK135: 0 | AL135: =IF(AND(OR(C135="",#REF!="",F135="",G135="",H135=""),AND(R135<>0)),1,0) ->  | AM135: 0
A136: 500.Azienda Zero | B136: 500.Azienda Zero | C136: tutte le sedi | D136: INFORMATICA | E136: 2026 | F136: AAA100-7-A.I.3.c) Diritti di brevetto e diritti di utilizzazione delle opere d'ingegno - altri | G136: Accordo Quadro Supply | H136: SUP_01 | L136: SI | M136: C97H22002670001; C97H22003120001; C97H22003130001; C97H22003140001; C97H22003150001 | O136: 850000 | Q136: 850000 | R136: 850000 | U136: 850000 | AH136: 850000 | AI136: 0 | AK136: 0 | AL136: =IF(AND(OR(C136="",#REF!="",F136="",G136="",H136=""),AND(R136<>0)),1,0) ->  | AM136: 0
A137: 500.Azienda Zero | B137: 500.Azienda Zero | C137: tutte le sedi | D137: INFORMATICA | E137: 2026 | F137: AAA200-7-A.I.5.g) Altre immobilizzazioni immateriali | G137: Sistema Informativo Territoriale - CONSULTORIO | H137: CON_01 | L137: SI | M137: C97H2200313000 | O137: 559456 | Q137: 559456 | R137: =+P137+Q137 -> 559456 | U137: 559456 | AH137: 559456 | AI137: 0 | AK137: 0 | AL137: =IF(AND(OR(C137="",#REF!="",F137="",G137="",H137=""),AND(R137<>0)),1,0) ->  | AM137: =IF(AND(L137="SI",M137=""),1,0) -> 0
A138: 500.Azienda Zero | B138: 500.Azienda Zero | C138: tutte le sedi | D138: INFORMATICA | E138: 2027 | F138: AAA100-7-A.I.3.c) Diritti di brevetto e diritti di utilizzazione delle opere d'ingegno - altri | G138: Continuità dei servizi FSER SAR, Anagrafi, Security e Portali, Biosorveglianza e Piattaforma farmaceutica | H138: APP_01 | O138: 4100000 | Q138: 4100000 | R138: 4100000 | AF138: 4100000 | AH138: 4100000 | AI138: 0 | AK138: 0 | AL138: =IF(AND(OR(C138="",#REF!="",F138="",G138="",H138=""),AND(R138<>0)),1,0) ->  | AM138: 0
A139: 500.Azienda Zero | B139: 500.Azienda Zero | C139: tutte le sedi | D139: INFORMATICA | E139: 2027 | F139: AAA100-7-A.I.3.c) Diritti di brevetto e diritti di utilizzazione delle opere d'ingegno - altri | G139: Affidamento diretto Arsenal | H139: ARS_01 | O139: 500000 | Q139: 500000 | R139: 500000 | AF139: 500000 | AH139: 500000 | AI139: 0 | AK139: 0 | AL139: =IF(AND(OR(C139="",#REF!="",F139="",G139="",H139=""),AND(R139<>0)),1,0) ->  | AM139: 0
A140: 500.Azienda Zero | B140: 500.Azienda Zero | C140: tutte le sedi | D140: INFORMATICA | E140: 2027 | F140: AAA140-7-A.I.5.a) Concessioni, licenze, marchi e diritti simili | G140: Piattaforma ARXIVAR | H140: ARX_01 | O140: 15250 | Q140: 15250 | R140: 15250 | AF140: 15250 | AH140: 15250 | AI140: 0 | AK140: 0 | AL140: =IF(AND(OR(C140="",#REF!="",F140="",G140="",H140=""),AND(R140<>0)),1,0) ->  | AM140: 0
A141: 500.Azienda Zero | B141: 500.Azienda Zero | C141: tutte le sedi | D141: INFORMATICA | E141: 2027 | F141: AAA200-7-A.I.5.g) Altre immobilizzazioni immateriali | G141: Piattaforma ARXIVAR | H141: ARX_01 | O141: 4500 | Q141: 4500 | R141: 4500 | AF141: 4500 | AH141: 4500 | AI141: 0 | AK141: 0 | AL141: =IF(AND(OR(C141="",#REF!="",F141="",G141="",H141=""),AND(R141<>0)),1,0) ->  | AM141: 0
A142: 500.Azienda Zero | B142: 500.Azienda Zero | C142: tutte le sedi | D142: INFORMATICA | E142: 2027 | F142: AAA100-7-A.I.3.c) Diritti di brevetto e diritti di utilizzazione delle opere d'ingegno - altri | G142: Servizi Sw Atlante - Charta | H142: ATC_01 | O142: 33500 | Q142: 33500 | R142: 33500 | AF142: 33500 | AH142: 33500 | AI142: 0 | AK142: 0 | AL142: =IF(AND(OR(C142="",#REF!="",F142="",G142="",H142=""),AND(R142<>0)),1,0) ->  | AM142: 0
A143: 500.Azienda Zero | B143: 500.Azienda Zero | C143: tutte le sedi | D143: INFORMATICA | E143: 2027 | F143: AAA200-7-A.I.5.g) Altre immobilizzazioni immateriali | G143: Servizi software CACEDEM (Cartella Clinica Elettronica Demenze) | H143: CAC_01 | O143: 28000 | Q143: 28000 | R143: 28000 | AF143: 28000 | AH143: 28000 | AI143: 0 | AK143: 0 | AL143: =IF(AND(OR(C143="",#REF!="",F143="",G143="",H143=""),AND(R143<>0)),1,0) ->  | AM143: 0
A144: 500.Azienda Zero | B144: 500.Azienda Zero | C144: tutte le sedi | D144: INFORMATICA | E144: 2027 | F144: AAA200-7-A.I.5.g) Altre immobilizzazioni immateriali | G144: Servizi CREV (Centro Regionale Emidemiologia Veterinaria) - LOTTO 1 | H144: CRE_01 | O144: 310000 | Q144: 310000 | R144: 310000 | AF144: 310000 | AH144: 310000 | AI144: 0 | AK144: 0 | AL144: =IF(AND(OR(C144="",#REF!="",F144="",G144="",H144=""),AND(R144<>0)),1,0) ->  | AM144: 0
A145: 500.Azienda Zero | B145: 500.Azienda Zero | C145: tutte le sedi | D145: INFORMATICA | E145: 2027 | F145: AAA200-7-A.I.5.g) Altre immobilizzazioni immateriali | G145: Servizi CREV (Centro Regionale Emidemiologia Veterinaria) - LOTTO 2 | H145: CRE_02 | O145: 65000 | Q145: 65000 | R145: 65000 | AF145: 65000 | AH145: 65000 | AI145: 0 | AK145: 0 | AL145: =IF(AND(OR(C145="",#REF!="",F145="",G145="",H145=""),AND(R145<>0)),1,0) ->  | AM145: 0
A146: 500.Azienda Zero | B146: 500.Azienda Zero | C146: tutte le sedi | D146: INFORMATICA | E146: 2027 | F146: AAA100-7-A.I.3.c) Diritti di brevetto e diritti di utilizzazione delle opere d'ingegno - altri | G146: Accordo Quadro Demand, sicurezza e privacy | H146: DEM_01 | O146: 460000 | Q146: 460000 | R146: 460000 | AF146: 460000 | AH146: 460000 | AI146: 0 | AK146: 0 | AL146: =IF(AND(OR(C146="",#REF!="",F146="",G146="",H146=""),AND(R146<>0)),1,0) ->  | AM146: 0
A147: 500.Azienda Zero | B147: 500.Azienda Zero | C147: tutte le sedi | D147: INFORMATICA | E147: 2027 | F147: AAA200-7-A.I.5.g) Altre immobilizzazioni immateriali | G147: Applicativo "Registro Veneto di Dialisi e Trapianto" | H147: DET_01 | O147: 20000 | Q147: 20000 | R147: 20000 | AF147: 20000 | AH147: 20000 | AI147: 0 | AK147: 0 | AL147: =IF(AND(OR(C147="",#REF!="",F147="",G147="",H147=""),AND(R147<>0)),1,0) ->  | AM147: 0
A148: 500.Azienda Zero | B148: 500.Azienda Zero | C148: tutte le sedi | D148: INFORMATICA | E148: 2027 | F148: AAA100-7-A.I.3.c) Diritti di brevetto e diritti di utilizzazione delle opere d'ingegno - altri | G148: Accordo Quadro "Servizi applicativi di Data Management e servizi di Project Management Office Lotto n. 2 - DataWareHouse | H148: DWH_01 | O148: 3100000 | Q148: 3100000 | R148: 3100000 | AF148: 3100000 | AH148: 3100000 | AI148: 0 | AK148: 0 | AL148: =IF(AND(OR(C148="",#REF!="",F148="",G148="",H148=""),AND(R148<>0)),1,0) ->  | AM148: 0
A149: 500.Azienda Zero | B149: 500.Azienda Zero | C149: tutte le sedi | D149: INFORMATICA | E149: 2027 | F149: AAA200-7-A.I.5.g) Altre immobilizzazioni immateriali | G149: Piattaforma ECM | H149: ECM_01 | O149: 150000 | Q149: 150000 | R149: 150000 | AF149: 150000 | AH149: 150000 | AI149: 0 | AK149: 0 | AL149: =IF(AND(OR(C149="",#REF!="",F149="",G149="",H149=""),AND(R149<>0)),1,0) ->  | AM149: 0
A150: 500.Azienda Zero | B150: 500.Azienda Zero | C150: tutte le sedi | D150: INFORMATICA | E150: 2027 | F150: AAA200-7-A.I.5.g) Altre immobilizzazioni immateriali | G150: Piattaforma sperimentazioni farmaci: servizio SaaS | H150: FAR_02 | O150: 55000 | Q150: 55000 | R150: 55000 | AF150: 55000 | AH150: 55000 | AI150: 0 | AK150: 0 | AL150: =IF(AND(OR(C150="",#REF!="",F150="",G150="",H150=""),AND(R150<>0)),1,0) ->  | AM150: 0
A151: 500.Azienda Zero | B151: 500.Azienda Zero | C151: tutte le sedi | D151: INFORMATICA | E151: 2027 | F151: AAA200-7-A.I.5.g) Altre immobilizzazioni immateriali | G151: Graduatoria farmacisti | H151: GRF_01 | O151: 10000 | Q151: 10000 | R151: 10000 | AF151: 10000 | AH151: 10000 | AI151: 0 | AK151: 0 | AL151: =IF(AND(OR(C151="",#REF!="",F151="",G151="",H151=""),AND(R151<>0)),1,0) ->  | AM151: 0
A152: 500.Azienda Zero | B152: 500.Azienda Zero | C152: tutte le sedi | D152: INFORMATICA | E152: 2027 | F152: AAA200-7-A.I.5.g) Altre immobilizzazioni immateriali | G152: Servizi software ICD (Impegnativa di Cura Domiciliare) | H152: ICD_01 | O152: 6400 | Q152: 6400 | R152: 6400 | AF152: 6400 | AH152: 6400 | AI152: 0 | AK152: =+R152-AH152 -> 0 | AL152: =IF(AND(OR(C152="",#REF!="",F152="",G152="",H152=""),AND(R152<>0)),1,0) ->  | AM152: 0
A153: 500.Azienda Zero | B153: 500.Azienda Zero | C153: tutte le sedi | D153: INFORMATICA | E153: 2027 | F153: AAA100-7-A.I.3.c) Diritti di brevetto e diritti di utilizzazione delle opere d'ingegno - altri | G153: Acquisto licenze (compresa "Denodo Enterprise Subscription License") | H153: LIC_01 | O153: 75000 | Q153: 75000 | R153: 75000 | AF153: 75000 | AH153: 75000 | AI153: 0 | AK153: 0 | AL153: =IF(AND(OR(C153="",#REF!="",F153="",G153="",H153=""),AND(R153<>0)),1,0) ->  | AM153: 0
A154: 500.Azienda Zero | B154: 500.Azienda Zero | C154: tutte le sedi | D154: INFORMATICA | E154: 2027 | F154: AAA120c-7-A.I.4.c) Diritti di brevetto e diritti di utilizzazione delle opere d'ingegno | G154: Acquisto licenze (compresa "Denodo Enterprise Subscription License") | H154: LIC_01 | O154: 42000 | Q154: 42000 | R154: 42000 | AF154: 42000 | AH154: 42000 | AI154: 0 | AK154: 0 | AL154: =IF(AND(OR(C154="",#REF!="",F154="",G154="",H154=""),AND(R154<>0)),1,0) ->  | AM154: 0
A155: 500.Azienda Zero | B155: 500.Azienda Zero | C155: tutte le sedi | D155: INFORMATICA | E155: 2027 | F155: AAA140-7-A.I.5.a) Concessioni, licenze, marchi e diritti simili | G155: Acquisto licenze (compresa "Denodo Enterprise Subscription License") | H155: LIC_01 | O155: 150000 | Q155: 150000 | R155: 150000 | AF155: 150000 | AH155: 150000 | AI155: 0 | AK155: 0 | AL155: =IF(AND(OR(C155="",#REF!="",F155="",G155="",H155=""),AND(R155<>0)),1,0) ->  | AM155: 0
A156: 500.Azienda Zero | B156: 500.Azienda Zero | C156: tutte le sedi | D156: INFORMATICA | E156: 2027 | F156: AAA200-7-A.I.5.g) Altre immobilizzazioni immateriali | G156: PNCAR | H156: PNC_01 | O156: 350000 | Q156: 350000 | R156: 350000 | X156: 350000 | AH156: 350000 | AI156: 0 | AK156: 0 | AL156: =IF(AND(OR(C156="",#REF!="",F156="",G156="",H156=""),AND(R156<>0)),1,0) ->  | AM156: 0
A157: 500.Azienda Zero | B157: 500.Azienda Zero | C157: tutte le sedi | D157: INFORMATICA | E157: 2027 | F157: AAA100-7-A.I.3.c) Diritti di brevetto e diritti di utilizzazione delle opere d'ingegno - altri | G157: PSN (AMC AREAS compreso) | H157: PSN_01 | O157: 2800000 | Q157: 2800000 | R157: 2800000 | AF157: 2800000 | AH157: 2800000 | AI157: 0 | AK157: 0 | AL157: =IF(AND(OR(C157="",#REF!="",F157="",G157="",H157=""),AND(R157<>0)),1,0) ->  | AM157: 0
A158: 500.Azienda Zero | B158: 500.Azienda Zero | C158: tutte le sedi | D158: INFORMATICA | E158: 2027 | F158: AAA100-7-A.I.3.c) Diritti di brevetto e diritti di utilizzazione delle opere d'ingegno - altri | G158: Licenze Qlik | H158: QLK_01 | O158: 260000 | Q158: 260000 | R158: 260000 | AF158: 260000 | AH158: 260000 | AI158: 0 | AK158: 0 | AL158: =IF(AND(OR(C158="",#REF!="",F158="",G158="",H158=""),AND(R158<>0)),1,0) ->  | AM158: 0
A159: 500.Azienda Zero | B159: 500.Azienda Zero | C159: tutte le sedi | D159: INFORMATICA | E159: 2027 | F159: AAA200-7-A.I.5.g) Altre immobilizzazioni immateriali | G159: Servizi Screening | H159: SCR_01 | O159: 285000 | Q159: 285000 | R159: 285000 | AF159: 285000 | AH159: 285000 | AI159: 0 | AK159: 0 | AL159: =IF(AND(OR(C159="",#REF!="",F159="",G159="",H159=""),AND(R159<>0)),1,0) ->  | AM159: 0
A160: 500.Azienda Zero | B160: 500.Azienda Zero | C160: tutte le sedi | D160: INFORMATICA | E160: 2027 | F160: AAA200-7-A.I.5.g) Altre immobilizzazioni immateriali | G160: Servizi SIO (Sistema Informativo Ospedaliero) | H160: SIO_01 | O160: 550000 | Q160: 550000 | R160: 550000 | AF160: 550000 | AH160: 550000 | AI160: 0 | AK160: 0 | AL160: =IF(AND(OR(C160="",#REF!="",F160="",G160="",H160=""),AND(R160<>0)),1,0) ->  | AM160: 0
A161: 500.Azienda Zero | B161: 500.Azienda Zero | C161: tutte le sedi | D161: INFORMATICA | E161: 2027 | F161: AAA100-7-A.I.3.c) Diritti di brevetto e diritti di utilizzazione delle opere d'ingegno - altri | G161: Accordo Quadro Supply | H161: SUP_01 | O161: 1750000 | Q161: 1750000 | R161: 1750000 | AF161: 1750000 | AH161: 1750000 | AI161: 0 | AK161: 0 | AL161: =IF(AND(OR(C161="",#REF!="",F161="",G161="",H161=""),AND(R161<>0)),1,0) ->  | AM161: 0
A162: 500.Azienda Zero | B162: 500.Azienda Zero | C162: tutte le sedi | D162: INFORMATICA | E162: 2027 | F162: AAA100-7-A.I.3.c) Diritti di brevetto e diritti di utilizzazione delle opere d'ingegno - altri | G162: Servizi SIAVR (Sistema Informativo Anagrafe Vaccinale Regionale) | H162: VAC_01 | O162: 215000 | Q162: 215000 | R162: 215000 | AF162: 215000 | AH162: 215000 | AI162: 0 | AK162: 0 | AL162: =IF(AND(OR(C162="",#REF!="",F162="",G162="",H162=""),AND(R162<>0)),1,0) ->  | AM162: 0
A163: 500.Azienda Zero | B163: 500.Azienda Zero | C163: tutte le sedi | D163: INFORMATICA | E163: 2027 | F163: AAA140-7-A.I.5.a) Concessioni, licenze, marchi e diritti simili | G163: VMWARE | H163: VMW_01 | O163: 2450000 | Q163: 2450000 | R163: 2450000 | AF163: 2450000 | AH163: 2450000 | AI163: 0 | AK163: 0 | AL163: =IF(AND(OR(C163="",#REF!="",F163="",G163="",H163=""),AND(R163<>0)),1,0) ->  | AM163: 0
A164: 500.Azienda Zero | B164: 500.Azienda Zero | C164: tutte le sedi | D164: INFORMATICA | E164: 2027 | F164: AAA200-7-A.I.5.g) Altre immobilizzazioni immateriali | G164: Servizi di manutenzione, di help desk, di assistenza sistemistica, di supporto, di formazione e sviluppo del sistema "MyPrenota" | H164: MYP_01 | O164: 5000 | Q164: 5000 | R164: 5000 | AF164: 5000 | AH164: 5000 | AI164: 0 | AK164: 0 | AL164: =IF(AND(OR(C164="",#REF!="",F164="",G164="",H164=""),AND(R164<>0)),1,0) ->  | AM164: 0
A165: 500.Azienda Zero | B165: 500.Azienda Zero | C165: tutte le sedi | D165: INFORMATICA | E165: 2027 | F165: AAA100-7-A.I.3.c) Diritti di brevetto e diritti di utilizzazione delle opere d'ingegno - altri | G165: servizi hosting e di attività di sviluppo software per l’aggiornamento ed estensione dell’applicativo “ACRA” per il Registro Tumori del Veneto | H165: ACR_01 | O165: 20000 | Q165: 20000 | R165: 20000 | AF165: 20000 | AH165: 20000 | AI165: 0 | AK165: 0 | AL165: =IF(AND(OR(C165="",#REF!="",F165="",G165="",H165=""),AND(R165<>0)),1,0) ->  | AM165: 0
A166: 500.Azienda Zero | B166: 500.Azienda Zero | C166: tutte le sedi | D166: INFORMATICA | E166: 2027 | F166: AAA100-7-A.I.3.c) Diritti di brevetto e diritti di utilizzazione delle opere d'ingegno - altri | G166: Applicativo Protocollo e delibere | H166: BAB_01 | O166: 175000 | Q166: 175000 | R166: 175000 | AF166: 175000 | AH166: 175000 | AI166: 0 | AK166: 0 | AL166: =IF(AND(OR(C166="",#REF!="",F166="",G166="",H166=""),AND(R166<>0)),1,0) ->  | AM166: 0
A167: 500.Azienda Zero | B167: 500.Azienda Zero | C167: tutte le sedi | D167: INFORMATICA | E167: 2027 | F167: AAA140-7-A.I.5.a) Concessioni, licenze, marchi e diritti simili | G167: Manutenzione sito SER (Servizio Epidemiologico Regionale) e sito RTV (Registro Tumori del Veneto) | H167: SER_01 | O167: 15000 | Q167: 15000 | R167: 15000 | AF167: 15000 | AH167: 15000 | AI167: 0 | AK167: 0 | AL167: =IF(AND(OR(C167="",#REF!="",F167="",G167="",H167=""),AND(R167<>0)),1,0) ->  | AM167: 0
A168: 500.Azienda Zero | B168: 500.Azienda Zero | C168: tutte le sedi | D168: INFORMATICA | E168: 2027 | F168: AAA100-7-A.I.3.c) Diritti di brevetto e diritti di utilizzazione delle opere d'ingegno - altri | G168: SIRIT (Sistema Informatizzato per la raccolta di informazioni sulla tratta) | H168: SIR_01 | O168: 3700 | Q168: 3700 | R168: 3700 | AF168: 3700 | AH168: 3700 | AI168: 0 | AK168: 0 | AL168: =IF(AND(OR(C168="",#REF!="",F168="",G168="",H168=""),AND(R168<>0)),1,0) ->  | AM168: 0
A169: 500.Azienda Zero | B169: 500.Azienda Zero | C169: tutte le sedi | D169: INFORMATICA | E169: 2027 | F169: AAA100-7-A.I.3.c) Diritti di brevetto e diritti di utilizzazione delle opere d'ingegno - altri | G169: Continuità dei servizi FSER SAR, Anagrafi, Security e Portali, Biosorveglianza e Piattaforma farmaceutica | H169: APP_01 | L169: SI | M169: C97H22002670001 | O169: 5100000 | Q169: 5100000 | R169: 5100000 | U169: 5100000 | AH169: 5100000 | AI169: 0 | AK169: 0 | AL169: =IF(AND(OR(C169="",#REF!="",F169="",G169="",H169=""),AND(R169<>0)),1,0) ->  | AM169: 0
A170: 500.Azienda Zero | B170: 500.Azienda Zero | C170: tutte le sedi | D170: INFORMATICA | E170: 2027 | F170: AAA120c-7-A.I.4.c) Diritti di brevetto e diritti di utilizzazione delle opere d'ingegno | G170: FSERAccordo Quadro "Servizi Applicativi in ottica Cloud (SAC) e servizi di PMO per le PA" Lotto 4 - Servizi per la gestione del FSER e del SAR | H170: FSE_01 | L170: SI | M170: B36G21073020006, B96G21060470006, I46G21001710006, I26G21001460006, I96G21006100006, J76G21005050006, J76G21005060006, J26G21005490006, J96G21006690006, I76G21003010006, B16G21062360006, I86G21002960006, I46G21001690006, I56G21002460006, I46G21001700006, H76G21002260006, H96G21002410006, I36G21002280006, I36G21002290006, F16G21002120006, F66G21001380006, F66G21001370006, I91B21006770001, E36G21004850006 | O170: 1153000 | Q170: 1153000 | R170: 1153000 | U170: 1153000 | AH170: 1153000 | AI170: 0 | AK170: 0 | AL170: =IF(AND(OR(C170="",#REF!="",F170="",G170="",H170=""),AND(R170<>0)),1,0) ->  | AM170: 0
A171: 500.Azienda Zero | B171: 500.Azienda Zero | C171: tutte le sedi | D171: INFORMATICA | E171: 2027 | F171: AAA100-7-A.I.3.c) Diritti di brevetto e diritti di utilizzazione delle opere d'ingegno - altri | G171: IA - Liste attesa - PNRR (competenze digitali fascicolo) | H171: IAL_01 | L171: SI | M171: C97H22002670001 | O171: 100000 | Q171: 100000 | R171: 100000 | U171: 100000 | AH171: 100000 | AI171: 0 | AK171: 0 | AL171: =IF(AND(OR(C171="",#REF!="",F171="",G171="",H171=""),AND(R171<>0)),1,0) ->  | AM171: 0
A172: 500.Azienda Zero | B172: 500.Azienda Zero | C172: tutte le sedi | D172: INFORMATICA | E172: 2027 | F172: AAA100-7-A.I.3.c) Diritti di brevetto e diritti di utilizzazione delle opere d'ingegno - altri | G172: Interventi per incremento competenze digitali FSE - Conto PNRR per informazione/competenze digitali | H172: INC_01 | L172: SI | M172: C96G22002550001 | O172: 523000 | Q172: 523000 | R172: 523000 | U172: 523000 | AH172: 523000 | AI172: 0 | AK172: 0 | AL172: =IF(AND(OR(C172="",#REF!="",F172="",G172="",H172=""),AND(R172<>0)),1,0) ->  | AM172: 0
A173: 500.Azienda Zero | B173: 500.Azienda Zero | C173: tutte le sedi | D173: INFORMATICA | E173: 2027 | F173: AAA100-7-A.I.3.c) Diritti di brevetto e diritti di utilizzazione delle opere d'ingegno - altri | G173: presa in carico PDTA - PNRR (competenze digitali fascicolo) | H173: PDT_01 | L173: SI | M173: C96G22002550001 | O173: 100000 | Q173: 100000 | R173: 100000 | U173: 100000 | AH173: 100000 | AI173: 0 | AK173: 0 | AL173: =IF(AND(OR(C173="",#REF!="",F173="",G173="",H173=""),AND(R173<>0)),1,0) ->  | AM173: 0
A174: 500.Azienda Zero | B174: 500.Azienda Zero | C174: tutte le sedi | D174: INFORMATICA | E174: 2027 | F174: AAA100-7-A.I.3.c) Diritti di brevetto e diritti di utilizzazione delle opere d'ingegno - altri | G174: Accordo Quadro Supply | H174: SUP_01 | L174: SI | M174: C97H22002670001; C97H22003120001; C97H22003130001; C97H22003140001; C97H22003150001 | O174: 850000 | Q174: 850000 | R174: 850000 | U174: 850000 | AH174: 850000 | AI174: 0 | AK174: 0 | AL174: =IF(AND(OR(C174="",#REF!="",F174="",G174="",H174=""),AND(R174<>0)),1,0) ->  | AM174: 0
A175: 500.Azienda Zero | B175: 500.Azienda Zero | C175: tutte le sedi | D175: INFORMATICA | E175: 2025 | F175: AAA200-7-A.I.5.g) Altre immobilizzazioni immateriali | G175: Sistema Informativo Territoriale - ADI | H175: ADI_01 | O175: 500000 | Q175: 500000 | R175: 500000 | AF175: 500000 | AH175: 500000 | AI175: 0 | AK175: 0 | AL175: =IF(AND(OR(C175="",#REF!="",F175="",G175="",H175=""),AND(R175<>0)),1,0) ->  | AM175: 0
A176: 500.Azienda Zero | B176: 500.Azienda Zero | C176: tutte le sedi | D176: INFORMATICA | E176: 2025 | F176: AAA200-7-A.I.5.g) Altre immobilizzazioni immateriali | G176: GOVERNANCE e SVILUPPI CENTRALI PER IL SITEMA INFORMATIVO TERRITORIALE | H176: GSV_01 | O176: 550000 | Q176: 550000 | R176: 550000 | AF176: 550000 | AH176: 550000 | AI176: 0 | AK176: 0 | AL176: =IF(AND(OR(C176="",#REF!="",F176="",G176="",H176=""),AND(R176<>0)),1,0) ->  | AM176: 0
A177: 500.Azienda Zero | B177: 500.Azienda Zero | C177: tutte le sedi | D177: INFORMATICA | E177: 2026 | F177: AAA200-7-A.I.5.g) Altre immobilizzazioni immateriali | G177: Sistema Informativo Territoriale - ADI | H177: ADI_01 | O177: 183200 | Q177: 183200 | R177: 183200 | AF177: 183200 | AH177: 183200 | AI177: 0 | AK177: 0 | AL177: =IF(AND(OR(C177="",#REF!="",F177="",G177="",H177=""),AND(R177<>0)),1,0) ->  | AM177: 0
A178: 500.Azienda Zero | B178: 500.Azienda Zero | C178: tutte le sedi | D178: INFORMATICA | E178: 2026 | F178: AAA200-7-A.I.5.g) Altre immobilizzazioni immateriali | G178: GOVERNANCE e SVILUPPI CENTRALI PER IL SITEMA INFORMATIVO TERRITORIALE | H178: GSV_01 | O178: 550000 | Q178: 550000 | R178: 550000 | AF178: 550000 | AH178: 550000 | AI178: 0 | AK178: 0 | AL178: =IF(AND(OR(C178="",#REF!="",F178="",G178="",H178=""),AND(R178<>0)),1,0) ->  | AM178: 0
A179: 500.Azienda Zero | B179: 500.Azienda Zero | C179: tutte le sedi | D179: INFORMATICA | E179: 2027 | F179: AAA200-7-A.I.5.g) Altre immobilizzazioni immateriali | G179: GOVERNANCE e SVILUPPI CENTRALI PER IL SITEMA INFORMATIVO TERRITORIALE | H179: GSV_01 | O179: 550000 | Q179: 550000 | R179: 550000 | AF179: 550000 | AH179: 550000 | AI179: 0 | AK179: 0 | AL179: =IF(AND(OR(C179="",#REF!="",F179="",G179="",H179=""),AND(R179<>0)),1,0) ->  | AM179: 0
A180: 500.Azienda Zero | B180: 500.Azienda Zero | C180: tutte le sedi | D180: INFORMATICA | E180: 2025 | F180: AAA140-7-A.I.5.a) Concessioni, licenze, marchi e diritti simili | G180: Licenze d'Uso per Software | H180: LIC_09 | O180: 319300 | Q180: 319300 | R180: 319300 | AF180: 319300 | AH180: 319300 | AI180: 0 | AK180: 0 | AL180: =IF(AND(OR(C180="",#REF!="",F180="",G180="",H180=""),AND(R180<>0)),1,0) ->  | AM180: 0
R181: 0 | AH181: 0 | AI181: 0 | AK181: 0 | AL181: =IF(AND(OR(C181="",#REF!="",F181="",G181="",H181=""),AND(R181<>0)),1,0) ->  | AM181: 0
R182: 0 | AH182: 0 | AI182: 0 | AK182: 0 | AL182: =IF(AND(OR(C182="",#REF!="",F182="",G182="",H182=""),AND(R182<>0)),1,0) ->  | AM182: 0
R183: 0 | AH183: 0 | AI183: 0 | AK183: 0 | AL183: =IF(AND(OR(C183="",#REF!="",F183="",G183="",H183=""),AND(R183<>0)),1,0) ->  | AM183: 0
R184: 0 | AH184: 0 | AI184: 0 | AK184: 0 | AL184: =IF(AND(OR(C184="",#REF!="",F184="",G184="",H184=""),AND(R184<>0)),1,0) ->  | AM184: 0
R185: 0 | AH185: 0 | AI185: 0 | AK185: 0 | AL185: =IF(AND(OR(C185="",#REF!="",F185="",G185="",H185=""),AND(R185<>0)),1,0) ->  | AM185: 0
R186: 0 | AH186: 0 | AI186: 0 | AK186: 0 | AL186: =IF(AND(OR(C186="",#REF!="",F186="",G186="",H186=""),AND(R186<>0)),1,0) ->  | AM186: 0
R187: 0 | AH187: 0 | AI187: 0 | AK187: 0 | AL187: =IF(AND(OR(C187="",#REF!="",F187="",G187="",H187=""),AND(R187<>0)),1,0) ->  | AM187: 0
R188: 0 | AH188: 0 | AI188: 0 | AK188: 0 | AL188: =IF(AND(OR(C188="",#REF!="",F188="",G188="",H188=""),AND(R188<>0)),1,0) ->  | AM188: 0
R189: 0 | AH189: 0 | AI189: 0 | AK189: 0 | AL189: =IF(AND(OR(C189="",#REF!="",F189="",G189="",H189=""),AND(R189<>0)),1,0) ->  | AM189: 0
R190: 0 | AH190: 0 | AI190: 0 | AK190: 0 | AL190: =IF(AND(OR(C190="",#REF!="",F190="",G190="",H190=""),AND(R190<>0)),1,0) ->  | AM190: 0
R191: 0 | AH191: 0 | AI191: 0 | AK191: 0 | AL191: =IF(AND(OR(C191="",#REF!="",F191="",G191="",H191=""),AND(R191<>0)),1,0) ->  | AM191: 0
R192: 0 | AH192: 0 | AI192: 0 | AK192: 0 | AL192: =IF(AND(OR(C192="",#REF!="",F192="",G192="",H192=""),AND(R192<>0)),1,0) ->  | AM192: 0
R193: 0 | AH193: 0 | AI193: 0 | AK193: 0 | AL193: =IF(AND(OR(C193="",#REF!="",F193="",G193="",H193=""),AND(R193<>0)),1,0) ->  | AM193: 0
R194: 0 | AH194: 0 | AI194: 0 | AK194: 0 | AL194: =IF(AND(OR(C194="",#REF!="",F194="",G194="",H194=""),AND(R194<>0)),1,0) ->  | AM194: 0
R195: 0 | AH195: 0 | AI195: 0 | AK195: 0 | AL195: =IF(AND(OR(C195="",#REF!="",F195="",G195="",H195=""),AND(R195<>0)),1,0) ->  | AM195: 0
R196: =+P196+Q196 -> 0 | AH196: =SUM(T196:AG196) -> 0 | AI196: 0 | AK196: 0 | AL196: =IF(AND(OR(C196="",#REF!="",F196="",G196="",H196=""),AND(R196<>0)),1,0) ->  | AM196: =IF(AND(L196="SI",M196=""),1,0) -> 0
R197: 0 | AH197: 0 | AI197: =R197-AH197 -> 0 | AK197: 0 | AL197: =IF(AND(OR(C197="",#REF!="",F197="",G197="",H197=""),AND(R197<>0)),1,0) ->  | AM197: 0
R198: 0 | AH198: 0 | AI198: 0 | AK198: 0 | AL198: =IF(AND(OR(C198="",#REF!="",F198="",G198="",H198=""),AND(R198<>0)),1,0) ->  | AM198: 0
R199: 0 | AH199: 0 | AI199: 0 | AK199: 0 | AL199: =IF(AND(OR(C199="",#REF!="",F199="",G199="",H199=""),AND(R199<>0)),1,0) ->  | AM199: 0
R200: 0 | AH200: 0 | AI200: 0 | AK200: 0 | AL200: =IF(AND(OR(C200="",#REF!="",F200="",G200="",H200=""),AND(R200<>0)),1,0) ->  | AM200: 0
R201: 0 | AH201: 0 | AI201: 0 | AK201: 0 | AL201: =IF(AND(OR(C201="",#REF!="",F201="",G201="",H201=""),AND(R201<>0)),1,0) ->  | AM201: 0
... 758 more rows

Sheet Foglio2 (hidden)
A1: 2025
A2: 2026
A3: 2027
A4: 2025 in corso

Sheet anagrafica ASL-presidio-tipo st (hidden)
A1: VECCHIA ASL | B1: Codice Ospedale e Denominazione Istituto | C1: Codice e Descriz Nuova Struttura ambulatoriale | D1: Ospedale - Struttura ambulatoriale | E1: Pubblico/Privato | F1: Tipo Struttura [DGR 2122/2013]
A2: 101.Belluno | B2: 05020101. OSPEDALE S. MARTINO BELLUNO | E2: PUBBLICO | F2: Hub provinciale
A3: 102.Feltre | B3: 05020103. OSPEDALE DI AGORDO | E3: PUBBLICO | F3: Ospedale nodo di rete con specificità
A4: 103.BassanoDelGrappa | B4: 05020104. OSPEDALE DI PIEVE DI CADORE | E4: PUBBLICO | F4: Ospedale nodo di rete con specificità
A5: 104.AltoVicentino | C5: 000402. SERT AGORDO | E5: Pubblico | F5: OSPEDALE DI AGORDO
A6: 105.OvestVicentino | C6: 005009. C.S.M. AGORDO | E6: Pubblico | F6: OSPEDALE DI AGORDO
A7: 106.Vicenza | C7: 05050199. POLIAMB. AURONZO | E7: Pubblico
A8: 107.PieveDiSoligo | C8: 05050199. POLIAMB. TERRIT. PIEVE DI C. | E8: Pubblico
A9: 108.Asolo | C9: 05050199. SERV. TERR. NEUROPSICH. INF. | E9: Pubblico
A10: 109.Treviso | C10: 05050199. POLIAMB. TERRIT. S.STEFANO | E10: Pubblico
A11: 110.VenetoOrientale | C11: 05050199. POLIAMB. TERRIT. CORTINA | E11: Pubblico
A12: 112.Veneziana | C12: 05050199. POLIAMB. TERRIT. CANALE AG. | E12: Pubblico
A13: 113.Mirano | C13: 05050199. POLIAMB. TERRIT. ALLEGHE | E13: Pubblico
A14: 114.Chioggia | C14: 05050199. POLIAMB. EXTRAOSPEDALIERO | E14: Pubblico
A15: 115.AltaPadovana | C15: 001401. SALUS S.R.L. | E15: Privato
A16: 116.Padova | C16: 001501. LAB. ANALISI CLINICHE FLEMING S.R.L. | E16: Privato
A17: 117.Este | C17: 05050199. EQUIPE PSICOPED. AGORDO | E17: Pubblico
A18: 118.Rovigo | C18: 05050199. SERV. NEUROPSICHIATRIA INF.LE BELLUNO | E18: Pubblico
A19: 119.Adria | C19: 05050199. SERT BELLUNO | E19: Pubblico
A20: 120.Verona | C20: 05050199. SERT AURONZO | E20: Pubblico
A21: 121.Legnago | C21: 05050199. C.S.M. AURONZO | E21: Pubblico
A22: 122.Bussolengo | B22: 05020201. OSPEDALE DI FELTRE `S. MARIA DEL PRATO` | E22: PUBBLICO | F22: Presidio ospedaliero di rete
A23: 901.AOPadova | B23: 05020202. OSPEDALE DI LAMON `CASA CHARITAS` | E23: PUBBLICO | F23: Ospedale nodo di rete monospecialistico riabilitativo
A24: 912.AOUIVerona | C24: 05050199. POLIAMBULATORIO DI SEDICO | E24: Pubblico
A25: 952.IOV | C25: 05050199. C.S.M. SEDE DI SEDICO | E25: Pubblico
C26: 05050199. C.S.M. SEDE DI SANTA GIUSTINA | E26: Pubblico
C27: 05050199. SERVIZIO PER L'ETA' EVOLUTIVA | E27: Pubblico
C28: 05050199. CONSULTORIO FAMILIARE S.GIUSTINA | E28: Pubblico
C29: 05050199. SERVIZIO PER L'ETA' EVOLUTIVA | E29: Pubblico
C30: 042807. SERVIZIO PER L'ETA' EVOLUTIVA | E30: Pubblico
C31: 05050199. CONSULTORIO FAMILIARE ALANO | E31: Pubblico
C32: 05050199. CONSULTORIO FAMILIARE DI MEL | E32: Pubblico
C33: 05050199. C.S.M. SEDE DI MEL | E33: Pubblico
C34: 05050199. SER.D. | E34: Pubblico
C35: 05050199. SERVIZIO PER L'ETA' EVOLUTIVA | E35: Pubblico
C36: 05050199. CONSULTORIO FAMILIARE FELTRE | E36: Pubblico
C37: 05050199. SERVIZIO PER L'ETA' EVOLUTIVA | E37: Pubblico
C38: 05050199. AMBULATORIO FONZASO | E38: Pubblico
B39: 05020301. OSPEDALE `SAN BASSIANO` DI BASSANO D.G. | E39: PUBBLICO | F39: Presidio ospedaliero di rete
B40: 05020302. OSPEDALE DI ASIAGO | E40: PUBBLICO | F40: Ospedale nodo di rete con specificità
C41: 05050799. ATTIVITA' EXTRAOSP. BASSANO | E41: Pubblico
C42: 05050799. SERV. TOSSICODIP. E ALCOLISTI | E42: Pubblico
C43: 05050799. AMBULATORI EXTRAOSP. MAROSTICA | E43: Pubblico
C44: 05050799. AMBULATORI EXTRAOSP. ASIAGO | E44: Pubblico
C45: 05050799. AMBULATORI C/O DSB ROMANO | E45: Pubblico
C46: 05050799. ASS. INFERMIERISTICA CARPANE' - S.NAZARIO | E46: Pubblico
C47: 087001. RADIOLOGIA MEDICA BASSANO DELLA IMED SRL | E47: Privato
C48: 087002. CENTRO MEDICO DI FISIOTERAPIA SRL | E48: Privato
B49: 05020401. PADIGLIONE OSP. DE LELLIS | E49: PUBBLICO | F49: Presidio ospedaliero di rete su 2 sedi
B50: 05020402. PADIGLIONE OSP. BOLDRINI | E50: PUBBLICO | F50: Presidio ospedaliero di rete su 2 sedi
B51: 05020403. OSPEDALE ALTO VICENTINO (Santorso) | E51: PUBBLICO | F51: Presidio ospedaliero di rete
C52: 05050799. POLIAMBULATORIO SCHIO | E52: Pubblico
C53: 05050799. POLIAMBULATORIO THIENE | E53: Pubblico
C54: 05050799. POLIAMBULATORIO MALO | E54: Pubblico
C55: 05050799. POLIAMBULATORIO PIOVENE | E55: Pubblico
C56: 130401. LABORATORIO ANALISI DOTT. PIAZZON SRL | E56: Privato
C57: 132257. CENTRO MEDICO THIENESE SRL | E57: Privato
B58: 05020501. OSPEDALE DI ARZIGNANO | E58: PUBBLICO | F58: Presidio ospedaliero di rete su 2 sedi
B59: 05020502. OSPEDALE DI LONIGO | E59: PUBBLICO | F59: Ospedale nodo di rete monospecialistico riabilitativo
B60: 05020503. OSPEDALE DI MONTECCHIO | E60: PUBBLICO | F60: Presidio ospedaliero di rete su 2 sedi
B61: 05020504. OSPEDALE DI VALDAGNO | E61: PUBBLICO | F61: Ospedale nodo di rete con specificità
C62: 162494. OSPEDALE DI COMUNITA' VALDAGNO | E62: Pubblico
C63: 05050899. POLIAMB.EXTRAOSP.VALDAGNO | E63: Pubblico
C64: 05050899. POLIAMB. EXTRAOSP. ARZIGNANO | E64: Pubblico
C65: 05050899. POLIAMB. EXTRAOSP. MONTECCHIO | E65: Pubblico
C66: 160701. DR.CAVEDON PAOLO | E66: Privato
C67: 160801. AMBULATORIO C.E.M.A.R. SRL | E67: Privato
C68: 05050899. CSM VALDAGNO | E68: Pubblico
C69: 05050899. SER. NEUROPSICHIATRIA INFANTILE AREA CENTRO SUD | E69: Pubblico
C70: 05050899. CSM MONTECCHIO | E70: Pubblico
C71: 05050899. CSM LONIGO | E71: Pubblico
B72: 05004500. CASA DI CURA ERETENIA | E72: PRIVATO | F72: Struttura privata accreditata con compiti complementari e di integrazione all'interno della rete ospedaliera regionale
B73: 05004600. CASA DI CURA BERICA | E73: PRIVATO | F73: Struttura privata accreditata con compiti complementari e di integrazione all'interno della rete ospedaliera regionale
B74: 05020601. PRES. OSPED. VICENZA | E74: PUBBLICO | F74: Hub provinciale
B75: 05020602. PRES. OSP. NOVENTA VICENTINA | E75: PUBBLICO | F75: Ospedale nodo di rete
C76: 05050899. CENTRO PROV. DISTURBI COMPORTAMENTO ALIM. PESO | E76: Pubblico
C77: 05050899. CENTRO SANITARIO POLIFUNZIONALE SANDRIGO | E77: Pubblico
C78: 05050899. STRUTTURA POLISPECIALISTICA TERRITORIALE EXTRAOSPE | E78: Pubblico
C79: 05050899. CENTRO DI SALUTE MENTALE | E79: Pubblico
C80: 05050899. SERT- CENTRO CONSULENZA DIAGNOSI E PSICOTERAPIA | E80: Pubblico
C81: 05050899. STRUTTURA DISTRETTUALE OVEST | E81: Pubblico
C82: 05050899. SERVIZIO TERRITORIALE DI PNEUMOTISIOLOGIA | E82: Pubblico
C83: 05050899. SERVIZIO TERRITORIALE DI PNEUMOTISIOLOGIA - ADI | E83: Pubblico
C84: 05050899. SERVIZIO NEUROPSICHIATRIA INFANTILE | E84: Pubblico
B85: 05014001. IRCSS MEDEA CONEGLIANO | E85: PRIVATO | F85: Ospedale classificato
B86: 05014002. IRCSS MEDEA PIEVE DI SOLIGO | E86: PRIVATO | F86: Ospedale classificato
B87: 05020701. OSPEDALE DI CONEGLIANO | E87: PUBBLICO | F87: Presidio ospedaliero di rete su 2 sedi
B88: 05020702. OSPEDALE DI VITTORIO VENETO | E88: PUBBLICO | F88: Presidio ospedaliero di rete su 2 sedi
B89: 05020703. OSPEDALE DE GIRONCOLI | E89: PUBBLICO
C90: 05050299. POLIAMBUL.EXTRAOSP.FARRA DI SOLIGO | E90: Pubblico
C91: 05050299. POLIAMBULATORIO EXTRAOSP. CN | E91: Pubblico
C92: 05050299. POLIAMBUL.EXTRAOSP.VITTORIO V. | E92: Pubblico
C93: 05050299. CONSULTORIO FAMIL. PIEVE DI SOLIGO | E93: Pubblico
C94: 05050299. SERVIZIO ETA' EVOLUTIVA CN | E94: Pubblico
C95: 05050299. SERVIZIO ETA' EVOL. PIEVE DI SOLIGO | E95: Pubblico
C96: 05050299. SERVIZIO ETA' EVOL. VITTORIO V | E96: Pubblico
C97: 05050299. CENTRO SALUTE MENTALE AMBUL.VV | E97: Pubblico
C98: 05050299. CENTRO SALUTE MENTALE AMBUL.SL | E98: Pubblico
C99: 05050299. SER.D. SERVIZIO DIPENDENZE | E99: Pubblico
C100: 05050299. CENTRO SALUTE MENTALE AMBUL.CN | E100: Pubblico
B101: 05020801. OSPEDALE DI CASTELFRANCO VENETO | E101: PUBBLICO | F101: Presidio ospedaliero di rete su 2 sedi
B102: 05020802. OSPEDALE DI MONTEBELLUNA | E102: PUBBLICO | F102: Presidio ospedaliero di rete su 2 sedi
C103: 05050299. CENTRO SALUTE MENTALE - CF | E103: Pubblico
C104: 05050299. NEUROPSCHIATRIA INFANTILE - SERVIZIO ETA' EVOLUTIV | E104: Pubblico
C105: 05050299. STRUTTURA DISTRETTUALE DI RIESE | E105: Pubblico
C106: 05050299. STRUTTURA DISTRETTUALE DI VEDELAGO | E106: Pubblico
C107: 05050299. CENTRO PRELIEVI 'VILLA PULLIN' - MB | E107: Pubblico
C108: 05050299. SERVIZIO CURE PALLIATIVE E DOMICILIARI - CF | E108: Pubblico
C109: 05050299. SERVIZIO CURE PALLIATIVE E DOMICILIARI - MB | E109: Pubblico
C110: 05050299. AMBULATORIO SALUTE MENTALE - MB | E110: Pubblico
C111: 05050299. AMBULATORIO SALUTE MENTALE - ASOLO | E111: Pubblico
C112: 05050299. CONSULTORIO FAMILIARE - VB | E112: Pubblico
C113: 05050299. POLIAMB. DISTRETTUALE - VB | E113: Pubblico
C114: 05050299. POLIAMB.'S.M.BATTUTI' - AS | E114: Pubblico
C115: 05050299. CONSULTORIO FAMILIARE - AS | E115: Pubblico
C116: 05050299. SERVIZIO ETA' EVOLUTIVA - ASOLO | E116: Pubblico
C117: 05050299. POLIAMB. 'AITA' - CRESPANO | E117: Pubblico
C118: 05050299. POLIAMB.EXTRAOSP.N.4 -GIAVERA | E118: Pubblico
C119: 05050299. POLIAMB.EXTRAOSP. - MB | E119: Pubblico
C120: 05050299. POLIAMB.EXTRAOSP. - PEDEROBBA | E120: Pubblico
C121: 280801. DOTT.SSA MEDICI LAURA | E121: Privato
C122: 280901. CENTRO DIAGNOSTICO CASTELLANO SRL | E122: Privato
C123: 05050299. CONSULTORIO FAMILIARE - CF | E123: Pubblico
C124: 05050299. CONSULTORIO FAMILIARE - MB | E124: Pubblico
C125: 05050299. SERVIZIO ETA' EVOLUTIVA - MONTEBELLUNA | E125: Pubblico
C126: 05050299. SERVIZIO ETA' EVOLUTIVA - VALDOBBIADENE | E126: Pubblico
C127: 05050299. CENTRO SALUTE MENTALE - VB | E127: Pubblico
B128: 05007200. OSPEDALE DI MOTTA DI LIVENZA | E128: PRIVATO | F128: Ospedale nodo di rete monospecialistico riabilitativo
B129: 05007900. OSPEDALE CLASSIFICATO SAN CAMILLO | E129: PRIVATO | F129: Ospedale classificato
B130: 05020901. OSPEDALE CA` FONCELLO | E130: PUBBLICO | F130: Hub provinciale
B131: 05020902. OSPEDALE DI ODERZO | E131: PUBBLICO | F131: Ospedale nodo di rete
C132: 05050299. POLIAMB. SEDE DI VIA SCARPA | E132: Pubblico
C133: 05050299. S.C. POLIAMBULATORIO | E133: Pubblico
B134: 05021001. PRESIDIO OSPEDALIERO DI PORTOGRUARO | E134: PUBBLICO | F134: Presidio ospedaliero di rete su 2 sedi
B135: 05021002. PRESIDIO OSPEDALIERO DI SAN DONA` DI P. | E135: PUBBLICO | F135: Presidio ospedaliero di rete su 2 sedi
B136: 05021003. PRESIDIO OSPEDALIERO DI JESOLO | E136: PUBBLICO | F136: Ospedale nodo di rete monospecialistico riabilitativo
C137: 05050499. POLIAMBULATORIO DISTRETTO UNICO - 'PORTOGRUARESE' | E137: Pubblico
C138: 05050499. POLIAMBULATORIO DISTRETTO UNICO - 'BASSO PIAVE' | E138: Pubblico
C139: 05050499. CSM SAN DONA' DI PIAVE - AMBULATORIO | E139: Pubblico
C140: 361001. STUDIO CARDIOLOGICO DOTT. SCHIO E C. SAS | E140: Privato
C141: 361101. POLIAMBULATORIO CAORLESE S.R.L. | E141: Privato
C142: 05050499. CSM PORTOGRUARO - AMBULATORIO | E142: Pubblico
C143: 05050499. N.P.I. DISTRETTO UNICO | E143: Pubblico
C144: 05050499. N.P.I. DISTR.2 'PORTOGRUARESE' | E144: Pubblico
C145: 05050499. SER.D. - SEDE DI SAN DONA' DI PIAVE - DISTRETTO UN | E145: Pubblico
C146: 05050499. SER.D. - SEDE DI PORTOGRUARO - DISTRETTO UNICO | E146: Pubblico
C147: 05050499. CONSULTORIO FAMILIARE - DISTRETTO UNICO - SEDE DI | E147: Pubblico
C148: 05050499. CONS.FAM.DISTR.2-JESOLO | E148: Pubblico
C149: 05050499. D.C.A. AMBULATORIALE | E149: Pubblico
C150: 05050499. PUNTO PRELIEVI PRAMAGGIORE | E150: Pubblico
C151: 05050499. PUNTO PRELIEVI TEGLIO VENETO | E151: Pubblico
C152: 05050499. PUNTO PRELIEVI GRUARO | E152: Pubblico
C153: 05050499. PUNTO PRELIEVI CINTO CAOMAGGIORE | E153: Pubblico
C154: 05050499. PUNTO PRELIEVI ANNONE VENETO | E154: Pubblico
C155: 05050499. PUNTO PRELIEVI MEOLO | E155: Pubblico
C156: 05050499. PUNTO PRELIEVI SAN DONA` DI PIAVE | E156: Pubblico
C157: 05050499. PUNTO PRELIEVI NOVENTA DI PIAVE | E157: Pubblico
C158: 05050499. PUNTO PRELIEVI CEGGIA | E158: Pubblico
C159: 05050499. PUNTO PRELIEVI FOSSALTA DI PIAVE | E159: Pubblico
C160: 05050499. PUNTO PRELIEVI ERACLEA | E160: Pubblico
C161: 05050499. PUNTO PRELIEVI CAORLE | E161: Pubblico
C162: 05050499. PUNTO PRELIEVI SAN MICHELE AL TAGLIAMENTO | E162: Pubblico
C163: 05050499. PUNTO PRELIEVI FOSSALTA DI PORTOGRUARO | E163: Pubblico
B164: 05009700. OSPEDALE CLASSIFICATO RAFFAELE ARCANGELO | E164: PRIVATO | F164: Ospedale classificato
B165: 05009800. OSPEDALE CLASSIFICATO VILLA SALUS | E165: PRIVATO | F165: Ospedale classificato
B166: 05021201. OSPEDALE CIVILE VENEZIA | E166: PUBBLICO | F166: Presidio ospedaliero di rete
B167: 05021204. OSPEDALE DELL`ANGELO | E167: PUBBLICO | F167: Hub provinciale
C168: 05050399. POLIAMB.OSPED.AL MARE | E168: Pubblico
C169: 05050399. DIST.1 POLIAMB.-MURANO | E169: Pubblico
C170: 05050399. DIST.1 AMB.VACCINALE PEDIAT. PELLESTRINA | E170: Pubblico
C171: 05050399. DIST.1 POLIAMB.-CA' SAVIO | E171: Pubblico
C172: 05050399. DIST.1 POLIAMB.-BURANO | E172: Pubblico
C173: 05050399. DIST.1 POLIAMB.-VENEZIA | E173: Pubblico
C174: 05050399. DIST.2 POLIAMB.-MESTRE | E174: Pubblico
C175: 05050399. DIST.2 POLIAMB.-MARGHERA | E175: Pubblico
C176: 05050399. DIST.2 CONS.FAM. MARGHERA | E176: Pubblico
C177: 05050399. DIST.3 CONS.FAM. V.S.MARCO ME | E177: Pubblico
C178: 05050399. DIST.2 CONS.FAM. FAVARO | E178: Pubblico
C179: 05050399. DIST.2 CONS.FAM. MARCON | E179: Pubblico
C180: 05050399. DIST.2 CONS.FAM. CHIRIGNAGO | E180: Pubblico
C181: 05050399. C.S.M. - MESTRE | E181: Pubblico
C182: 05050399. DIST.2 POLIAMB.-MARCON | E182: Pubblico
C183: 05050399. DIST.2 POLIAMB.-QUARTO | E183: Pubblico
C184: 05050399. DIST.2 POLIAMB.-FAVARO | E184: Pubblico
C185: 05050399. DIST.2 CENTRO PRELIEVI-CHIRIGNAGO | E185: Pubblico
C186: 05050399. C.S.M. - MESTRE NORD | E186: Pubblico
C187: 05050399. DIST.1 POLIAMB.-PELLESTRINA | E187: Pubblico
C188: 05050399. DIST.2 POLIAMB.-LIDO | E188: Pubblico
C189: 05050399. C.S.M. MARGHERA | E189: Pubblico
C190: 05050399. AMB. S.I.S.P. | E190: Pubblico
C191: 05050399. DIST.1 AMB.VACCINALE PEDIAT. LIDO | E191: Pubblico
C192: 05050399. DIST.1 CONS.FAM. LIDO | E192: Pubblico
C193: 05050399. C.S.M. LIDO | E193: Pubblico
C194: 05050399. SERV.PREV.RIAB.ETA'EVOL.-LIDO | E194: Pubblico
B195: 05021301. OSPEDALE DI DOLO | E195: PUBBLICO | F195: Presidio ospedaliero di rete su 2 sedi
B196: 05021302. OSPEDALE DI MIRANO | E196: PUBBLICO | F196: Presidio ospedaliero di rete su 2 sedi
B197: 05021303. OSPEDALE DI NOALE | E197: PUBBLICO | F197: Ospedale nodo di rete monospecialistico riabilitativo
C198: 05050399. DISTRETTO SOCIO SANITARIO - NOALE | E198: Pubblico
C199: 05050399. DISTRETTO SOCIO SANITARIO - MARTELLAGO | E199: Pubblico
C200: 05050399. DISTRETTO SOCIO SANITARIO - MIRANO | E200: Pubblico
... 261 more rows

Sheet SP_nuovoPDC (hidden)
A1: TA | B1: TA (TOTALE ATTIVO)
A2: AAZ999 | B2: A) IMMOBILIZZAZIONI
A3: AAA000 | B3: A.I) IMMOBILIZZAZIONI IMMATERIALI
A4: AAA010 | B4: A.I.1) Costi di impianto e di ampliamento
A5: AAA020 | B5: A.I.1.a) Costi di impianto e di ampliamento
A6: AAA030 | B6: A.I.1.b) F.do Amm.to costi di impianto e di ampliamento
A7: AAA040 | B7: A.I.2) Costi di ricerca e sviluppo
A8: AAA050 | B8: A.I.2.a) Costi di ricerca e sviluppo
A9: AAA060 | B9: A.I.2.b) F.do Amm.to costi di ricerca e sviluppo
A10: AAA070 | B10: A.I.3) Diritti di brevetto e diritti di utilizzazione delle opere d'ingegno
A11: AAA080 | B11: A.I.3.a) Diritti di brevetto e diritti di utilizzazione delle opere d'ingegno - derivanti dall'attività di ricerca
A12: AAA090 | B12: A.I.3.b) F.do Amm.to diritti di brevetto e diritti di utilizzazione delle opere d'ingegno - derivanti dall'attività di ricerca
A13: AAA100 | B13: A.I.3.c) Diritti di brevetto e diritti di utilizzazione delle opere d'ingegno - altri
A14: AAA110 | B14: A.I.3.d) F.do Amm.to diritti di brevetto e diritti di utilizzazione delle opere d'ingegno - altri
A15: AAA120 | B15: A.I.4) Immobilizzazioni immateriali in corso e acconti
A16: AAA120a | B16: A.I.4.a) Costi di impianto e di ampliamento
A17: AAA120b | B17: A.I.4.b) Costi di ricerca, sviluppo
A18: AAA120c | B18: A.I.4.c) Diritti di brevetto e diritti di utilizzazione delle opere d'ingegno
A19: AAA120d | B19: A.I.4.d) Altre immobilizzazioni immateriali
A20: AAA121a | B20: A.I.4.d.1) Concessioni, licenze, marchi e diritti simili
A21: AAA121b | B21: A.I.4.d.2) Migliorie su beni di terzi
A22: AAA121b1 | B22: A.I.4.d.2.a) Migliorie su beni di terzi con vincolo di destinazione sanitaria senza termini di scadenza
A23: AAA121b2 | B23: A.I.4.d.2.b) Altre migliorie su beni di terzi
A24: AAA121c | B24: A.I.4.d.3) Pubblicità
A25: AAA121d | B25: A.I.4.d.4) Altre immobilizzazioni immateriali
A26: AAA130 | B26: A.I.5) Altre immobilizzazioni immateriali
A27: AAA140 | B27: A.I.5.a) Concessioni, licenze, marchi e diritti simili
A28: AAA150 | B28: A.I.5.b) F.do Amm.to concessioni, licenze, marchi e diritti simili
A29: AAA160 | B29: A.I.5.c) Migliorie su beni di terzi
A30: AAA160a | B30: A.I.5.c.1) Migliorie su beni di terzi con vincolo di destinazione sanitaria senza termini di scadenza
A31: AAA160b | B31: A.I.5.c.2) Altre migliorie su beni di terzi
A32: AAA170 | B32: A.I.5.d) F.do Amm.to migliorie su beni di terzi
A33: AAA170a | B33: A.I.5.d.1) F.do Amm.to migliorie su beni di terzi con vincolo di destinazione sanitaria senza termini di scadenza
A34: AAA170b | B34: A.I.5.d.2) F.do Amm.to altre migliorie su beni di terzi
A35: AAA180 | B35: A.I.5.e) Pubblicità
A36: AAA190 | B36: A.I.5.f) F.do Amm.to pubblicità
A37: AAA200 | B37: A.I.5.g) Altre immobilizzazioni immateriali
A38: AAA210 | B38: A.I.5.h) F.do Amm.to altre immobilizzazioni immateriali
A39: AAA220 | B39: A.I.6) Fondo Svalutazione immobilizzazioni immateriali
A40: AAA230 | B40: A.I.6.a) F.do Svalut. Costi di impianto e di ampliamento
A41: AAA240 | B41: A.I.6.b) F.do Svalut. Costi di ricerca e sviluppo
A42: AAA250 | B42: A.I.6.c) F.do Svalut. Diritti di brevetto e diritti di utilizzazione delle opere d'ingegno
A43: AAA260 | B43: A.I.6.d) F.do Svalut. Altre immobilizzazioni immateriali
A44: AAA270 | B44: A.II) IMMOBILIZZAZIONI MATERIALI
A45: AAA280 | B45: A.II.1) Terreni
A46: AAA290 | B46: A.II.1.a) Terreni disponibili
A47: AAA300 | B47: A.II.1.b) Terreni indisponibili
A48: AAA310 | B48: A.II.2) Fabbricati
A49: AAA320 | B49: A.II.2.a) Fabbricati non strumentali (disponibili)
A50: AAA330 | B50: A.II.2.a.1) Fabbricati non strumentali (disponibili)
A51: AAA330a | B51: A.II.2.a.1.a) Fabbricati non strumentali (disponibili)
A52: AAA330b | B52: A.II.2.a.1.b) Costruzioni leggere non strumentali (disponibili)
A53: AAA340 | B53: A.II.2.a.2) F.do Amm.to Fabbricati non strumentali (disponibili)
A54: AAA340a | B54: A.II.2.a.2.a) F.do Amm.to Fabbricati non strumentali (disponibili)
A55: AAA340b | B55: A.II.2.a.2.b) F.do Amm.to Costruzioni leggere non strumentali (disponibili)
A56: AAA350 | B56: A.II.2.b) Fabbricati strumentali (indisponibili)
A57: AAA360 | B57: A.II.2.b.1) Fabbricati strumentali (indisponibili)
A58: AAA360a | B58: A.II.2.b.1.a) Fabbricati strumentali (indisponibili)
A59: AAA360b | B59: A.II.2.b.1.b) Costruzioni leggere strumentali (indisponibili)
A60: AAA370 | B60: A.II.2.b.2) F.do Amm.to Fabbricati strumentali (indisponibili)
A61: AAA370a | B61: A.II.2.b.2.a) F.do Amm.to Fabbricati strumentali (indisponibili)
A62: AAA370b | B62: A.II.2.b.2.b) F.do Amm.to Costruzioni leggere strumentali (indisponibili)
A63: AAA380 | B63: A.II.3) Impianti e macchinari
A64: AAA390 | B64: A.II.3.a) Impianti e macchinari
A65: AAA390a | B65: A.II.3.a.1) Impianti e macchinari - audiovisivi
A66: AAA390b | B66: A.II.3.a.2) Impianti e macchinari - altro
A67: AAA400 | B67: A.II.3.b) F.do Amm.to Impianti e macchinari
A68: AAA400a | B68: A.II.3.b.1) F.do Amm.to Impianti e macchinari - audiovisivi
A69: AAA400b | B69: A.II.3.b.2) F.do Amm.to Impianti e macchinari - altro
A70: AAA410 | B70: A.II.4) Attrezzature sanitarie e scientifiche
A71: AAA420 | B71: A.II.4.a) Attrezzature sanitarie e scientifiche
A72: AAA430 | B72: A.II.4.b) F.do Amm.to Attrezzature sanitarie e scientifiche
A73: AAA440 | B73: A.II.5) Mobili e arredi
A74: AAA450 | B74: A.II.5.a) Mobili e arredi
A75: AAA460 | B75: A.II.5.b) F.do Amm.to Mobili e arredi
A76: AAA470 | B76: A.II.6) Automezzi
A77: AAA480 | B77: A.II.6.a) Automezzi
A78: AAA490 | B78: A.II.6.b) F.do Amm.to Automezzi
A79: AAA500 | B79: A.II.7) Oggetti d'arte
A80: AAA510 | B80: A.II.8) Altre immobilizzazioni materiali
A81: AAA520 | B81: A.II.8.a) Altre immobilizzazioni materiali
A82: AAA520a | B82: A.II.8.a.1) Macchine d'ufficio
A83: AAA520b | B83: A.II.8.a.2) Altre immobilizzazioni materiali (altri beni)
A84: AAA530 | B84: A.II.8.b) F.do Amm.to Altre immobilizzazioni materiali
A85: AAA530a | B85: A.II.8.b.1) F.do Amm.to Macchine d'ufficio
A86: AAA530b | B86: A.II.8.b.2) F.do Amm.to Altre immobilizzazioni materiali (altri beni)
A87: AAA540 | B87: A.II.9) Immobilizzazioni materiali in corso e acconti
A88: AAA540a | B88: A.II.9.a) Terreni
A89: AAA540b | B89: A.II.9.b) Fabbricati
A90: AAA540c | B90: A.II.9.c) Impianti e macchinari
A91: AAA540d | B91: A.II.9.d) Attrezzature sanitarie e scientifiche
A92: AAA540e | B92: A.II.9.e) Mobili e arredi
A93: AAA540f | B93: A.II.9.f) Automezzi
A94: AAA540g | B94: A.II.9.g) Oggetti d'arte
A95: AAA540h | B95: A.II.9.h) Altre immobilizzazioni materiali
A96: AAA540h1 | B96: A.II.9.h.1) Macchine d'ufficio
A97: AAA540h2 | B97: A.II.9.h.2) Altre immobilizzaioni materiali (altri beni)
A98: AAA550 | B98: A.II.10) Fondo Svalutazione immobilizzazioni materiali
A99: AAA560 | B99: A.II.10.a) F.do Svalut. Terreni
A100: AAA570 | B100: A.II.10.b) F.do Svalut. Fabbricati
A101: AAA580 | B101: A.II.10.c) F.do Svalut. Impianti e macchinari
A102: AAA590 | B102: A.II.10.d) F.do Svalut. Attrezzature sanitarie e scientifiche
A103: AAA600 | B103: A.II.10.e) F.do Svalut. Mobili e arredi
A104: AAA610 | B104: A.II.10.f) F.do Svalut. Automezzi
A105: AAA620 | B105: A.II.10.g) F.do Svalut. Oggetti d'arte
A106: AAA630 | B106: A.II.10.h) F.do Svalut. Altre immobilizzazioni materiali
A107: AAA640 | B107: A.III) IMMOBILIZZAZIONI FINANZIARIE
A108: AAA650 | B108: A.III.1) Crediti finanziari
A109: AAA660 | B109: A.III.1.a) Crediti finanziari v/Stato
A110: AAA670 | B110: A.III.1.b) Crediti finanziari v/Regione
A111: AAA680 | B111: A.III.1.c) Crediti finanziari v/partecipate
A112: AAA690 | B112: A.III.1.d) Crediti finanziari v/altri
A113: AAA700 | B113: A.III.2) Titoli
A114: AAA710 | B114: A.III.2.a) Partecipazioni
A115: AAA710a | B115: A.III.2.a.1) Partecipazioni in imprese controllate
A116: AAA710b | B116: A.III.2.a.2) Partecipazioni in imprese collegate
A117: AAA710c | B117: A.III.2.a.3) Partecipazioni in altre imprese
A118: AAA720 | B118: A.III.2.b) Altri titoli
A119: AAA730 | B119: A.III.2.b.1) Titoli di Stato
A120: AAA740 | B120: A.III.2.b.2) Altre Obbligazioni
A121: AAA750 | B121: A.III.2.b.3) Titoli azionari quotati in Borsa
A122: AAA760 | B122: A.III.2.b.4) Titoli diversi
A123: ABZ999 | B123: B) ATTIVO CIRCOLANTE
A124: ABA000 | B124: B.I) RIMANENZE
A125: ABA010 | B125: B.I.1) Rimanenze beni sanitari
A126: ABA020 | B126: B.I.1.a) Prodotti farmaceutici ed emoderivati
A127: ABA030 | B127: B.I.1.b) Sangue ed emocomponenti
A128: ABA040 | B128: B.I.1.c) Dispositivi medici
A129: ABA050 | B129: B.I.1.d) Prodotti dietetici
A130: ABA060 | B130: B.I.1.e) Materiali per la profilassi (vaccini)
A131: ABA070 | B131: B.I.1.f) Prodotti chimici
A132: ABA080 | B132: B.I.1.g) Materiali e prodotti per uso veterinario
A133: ABA090 | B133: B.I.1.h) Altri beni e prodotti sanitari
A134: ABA100 | B134: B.I.1.i) Acconti per acquisto di beni e prodotti sanitari
A135: ABA110 | B135: B.I.2) Rimanenze beni non sanitari
A136: ABA120 | B136: B.I.2.a) Prodotti alimentari
A137: ABA130 | B137: B.I.2.b) Materiali di guardaroba, di pulizia, e di convivenza in genere
A138: ABA140 | B138: B.I.2.c) Combustibili, carburanti e lubrificanti
A139: ABA150 | B139: B.I.2.d) Supporti informatici e cancelleria
A140: ABA160 | B140: B.I.2.e) Materiale per la manutenzione
A141: ABA170 | B141: B.I.2.f) Altri beni e prodotti non sanitari
A142: ABA180 | B142: B.I.2.g) Acconti per acquisto di beni e prodotti non sanitari
A143: ABA190 | B143: B.II) CREDITI
A144: ABA200 | B144: B.II.1) Crediti v/Stato
A145: ABA201 | B145: B.II.1.a) Crediti v/Stato per spesa corrente - FSN indistinto
A146: ABA220 | B146: B.II.1.b) Crediti v/Stato per spesa corrente - FSN vincolato
A147: ABA230 | B147: B.II.1.c) Crediti v/Stato per mobilità attiva extraregionale
A148: ABA240 | B148: B.II.1.d) Crediti v/Stato per mobilità attiva internazionale
A149: ABA250 | B149: B.II.1.e) Crediti v/Stato per acconto quota fabbisogno sanitario regionale standard
A150: ABA260 | B150: B.II.1.f) Crediti v/Stato per finanziamento sanitario aggiuntivo corrente
A151: ABA270 | B151: B.II.1.g) Crediti v/Stato per spesa corrente - altro
A152: ABA271 | B152: B.II.1.h) Crediti v/Stato per spesa corrente per STP (ex D.lgs. 286/98)
A153: ABA280 | B153: B.II.1.i) Crediti v/Stato per finanziamenti per investimenti
A154: ABA290 | B154: B.II.1.j) Crediti v/Stato per ricerca
A155: ABA300 | B155: B.II.1.j.1) Crediti v/Stato per ricerca corrente - Ministero della Salute
A156: ABA310 | B156: B.II.1.j.2) Crediti v/Stato per ricerca finalizzata - Ministero della Salute
A157: ABA320 | B157: B.II.1.j.3) Crediti v/Stato per ricerca - altre Amministrazioni centrali
A158: ABA330 | B158: B.II.1.j.4) Crediti v/Stato per ricerca - finanziamenti per investimenti
A159: ABA340 | B159: B.II.1.k) Crediti v/prefetture
A160: ABA350 | B160: B.II.2) Crediti v/Regione o Provincia Autonoma
A161: ABA360 | B161: B.II.2.a) Crediti v/Regione o Provincia Autonoma per spesa corrente
A162: ABA390 | B162: B.II.2.a.1) Crediti v/Regione o Provincia Autonoma per quota FSR
A163: ABA390a | B163: B.II.2.a.1.a) Crediti v/Regione o Provincia Autonoma per quota FSR
A164: ABA390b | B164: B.II.2.a.1.b) Crediti v/Azienda Zero per quota FSR
A165: ABA400 | B165: B.II.2.a.2) Crediti v/Regione o Provincia Autonoma per mobilità attiva intraregionale
A166: ABA400a | B166: B.II.2.a.2.a) Crediti v/Regione o Provincia Autonoma per mobilità attiva intraregionale
A167: ABA400b | B167: B.II.2.a.2.b) Crediti v/Azienda Zero per mobilità attiva intraregionale
A168: ABA410 | B168: B.II.2.a.3) Crediti v/Regione o Provincia Autonoma per mobilità attiva extraregionale
A169: ABA410a | B169: B.II.2.a.3.a) Crediti v/Regione o Provincia Autonoma per mobilità attiva extraregionale
A170: ABA410b | B170: B.II.2.a.3.b) Crediti v/Azienda Zero per mobilità attiva extraregionale
A171: ABA420 | B171: B.II.2.a.4) Crediti v/Regione o Provincia Autonoma per acconto quota FSR
A172: ABA420a | B172: B.II.2.a.4.a) Crediti v/Regione o Provincia Autonoma per acconto quota FSR
A173: ABA420b | B173: B.II.2.a.4.b) Crediti v/Azienda Zero per acconto quota FSR
A174: ABA430 | B174: B.II.2.a.5) Crediti v/Regione o Provincia Autonoma per finanziamento sanitario aggiuntivo corrente LEA
A175: ABA430a | B175: B.II.2.a.5.a) Crediti v/Regione o Provincia Autonoma per finanziamento sanitario aggiuntivo corrente LEA
A176: ABA430b | B176: B.II.2.a.5.b) Crediti v/Azienda Zero per finanziamento sanitario aggiuntivo corrente LEA
A177: ABA440 | B177: B.II.2.a.6) Crediti v/Regione o Provincia Autonoma per finanziamento sanitario aggiuntivo corrente extra LEA
A178: ABA440a | B178: B.II.2.a.6.a) Crediti v/Regione o Provincia Autonoma per finanziamento sanitario aggiuntivo corrente extra LEA
A179: ABA440b | B179: B.II.2.a.6.b) Crediti v/Azienda Zero per finanziamento sanitario aggiuntivo corrente extra LEA
A180: ABA450 | B180: B.II.2.a.7) Crediti v/Regione o Provincia Autonoma per spesa corrente - altro
A181: ABA450a | B181: B.II.2.a.7.a) Crediti v/Regione o Provincia Autonoma per spesa corrente - altro - GSA
A182: ABA450b | B182: B.II.2.a.7.b) Crediti v/Azienda Zero per spesa corrente - altro
A183: ABA450c | B183: B.II.2.a.7.c) Crediti v/Regione o Provincia Autonoma per spesa corrente - altro - NO GSA
A184: ABA451 | B184: B.II.2.a.8) Crediti v/Regione o Provincia Autonoma per spesa corrente - STP (ex D.lgs. 286/98)
A185: ABA451a | B185: B.II.2.a.8.a) Crediti v/Regione o Provincia Autonoma per spesa corrente - STP (ex D.lgs. 286/98)
A186: ABA451b | B186: B.II.2.a.8.b) Crediti v/Azienda Zero per spesa corrente - STP (ex D.lgs. 286/98)
A187: ABA460 | B187: B.II.2.a.9) Crediti v/Regione o Provincia Autonoma per ricerca
A188: ABA460a | B188: B.II.2.a.9.a) Crediti v/Regione o Provincia Autonoma per ricerca
A189: ABA460b | B189: B.II.2.a.9.b) Crediti v/Azienda Zero per ricerca
A190: ABA461 | B190: B.II.2.a.10) Crediti v/Regione o Provincia Autonoma per mobilità attiva internazionale
A191: ABA461a | B191: B.II.2.a.10.a) Crediti v/Regione o Provincia Autonoma per mobilità attiva internazionale
A192: ABA461b | B192: B.II.2.a.10.b) Crediti v/Azienda Zero per mobilità attiva internazionale
A193: ABA470 | B193: B.II.2.b) Crediti v/Regione o Provincia Autonoma per versamenti a patrimonio netto
A194: ABA480 | B194: B.II.2.b.1) Crediti v/Regione o Provincia Autonoma per finanziamenti per investimenti
A195: ABA480a | B195: B.II.2.b.1.a) Crediti v/Regione o Provincia Autonoma per finanziamenti per investimenti
A196: ABA480b | B196: B.II.2.b.1.b) Crediti v/Azienda Zero per finanziamenti per investimenti
A197: ABA480c | B197: B.II.2.b.1.c) Crediti v/Azienda Zero per finanziamenti per investimenti - altro
A198: ABA480d | B198: B.II.2.b.1.d) Crediti v/Regione o Provincia Autonoma per finanziamenti per investimenti - NO GSA
A199: ABA490 | B199: B.II.2.b.2) Crediti v/Regione o Provincia Autonoma per incremento fondo dotazione
A200: ABA490a | B200: B.II.2.b.2.a) Crediti v/Regione o Provincia Autonoma per incremento fondo dotazione
... 236 more rows

Sheet altre anagrafiche (hidden)
B1: Colonna autorizzazione CRITE
A2: Nel caso l'investimento complessivo superi o no la soglia CRITE (200.000 € + IVA) | B2: SI
B3: NO
B5: colonna tipologia lavori (edilizia/impiantistica)
A6: Per la parte di Edilizia da compilare come da art. 128 co.3 D.Lgs. 163/2006 secondo i seguenti parametri | B6: nuova realizzazione | C6: 1 - nuova realizzazione
B7: demolizione | C7: 2 - demolizione
B8: lavori di recupero del patrimonio esistente | C8: 3 - lavori di recupero del patrimonio esistente
B9: ristrutturazione | C9: 4 - ristrutturazione
B10: interventi di adeguamento normativo | C10: 5 - interventi di adeguamento normativo
B11: manutenzione ordinaria | C11: 6 - manutenzione ordinaria
B12: manutenzione straordinaria | C12: 7 - manutenzione straordinaria
B13: ampliamento | C13: 8 - ampliamento
B14: colonna tipologia lavori (altra natura)
B15: gara regionale | C15: 9 - gara regionale
B16: gara aziendale/procedura negoziata/convenzione/affidamento diretto/…. | C16: 10 - gara aziendale/procedura negoziata/convenzione/affidamento diretto/….
B18: colonna stato di avanzamento (edilizia)
A19: esplicitare lo stato di avanzamento dell'iter amministrativo di acquisizione del cespite / realizzazione dell'opera | B19: iter non ancora avviato
B20: presenza del documento finale relativo al progetto di fattibilità tecnico-economica
B21: iter avviato con la presenza del documento di progetto definitivo
B22: presente il progetto esecutivo e già adottata la "delibera a contrarre"
B23: colonna stato di avanzamento (NO edilizia)
B24: iter non ancora avviato cespite solo in programmazione
B25: fasi preliminari alla gara
B26: fase di gara in corso o di acquisizione in corso
B27: cespite entrato nel processo produttivo
A30: validità investimento (viene sostituito mediante l'utilizzo del codice univoco di investimento) | B30: investimento annullato
B31: capitalizzazione spostata nell'esercizio successivo
B32: investimento rinviato
B33: C.R.I.T.E.
B34: assenza di copertura finanziaria
B35: …ALTRO

Sheet ANAGR (hidden)
A1: ENTE_ID | B1: ENTE_DESC | C1: ANNO | D1: PERIODO_VERSIONE | E1: DT_GENERAZIONE | F1: VERSIONE_MODELLO
A2: 500 | B2: Azienda Zero | C2: 2024 | D2: PREV | E2: 2021-03-16T09:27:02 | F2: V1

Sheet Totale investimenti
A1: =Info!B2 -> 0 | B1: =Info!C2 -> 0 | D1: =Info!B3 -> 2025
B2: All. 2 ) Piano Investimenti 2025-2027
A3: TOTALI | C3: ❶ CESPITI CAPITALIZZATI provenienti da Immobilizzazioni in corso fino al 31/12/2024 | D3: ❷ NUOVI ACQUISTI e INCREMENTI MIGLIORATIVI (su cespiti già esistenti) CAPITALIZZATI entro il 31/12/2025 | E3: ❸ = 1+2 TOTALE CAPITALIZZATO AL 31/12/2025 | F3: 4 IN CORSO AL 31/12/2025 | G3: PAA070a PAA070b PAA070d | H3: PAA040 (a e b) PAA050 (a e b) PAA060 (a e b) | I3: PAA080 | J3: PAA100 | K3: PAA090b PAA090c PAA090d PAA090e | L3: PAA000 | M3: PAA130 Riserve da plusvalenze PAA140 Contributi da reinvestire | N3: PDA000 Debiti per mutui (non viene iscritta alcuna riserva) | O3: PAA070c | P3: PAA070c | Q3: PAA070c | R3: PAA090a | S3: PAA090a | T3: PAA060a
B4: Valore PROGRAMMATO del cespite/intervento | G4: ❶ Contributi regionali in conto capitale | H4: ❷ Contributi statali in conto capitale | I4: ❹ Contributi in conto capitale da altre P.A. | J4: ❺ Contributi in conto capitale acquisti da soggetti privati | K4: ❻ Contributi vincolati destinati in parte al finanziamento di beni immobili, esclusi i finaziamenti a funzione | L4: ❼ Utili di esercizio | M4: ❽ Introiti derivanti da alienazioni | N4: ❿ Entrate derivanti da contrazione di mutui autorizzati | O4: ⓫ Fondo per il Finanziamento degli Investimenti - POTENZIAMENTO | P4: ⓬ Impiego Obiettivi di piano - Utili GSA - Cespiti COVID/PANFLU da elenchi Azienda Zero | Q4: 13 Fondo per il Finanziamento degli Investimenti -MANTENIMENTO (Budget Aziendale) | R4: ⓮ Rettifiche già apportate in anni precedenti (correlata tavola 33 SP) | S4: ⓯ Contributi aziendali in conto esercizio (compresi i finanziamenti a funzione) | T4: ⓰ Cespiti Finanziati con il DL 34/2020 "Rilancio" - Covid DGRV 782/2020 | U4: TOTALE FINANZIAMENTI | V4: ⓱ Cespiti in attesa di copertura finanziaria | W4: NOTE | X4: QUADRATURA
A5: 2025 | B5: =SUMIF('Anno 2025 Capitalizzato'!$E$7:E498,$A$5,'Anno 2025 Capitalizzato'!$O$7:O498)-B8 -> 47536400 | C5: =SUMIF('Anno 2025 Capitalizzato'!$E$7:$E$498,$A$5,'Anno 2025 Capitalizzato'!$P$7:P498) -> 0 | D5: =SUMIF('Anno 2025 Capitalizzato'!$E$7:$E$498,$A$5,'Anno 2025 Capitalizzato'!$Q$7:$Q$498) -> 47536400 | E5: =SUMIF('Anno 2025 Capitalizzato'!$E$7:$E$498,A5,'Anno 2025 Capitalizzato'!$R$7:$R$498) -> 47536400 | F5: 0 | G5: =SUMIF('Anno 2025 Capitalizzato'!$E$7:$E$498,$A$5,'Anno 2025 Capitalizzato'!$T$7:$T$498) -> 0 | H5: =SUMIF('Anno 2025 Capitalizzato'!$E$7:$E$498,$A$5,'Anno 2025 Capitalizzato'!$U$7:$U$498)-H8 -> 15438000 | I5: =SUMIF('Anno 2025 Capitalizzato'!$E$7:$E$498,$A$5,'Anno 2025 Capitalizzato'!$V$7:$V$498) -> 0 | J5: =SUMIF('Anno 2025 Capitalizzato'!$E$7:M498,$A$5,'Anno 2025 Capitalizzato'!$W$7:$W$498) -> 0 | K5: =SUMIF('Anno 2025 Capitalizzato'!$E$7:$E$498,$A$5,'Anno 2025 Capitalizzato'!$X$7:$X$498) -> 1600000 | L5: =SUMIF('Anno 2025 Capitalizzato'!$E$7:$E$498,$A$5,'Anno 2025 Capitalizzato'!$Y$7:$Y$498) -> 319300 | M5: =SUMIF('Anno 2025 Capitalizzato'!$E$7:$E$498,$A$5,'Anno 2025 Capitalizzato'!$Z$7:$Z$498) -> 0 | N5: =SUMIF('Anno 2025 Capitalizzato'!$E$7:$E$498,$A$5,'Anno 2025 Capitalizzato'!$AA$7:$AA$498) -> 0 | O5: =SUMIF('Anno 2025 Capitalizzato'!$E$7:$E$498,$A$5,'Anno 2025 Capitalizzato'!$AB$7:$AB$498) -> 0 | P5: =SUMIF('Anno 2025 Capitalizzato'!$E$7:$E$498,$A$5,'Anno 2025 Capitalizzato'!$AC$7:$AC$498) -> 0 | Q5: =SUMIF('Anno 2025 Capitalizzato'!$E$7:$E$498,$A$5,'Anno 2025 Capitalizzato'!$AD$7:$AD$498) -> 0 | R5: =SUMIF('Anno 2025 Capitalizzato'!$E$7:$E$498,$A$5,'Anno 2025 Capitalizzato'!$AE$7:$AE$498) -> 0 | S5: =SUMIF('Anno 2025 Capitalizzato'!$E$7:$E$498,$A$5,'Anno 2025 Capitalizzato'!$AF$7:$AF$498)-S8 -> 30179100 | T5: =SUMIF('Anno 2025 Capitalizzato'!$E$7:$E$498,$A$5,'Anno 2025 Capitalizzato'!$AG$7:$AG$498) -> 0 | U5: =SUMIF('Anno 2025 Capitalizzato'!$E$7:$E$498,$A$5,'Anno 2025 Capitalizzato'!$AH$7:$AH$498)-U8 -> 47536400 | V5: =SUMIF('Anno 2025 Capitalizzato'!$E$7:$E$498,$A$5,'Anno 2025 Capitalizzato'!$AI$7:$AI$498) -> 0 | W5: =SUMIF('Anno 2025 Capitalizzato'!$E$7:$E$498,$A$5,'Anno 2025 Capitalizzato'!$AJ$7:$AJ$498) -> 0 | X5: =SUMIF('Anno 2025 Capitalizzato'!$E$7:$E$498,$A$5,'Anno 2025 Capitalizzato'!$AK$7:$AK$498) -> 0
A6: 2026 | B6: =SUMIF('Anno 2025 Capitalizzato'!$E$7:E499,$A$6,'Anno 2025 Capitalizzato'!$O$7:O499) -> 34780726 | C6: =SUMIF('Anno 2025 Capitalizzato'!$E$7:$E$498,$A$6,'Anno 2025 Capitalizzato'!$P$7:P499) -> 0 | D6: =SUMIF('Anno 2025 Capitalizzato'!$E$7:$E$498,$A$6,'Anno 2025 Capitalizzato'!$Q$7:$Q$498) -> 34780726 | E6: =SUMIF('Anno 2025 Capitalizzato'!$E$7:$E$498,A6,'Anno 2025 Capitalizzato'!$R$7:$R$498) -> 34780726 | F6: =SUMIF('Anno 2025 Capitalizzato'!$E$7:$E$498,$A$6,'Anno 2025 Capitalizzato'!$S$7:$S$498) -> 0 | G6: =SUMIF('Anno 2025 Capitalizzato'!$E$7:$E$498,$A$6,'Anno 2025 Capitalizzato'!$T$7:$T$498) -> 0 | H6: =SUMIF('Anno 2025 Capitalizzato'!$E$7:$E$498,$A$6,'Anno 2025 Capitalizzato'!$U$7:$U$498) -> 13835456 | I6: =SUMIF('Anno 2025 Capitalizzato'!$E$7:$E$498,$A$6,'Anno 2025 Capitalizzato'!$V$7:$V$498) -> 0 | J6: =SUMIF('Anno 2025 Capitalizzato'!$E$7:M499,$A$6,'Anno 2025 Capitalizzato'!$W$7:$W$498) -> 0 | K6: =SUMIF('Anno 2025 Capitalizzato'!$E$7:$E$498,$A$6,'Anno 2025 Capitalizzato'!$X$7:$X$498) -> 350000 | L6: =SUMIF('Anno 2025 Capitalizzato'!$E$7:$E$498,$A$6,'Anno 2025 Capitalizzato'!$Y$7:$Y$498) -> 0 | M6: =SUMIF('Anno 2025 Capitalizzato'!$E$7:$E$498,$A$6,'Anno 2025 Capitalizzato'!$Z$7:$Z$498) -> 0 | N6: =SUMIF('Anno 2025 Capitalizzato'!$E$7:$E$498,$A$6,'Anno 2025 Capitalizzato'!$AA$7:$AA$498) -> 0 | O6: =SUMIF('Anno 2025 Capitalizzato'!$E$7:$E$498,$A$6,'Anno 2025 Capitalizzato'!$AB$7:$AB$498) -> 0 | P6: =SUMIF('Anno 2025 Capitalizzato'!$E$7:$E$498,$A$6,'Anno 2025 Capitalizzato'!$AC$7:$AC$498) -> 0 | Q6: =SUMIF('Anno 2025 Capitalizzato'!$E$7:$E$498,$A$6,'Anno 2025 Capitalizzato'!$AD$7:$AD$498) -> 0 | R6: =SUMIF('Anno 2025 Capitalizzato'!$E$7:$E$498,$A$6,'Anno 2025 Capitalizzato'!$AE$7:$AE$498) -> 0 | S6: =SUMIF('Anno 2025 Capitalizzato'!$E$7:$E$498,$A$6,'Anno 2025 Capitalizzato'!$AF$7:$AF$498) -> 20595270 | T6: =SUMIF('Anno 2025 Capitalizzato'!$E$7:$E$498,$A$6,'Anno 2025 Capitalizzato'!$AG$7:$AG$498) -> 0 | U6: =SUMIF('Anno 2025 Capitalizzato'!$E$7:$E$498,$A$6,'Anno 2025 Capitalizzato'!$AH$7:$AH$498) -> 34780726 | V6: =SUMIF('Anno 2025 Capitalizzato'!$E$7:$E$498,$A$6,'Anno 2025 Capitalizzato'!$AI$7:$AI$498) -> 0 | W6: =SUMIF('Anno 2025 Capitalizzato'!$E$7:$E$498,$A$6,'Anno 2025 Capitalizzato'!$AJ$7:$AJ$498) -> 0 | X6: =SUMIF('Anno 2025 Capitalizzato'!$E$7:$E$498,$A$6,'Anno 2025 Capitalizzato'!$AK$7:$AK$498) -> 0
A7: 2027 | B7: =SUMIF('Anno 2025 Capitalizzato'!$E$7:E500,$A$7,'Anno 2025 Capitalizzato'!$O$7:O500) -> 26379350 | C7: =SUMIF('Anno 2025 Capitalizzato'!$E$7:$E$498,$A$7,'Anno 2025 Capitalizzato'!$P$7:P500) -> 0 | D7: =SUMIF('Anno 2025 Capitalizzato'!$E$7:$E$498,$A$7,'Anno 2025 Capitalizzato'!$Q$7:$Q$498) -> 26379350 | E7: =SUMIF('Anno 2025 Capitalizzato'!$E$7:$E$498,A7,'Anno 2025 Capitalizzato'!$R$7:$R$498) -> 26379350 | F7: =SUMIF('Anno 2025 Capitalizzato'!$E$7:$E$498,$A$7,'Anno 2025 Capitalizzato'!$S$7:$S$498) -> 0 | G7: =SUMIF('Anno 2025 Capitalizzato'!$E$7:$E$498,$A$7,'Anno 2025 Capitalizzato'!$T$7:$T$498) -> 0 | H7: =SUMIF('Anno 2025 Capitalizzato'!$E$7:$E$498,$A$7,'Anno 2025 Capitalizzato'!$U$7:$U$498) -> 7826000 | I7: =SUMIF('Anno 2025 Capitalizzato'!$E$7:$E$498,$A$7,'Anno 2025 Capitalizzato'!$V$7:$V$498) -> 0 | J7: =SUMIF('Anno 2025 Capitalizzato'!$E$7:M500,$A$7,'Anno 2025 Capitalizzato'!$W$7:$W$498) -> 0 | K7: =SUMIF('Anno 2025 Capitalizzato'!$E$7:$E$498,$A$7,'Anno 2025 Capitalizzato'!$X$7:$X$498) -> 350000 | L7: =SUMIF('Anno 2025 Capitalizzato'!$E$7:$E$498,$A$7,'Anno 2025 Capitalizzato'!$Y$7:$Y$498) -> 0 | M7: =SUMIF('Anno 2025 Capitalizzato'!$E$7:$E$498,$A$7,'Anno 2025 Capitalizzato'!$Z$7:$Z$498) -> 0 | N7: =SUMIF('Anno 2025 Capitalizzato'!$E$7:$E$498,$A$7,'Anno 2025 Capitalizzato'!$AA$7:$AA$498) -> 0 | O7: =SUMIF('Anno 2025 Capitalizzato'!$E$7:$E$498,$A$7,'Anno 2025 Capitalizzato'!$AB$7:$AB$498) -> 0 | P7: =SUMIF('Anno 2025 Capitalizzato'!$E$7:$E$498,$A$7,'Anno 2025 Capitalizzato'!$AC$7:$AC$498) -> 0 | Q7: =SUMIF('Anno 2025 Capitalizzato'!$E$7:$E$498,$A$7,'Anno 2025 Capitalizzato'!$AD$7:$AD$498) -> 0 | R7: =SUMIF('Anno 2025 Capitalizzato'!$E$7:$E$498,$A$7,'Anno 2025 Capitalizzato'!$AE$7:$AE$498) -> 0 | S7: =SUMIF('Anno 2025 Capitalizzato'!$E$7:$E$498,$A$7,'Anno 2025 Capitalizzato'!$AF$7:$AF$498) -> 18203350 | T7: =SUMIF('Anno 2025 Capitalizzato'!$E$7:$E$498,$A$7,'Anno 2025 Capitalizzato'!$AG$7:$AG$498) -> 0 | U7: =SUMIF('Anno 2025 Capitalizzato'!$E$7:$E$498,$A$7,'Anno 2025 Capitalizzato'!$AH$7:$AH$498) -> 26379350 | V7: =SUMIF('Anno 2025 Capitalizzato'!$E$7:$E$498,$A$7,'Anno 2025 Capitalizzato'!$AI$7:$AI$498) -> 0 | W7: =SUMIF('Anno 2025 Capitalizzato'!$E$7:$E$498,$A$7,'Anno 2025 Capitalizzato'!$AJ$7:$AJ$498) -> 0 | X7: =SUMIF('Anno 2025 Capitalizzato'!$E$7:$E$498,$A$7,'Anno 2025 Capitalizzato'!$AK$7:$AK$498) -> 0
A8: 2025 in corso | B8: 17832700 | C8: =SUMIF('Anno 2025 Capitalizzato'!$E$7:$E$498,$A$8,'Anno 2025 Capitalizzato'!$P$7:P501) -> 0 | D8: =SUMIF('Anno 2025 Capitalizzato'!$E$7:$E$498,$A$8,'Anno 2025 Capitalizzato'!$Q$7:$Q$498) -> 0 | E8: =SUMIF('Anno 2025 Capitalizzato'!$E$7:$E$498,A8,'Anno 2025 Capitalizzato'!$R$7:$R$498) -> 0 | F8: 17832700 | G8: =SUMIF('Anno 2025 Capitalizzato'!$E$7:$E$498,$A$8,'Anno 2025 Capitalizzato'!$T$7:$T$498) -> 0 | H8: 17790000 | I8: =SUMIF('Anno 2025 Capitalizzato'!$E$7:$E$498,$A$8,'Anno 2025 Capitalizzato'!$V$7:$V$498) -> 0 | J8: =SUMIF('Anno 2025 Capitalizzato'!$E$7:M501,$A$8,'Anno 2025 Capitalizzato'!$W$7:$W$498) -> 0 | K8: =SUMIF('Anno 2025 Capitalizzato'!$E$7:$E$498,$A$8,'Anno 2025 Capitalizzato'!$X$7:$X$498) -> 0 | L8: =SUMIF('Anno 2025 Capitalizzato'!$E$7:$E$498,$A$8,'Anno 2025 Capitalizzato'!$Y$7:$Y$498) -> 0 | M8: =SUMIF('Anno 2025 Capitalizzato'!$E$7:$E$498,$A$8,'Anno 2025 Capitalizzato'!$Z$7:$Z$498) -> 0 | N8: =SUMIF('Anno 2025 Capitalizzato'!$E$7:$E$498,$A$8,'Anno 2025 Capitalizzato'!$AA$7:$AA$498) -> 0 | O8: =SUMIF('Anno 2025 Capitalizzato'!$E$7:$E$498,$A$8,'Anno 2025 Capitalizzato'!$AB$7:$AB$498) -> 0 | P8: =SUMIF('Anno 2025 Capitalizzato'!$E$7:$E$498,$A$8,'Anno 2025 Capitalizzato'!$AC$7:$AC$498) -> 0 | Q8: =SUMIF('Anno 2025 Capitalizzato'!$E$7:$E$498,$A$8,'Anno 2025 Capitalizzato'!$AD$7:$AD$498) -> 0 | R8: =SUMIF('Anno 2025 Capitalizzato'!$E$7:$E$498,$A$8,'Anno 2025 Capitalizzato'!$AE$7:$AE$498) -> 0 | S8: 42700 | T8: =SUMIF('Anno 2025 Capitalizzato'!$E$7:$E$498,$A$8,'Anno 2025 Capitalizzato'!$AG$7:$AG$498) -> 0 | U8: =SUM(G8:T8) -> 17832700 | V8: =SUMIF('Anno 2025 Capitalizzato'!$E$7:$E$498,$A$8,'Anno 2025 Capitalizzato'!$AI$7:$AI$498) -> 0 | W8: =SUMIF('Anno 2025 Capitalizzato'!$E$7:$E$498,$A$8,'Anno 2025 Capitalizzato'!$AJ$7:$AJ$498) -> 0 | X8: =SUMIF('Anno 2025 Capitalizzato'!$E$7:$E$498,$A$8,'Anno 2025 Capitalizzato'!$AK$7:$AK$498) -> 0
A9: TOTALE | B9: =SUM(B5:B8) -> 126529176 | C9: =SUM(C5:C8) -> 0 | D9: 108696476 | E9: 108696476 | F9: 17832700 | G9: 0 | H9: 54889456 | I9: 0 | J9: 0 | K9: 2300000 | L9: 319300 | M9: 0 | N9: 0 | O9: 0 | P9: 0 | Q9: 0 | R9: 0 | S9: 69020420 | T9: 0 | U9: 126529176 | V9: 0 | W9: 0 | X9: 0
C10: =SUM(C5:C8) -> 0 | D10: =SUM(D5:D8) -> 108696476 | E10: 108696476 | F10: 17832700 | G10: 0 | H10: 54889456 | I10: 0 | J10: 0 | K10: 2300000 | L10: 319300 | M10: 0 | N10: 0 | O10: 0 | P10: 0 | Q10: 0 | R10: 0 | S10: 69020420 | T10: 0 | U10: 126529176 | V10: 0 | W10: 0 | X10: 0

Sheet Controlli (hidden)
A1: Cespite | B1: Piano Investimenti | C1: Tavola 33 | D1: sterilizzazione anno | E1: CE | F1: di cui vincolati | G1: note
B2: 0 | C2: 0 | D2: 0

Sheet Foglio1 (hidden)
A1: DESCRIZIONE | B1: VALORE | C1: CHIAVE
A2: TOTALE CAPITALIZZATO (cella E6 Foglio "Totale Investimenti") | B2: ='Totale investimenti'!E8 -> 0 | C2: 2
A3: TOT IMM. IN CORSO (cella E5 Foglio "Totale Investimenti") | B3: ='Totale investimenti'!E5 -> 47536400 | C3: 3
A4: NUOVI ACQUISTI (cella D6 Foglio "Totale Investimenti") | B4: ='Totale investimenti'!D8 -> 0 | C4: 4
